Authority,Service Area,Cost Center Code,Description,Payment Date ,Amount,Supplier
Bolton MBC,Adult Services,AD26601,Other Agency/Contracted Services,20-Sep-22,"104,944.89",Bolton NHS Foundation Trust#1
Bolton MBC,Adult Services,AD22230,Nursing Provision,05-Sep-22,"104,836.00",Vale House
Bolton MBC,Adult Services,AD22230,Residential Provision,05-Sep-22,"66,282.05",Westmead
Bolton MBC,Adult Services,AD23112,Contracted Services,06-Sep-22,"42,905.68",Rosewood Court
Bolton MBC,Adult Services,AD22230,Residential Provision,05-Sep-22,"40,456.90",Kingarth
Bolton MBC,Adult Services,AD23144,Contracted Services,20-Sep-22,"39,053.87",Guardian Homecare UK Limited
Bolton MBC,Adult Services,AD22230,Residential Provision,05-Sep-22,"34,926.70",Bannister Farm Cottage
Bolton MBC,Adult Services,AD22230,Nursing Provision,05-Sep-22,"33,324.86",Berkeley House
Bolton MBC,Adult Services,AD23112,Nursing Provision,05-Sep-22,"32,448.00",Next Steps Levenshulme
Bolton MBC,Adult Services,AD23112,Residential Provision,05-Sep-22,"32,200.00",Hollands Nursing Home
Bolton MBC,Adult Services,AD23112,Residential Provision,05-Sep-22,"31,436.60",Morden Grange
Bolton MBC,Adult Services,AD40002,Partnerships - Other,01-Sep-22,"29,579.00",Bolton NHS Foundation Trust#1
Bolton MBC,Adult Services,AD40002,Partnerships - Other,01-Sep-22,"29,579.00",Bolton NHS Foundation Trust#1
Bolton MBC,Adult Services,AD23112,Residential Provision,05-Sep-22,"29,307.95",DIL Place
Bolton MBC,Adult Services,AD23112,Residential Provision,05-Sep-22,"29,250.00",Passmonds House
Bolton MBC,Adult Services,AD22230,Residential Provision,05-Sep-22,"28,962.10",Heaton Vale
Bolton MBC,Adult Services,AD22230,Residential Provision,05-Sep-22,"28,763.40",Mencap
Bolton MBC,Adult Services,AD23112,Nursing Provision,05-Sep-22,"28,270.00",Mill View Care Home#Advinia
Bolton MBC,Adult Services,AD23112,Residential Provision,05-Sep-22,"26,515.00",Daisy Fieldz Care Services Limited
Bolton MBC,Adult Services,AD22120,Contracted Services,14-Sep-22,"26,385.19",Keymen Associates Ltd#Mayday Homecare
Bolton MBC,Adult Services,AD22230,Residential Provision,05-Sep-22,"25,500.00",Max Potential UK Limited
Bolton MBC,Adult Services,AD22120,Contracted Services,01-Sep-22,"25,101.03",Jewel Home Support Ltd
Bolton MBC,Adult Services,AD22120,Contracted Services,28-Sep-22,"24,838.62",Jewel Home Support Ltd
Bolton MBC,Adult Services,AD22230,Residential Provision,05-Sep-22,"23,593.20",Chorley House
Bolton MBC,Adult Services,AD36100,Other Agency/Contracted Services,09-Sep-22,"20,000.00",ARCC HR Limited
Bolton MBC,Adult Services,AD22230,Residential Provision,05-Sep-22,"19,934.20",Millbrook Way - Heathwaite
Bolton MBC,Adult Services,AD22230,Residential Provision,05-Sep-22,"19,748.30",Segal Gardens
Bolton MBC,Adult Services,AD23112,Residential Provision,05-Sep-22,"19,439.80",Hartington House
Bolton MBC,Adult Services,AD23112,Nursing Provision,05-Sep-22,"19,334.00",Church Walk Health Care Limited
Bolton MBC,Adult Services,AD22230,Residential Provision,05-Sep-22,"18,801.40",Max Potential UK Limited
Bolton MBC,Adult Services,AD23112,Residential Provision,05-Sep-22,"18,610.00",Mill View Care Home#Advinia
Bolton MBC,Adult Services,AD23112,Residential Provision,05-Sep-22,"17,974.40",Queens Park View#Intelligent Care
Bolton MBC,Adult Services,AD23112,Residential Provision,13-Sep-22,"17,604.80",Next Steps The Elms
Bolton MBC,Adult Services,AD22230,Residential Provision,05-Sep-22,"17,139.05",Brookvale
Bolton MBC,Adult Services,AD36100,Partnership Staff,01-Sep-22,"16,708.20",Bolton NHS Foundation Trust#1
Bolton MBC,Adult Services,AD23112,Residential Provision,05-Sep-22,"16,609.45",Somerset House
Bolton MBC,Adult Services,AD22230,Residential Provision,05-Sep-22,"15,983.25",The David Lewis Centre
Bolton MBC,Adult Services,AD23112,Contracted Services,01-Sep-22,"15,755.52",Wyresdale House
Bolton MBC,Adult Services,AD23112,Residential Provision,05-Sep-22,"15,425.00",Withins Residential Home
Bolton MBC,Adult Services,AD23112,Contracted Services,08-Sep-22,"15,240.00",Rubix Care Limited
Bolton MBC,Adult Services,AD23112,Residential Provision,05-Sep-22,"15,035.00",Lever Edge Care Home
Bolton MBC,Adult Services,AD23112,Residential Provision,05-Sep-22,"15,000.00",Parkview Nursing & Residential Home
Bolton MBC,Adult Services,AD22230,Residential Provision,05-Sep-22,"14,959.25",The Meadows
Bolton MBC,Adult Services,AD22120,Contracted Services,21-Sep-22,"13,782.59",SureCare Bolton#Sakinas Healthcare Limited
Bolton MBC,Adult Services,AD22120,Contracted Services,06-Sep-22,"13,257.80",Premier Care Limited
Bolton MBC,Adult Services,AD23144,Contracted Services,09-Sep-22,"12,818.39",Recovery Support Ltd
Bolton MBC,Adult Services,AD23112,Contracted Services,18-Sep-22,"12,237.44",Caring Alternatives Limited
Bolton MBC,Adult Services,AD22120,Contracted Services,26-Sep-22,"12,063.79",Seva Line
Bolton MBC,Adult Services,AD26500,Private Contracted Services,01-Sep-22,"12,052.80",Disability Positive
Bolton MBC,Adult Services,AD23112,Nursing Provision,05-Sep-22,"11,960.00",Abbey Healthcare (Farnworth) Limited
Bolton MBC,Adult Services,AD26500,Private Contracted Services,01-Sep-22,"11,959.80",Disability Positive
Bolton MBC,Adult Services,AD22230,Residential Provision,05-Sep-22,"11,797.15",Ellershaw House Ltd
Bolton MBC,Adult Services,AD23112,Residential Provision,05-Sep-22,"11,796.60",Chorley House
Bolton MBC,Adult Services,AD26500,Private Contracted Services,01-Sep-22,"11,773.80",Disability Positive
Bolton MBC,Adult Services,AD26500,Private Contracted Services,01-Sep-22,"11,773.80",Disability Positive
Bolton MBC,Adult Services,AD22230,Residential Provision,05-Sep-22,"11,757.00",Take a Break with Choices
Bolton MBC,Adult Services,AD22230,Residential Provision,05-Sep-22,"11,490.00",HF Trust Limited Honeysuckle House
Bolton MBC,Adult Services,AD22120,Contracted Services,14-Sep-22,"11,258.52",Homecare For You Ltd#BLACKBURN
Bolton MBC,Adult Services,AD26500,Contracted Services,01-Sep-22,"11,249.75",Salvere Social Enterprise CIC
Bolton MBC,Adult Services,AD23144,Contracted Services,21-Sep-22,"10,728.12",SureCare Bolton#Sakinas Healthcare Limited
Bolton MBC,Adult Services,AD22230,Residential Provision,05-Sep-22,"10,344.35",Clarence House
Bolton MBC,Adult Services,AD22120,Contracted Services,07-Sep-22,"9,988.05",The Local Care Company (Bolton) Limited
Bolton MBC,Adult Services,AD23112,Residential Provision,05-Sep-22,"9,950.35",Max Potential UK Limited
Bolton MBC,Adult Services,AD23112,Contracted Services,08-Sep-22,"9,734.19",The Withins
Bolton MBC,Adult Services,AD22120,Contracted Services,28-Sep-22,"9,724.72",The Local Care Company (Bolton) Limited
Bolton MBC,Adult Services,AD23112,Nursing Provision,05-Sep-22,"9,660.00",St Catherines Care Home
Bolton MBC,Adult Services,AD22230,Residential Provision,05-Sep-22,"9,660.00",Hollands Nursing Home
Bolton MBC,Adult Services,AD23112,Residential Provision,05-Sep-22,"9,416.50",Langley House Trust
Bolton MBC,Adult Services,AD23112,Residential Provision,05-Sep-22,"9,400.70",Max Potential UK Limited-Glen Avenue
Bolton MBC,Adult Services,AD23112,Nursing Provision,05-Sep-22,"9,305.00",Shannon Court Care Home Limited
Bolton MBC,Adult Services,AD23112,Residential Provision,05-Sep-22,"9,190.57",Abbey Healthcare (Farnworth) Limited
Bolton MBC,Adult Services,AD23112,Residential Provision,05-Sep-22,"8,970.00",Hazelbrook Christian Nursing Home
Bolton MBC,Adult Services,AD22120,Contracted Services,06-Sep-22,"8,457.18",Westwood Homecare (North West) Limited
Bolton MBC,Adult Services,AD22120,Contracted Services,20-Sep-22,"8,322.58",Guardian Homecare UK Limited
Bolton MBC,Adult Services,AD23112,Residential Provision,05-Sep-22,"7,765.70",Church View
Bolton MBC,Adult Services,AD22120,Contracted Services,07-Sep-22,"7,734.17",CRG Homecare Limited
Bolton MBC,Adult Services,AD23112,Nursing Provision,05-Sep-22,"7,525.00",Rosebridge Court
Bolton MBC,Adult Services,AD23144,Contracted Services,14-Sep-22,"7,487.06",Homecare For You Ltd#BLACKBURN
Bolton MBC,Adult Services,AD23144,Contracted Services,14-Sep-22,"7,473.97",Keymen Associates Ltd#Mayday Homecare
Bolton MBC,Adult Services,AD22230,Residential Provision,05-Sep-22,"7,351.00",Bluebell Cottage Veedale
Bolton MBC,Adult Services,AD23112,Residential Provision,05-Sep-22,"7,270.45",The Lodge Buckshaw Retirement Village#The Lodge
Bolton MBC,Adult Services,AD23112,Contracted Services,06-Sep-22,"7,070.22",College House
Bolton MBC,Adult Services,AD23112,Residential Provision,05-Sep-22,"7,015.65",Hyde Lea
Bolton MBC,Adult Services,AD23112,Residential Provision,05-Sep-22,"6,617.30",Fosse Bank
Bolton MBC,Adult Services,AD22230,Residential Provision,05-Sep-22,"6,537.45",Stanley Grange#1
Bolton MBC,Adult Services,AD23112,Residential Provision,05-Sep-22,"6,510.00",Knightswood Residential Home
Bolton MBC,Adult Services,AD23112,Residential Provision,05-Sep-22,"6,440.00",Woodlands Care Home
Bolton MBC,Adult Services,AD23112,Residential Provision,05-Sep-22,"6,440.00",Hollands Nursing Home
Bolton MBC,Adult Services,AD23112,Nursing Provision,05-Sep-22,"6,354.00",Burrswood House
Bolton MBC,Adult Services,AD23112,Nursing Provision,05-Sep-22,"6,343.85",Lakeland View Care Centre
Bolton MBC,Adult Services,AD23144,Contracted Services,09-Sep-22,"6,303.20",Recovery Support Ltd
Bolton MBC,Adult Services,AD23112,Nursing Provision,05-Sep-22,"6,194.00",Lakelands Lodge
Bolton MBC,Adult Services,AD23112,Residential Provision,05-Sep-22,"6,139.14",DIL House
Bolton MBC,Adult Services,AD23112,Residential Provision,05-Sep-22,"6,085.00",Bright Meadows Care Home
Bolton MBC,Adult Services,AD23112,Contracted Services,06-Sep-22,"6,061.14",Cranleigh Court
Bolton MBC,Adult Services,AD23112,Residential Provision,05-Sep-22,"5,904.00",Rose Court Nursing Home
Bolton MBC,Adult Services,AD23112,Residential Provision,05-Sep-22,"5,730.00",Sevaline Care Homes Ltd T/A Glenhomes Care Home
Bolton MBC,Adult Services,AD23112,Nursing Provision,05-Sep-22,"5,730.00",Meadowbank House
Bolton MBC,Adult Services,AD23112,Residential Provision,05-Sep-22,"5,730.00",Lyngate Residential Home#Lyngate Healthcare Ltd
Bolton MBC,Adult Services,AD23112,Residential Provision,05-Sep-22,"5,730.00",Abafields Residential Home
Bolton MBC,Adult Services,AD23112,Residential Provision,05-Sep-22,"5,704.00",Burrswood House
Bolton MBC,Adult Services,AD22220,Contracted Services,21-Sep-22,"5,694.31",SureCare Bolton#Sakinas Healthcare Limited
Bolton MBC,Adult Services,AD26332,Clients Aids & Adaptations,09-Sep-22,"5,450.00",Doro Care (UK) Limited
Bolton MBC,Adult Services,AD23144,Contracted Services,28-Sep-22,"5,406.82",Jewel Home Support Ltd
Bolton MBC,Adult Services,AD23112,Contracted Services,08-Sep-22,"5,281.28",Rubix Care Limited
Bolton MBC,Adult Services,AD23112,Residential Provision,05-Sep-22,"4,968.00",Shannon Court Care Home Limited
Bolton MBC,Adult Services,AD23112,Nursing Provision,05-Sep-22,"4,888.05",Moston Grange Nursing Home
Bolton MBC,Adult Services,AD23112,Residential Provision,05-Sep-22,"4,700.35",Max Potential UK Limited
Bolton MBC,Adult Services,AD23144,Contracted Services,01-Sep-22,"4,665.03",Jewel Home Support Ltd
Bolton MBC,Adult Services,AD23144,Contracted Services,07-Sep-22,"4,651.60",CRG Homecare Limited
Bolton MBC,Adult Services,AD41403,Contracted Services,01-Sep-22,"4,612.00",Access UK Limited
Bolton MBC,Adult Services,AD26331,Clients Aids & Adaptations,07-Sep-22,"4,350.00",The Key Safe Company#Supra UK Ltd
Bolton MBC,Adult Services,AD23112,Residential Provision,05-Sep-22,"4,288.40",Randomlight Ltd#Heightside House
Bolton MBC,Adult Services,AD22230,Residential Provision,05-Sep-22,"4,234.28",Rivington View Nursing Home
Bolton MBC,Adult Services,AD23112,Nursing Provision,05-Sep-22,"4,207.50",Crystal Hall Care Home
Bolton MBC,Adult Services,AD23111,Contracted Services,01-Sep-22,"4,177.72",Red Lion Appartments
Bolton MBC,Adult Services,AD23111,Contracted Services,06-Sep-22,"4,177.72",Red Lion Appartments
Bolton MBC,Adult Services,AD36100,Partnership Staff,01-Sep-22,"4,177.05",Bolton NHS Foundation Trust#1
Bolton MBC,Adult Services,AD23112,Nursing Provision,05-Sep-22,"4,034.40",Stocks Hall Care Homes Ltd#St Helens
Bolton MBC,Adult Services,AD26331,Clients Aids & Adaptations,05-Sep-22,"3,838.00",Etac Limited
Bolton MBC,Adult Services,AD26331,Clients Aids & Adaptations,08-Sep-22,"3,838.00",Etac Limited
Bolton MBC,Adult Services,AD23112,Residential Provision,05-Sep-22,"3,785.00",Blackrod House Limited
Bolton MBC,Adult Services,AD23111,Contracted Services,01-Sep-22,"3,749.24",Red Lion Appartments
Bolton MBC,Adult Services,AD23111,Contracted Services,01-Sep-22,"3,749.24",Red Lion Appartments
Bolton MBC,Adult Services,AD23111,Contracted Services,01-Sep-22,"3,749.24",Red Lion Appartments
Bolton MBC,Adult Services,AD23111,Contracted Services,06-Sep-22,"3,749.24",Red Lion Appartments
Bolton MBC,Adult Services,AD23111,Contracted Services,06-Sep-22,"3,749.24",Red Lion Appartments
Bolton MBC,Adult Services,AD23111,Contracted Services,06-Sep-22,"3,749.24",Red Lion Appartments
Bolton MBC,Adult Services,AD23112,Residential Provision,05-Sep-22,"3,726.75",Brookfield Residential Care Home Ltd
Bolton MBC,Adult Services,AD23111,Contracted Services,01-Sep-22,"3,700.00",Red Lion Appartments
Bolton MBC,Adult Services,AD23111,Contracted Services,06-Sep-22,"3,700.00",Red Lion Appartments
Bolton MBC,Adult Services,AD22120,Contracted Services,16-Sep-22,"3,615.76",CRG Homecare Limited
Bolton MBC,Adult Services,AD23112,Nursing Provision,05-Sep-22,"3,470.00",Astley Grange Homes Limited
Bolton MBC,Adult Services,AD22120,Contracted Services,07-Sep-22,"3,460.70",Right Care (NW) Limited
Bolton MBC,Adult Services,AD23112,Nursing Provision,05-Sep-22,"3,265.90",Randomlight Ltd#Heightside House
Bolton MBC,Adult Services,AD23112,Residential Provision,05-Sep-22,"3,245.70",The Bungalow Residential Home
Bolton MBC,Adult Services,AD23112,Residential Provision,05-Sep-22,"3,235.00",Belong Wigan#2
Bolton MBC,Adult Services,AD23112,Residential Provision,05-Sep-22,"3,220.00",Orchid Woodlands Healthcare Limited
Bolton MBC,Adult Services,AD23112,Nursing Provision,05-Sep-22,"3,220.00",Bright Meadows Care Home
Bolton MBC,Adult Services,AD23144,Contracted Services,06-Sep-22,"3,149.74",Dignity in Life Ltd#DIL Foundation
Bolton MBC,Adult Services,AD22120,Contracted Services,05-Sep-22,"3,144.96",Rings Homecare Service Limited
Bolton MBC,Adult Services,AD26331,Partnership Staff,27-Sep-22,"3,140.80",Bolton NHS Foundation Trust#1
Bolton MBC,Adult Services,AD22120,Contracted Services,06-Sep-22,"3,136.67",Dignity in Life Ltd#DIL Foundation
Bolton MBC,Adult Services,AD36100,Other Agency/Contracted Services,08-Sep-22,"3,079.20",Allintus Limited
Bolton MBC,Adult Services,AD23112,Nursing Provision,05-Sep-22,"3,072.15",Gillibrand Hall Nursing Home
Bolton MBC,Adult Services,AD22230,Nursing Provision,05-Sep-22,"3,040.00",Astley Grange Homes Limited
Bolton MBC,Adult Services,AD22220,Contracted Services,20-Sep-22,"3,020.01",Guardian Homecare UK Limited
Bolton MBC,Adult Services,AD22120,Contracted Services,06-Sep-22,"3,014.16",Dignity in Life Ltd#DIL Foundation
Bolton MBC,Adult Services,AD23112,Nursing Provision,05-Sep-22,"3,005.00",Belong Atherton#EPH
Bolton MBC,Adult Services,AD26331,Clients Aids & Adaptations,21-Sep-22,"2,970.00",Rehabilitation Manufacturing Svs Ltd
Bolton MBC,Adult Services,AD26331,Clients Aids & Adaptations,21-Sep-22,"2,970.00",Rehabilitation Manufacturing Svs Ltd
Bolton MBC,Adult Services,AD22120,Contracted Services,01-Sep-22,"2,946.67",Dignity in Life Ltd#DIL Foundation
Bolton MBC,Adult Services,AD23152,Other Clients Services,26-Sep-22,"2,940.29",Greater Manchester Mental Health NHS Foundation Trust
Bolton MBC,Adult Services,AD26331,Clients Aids & Adaptations,22-Sep-22,"2,939.00",James Leckey Design Limited#Vida Global
Bolton MBC,Adult Services,AD22120,Contracted Services,07-Sep-22,"2,910.00",Right Care (NW) Limited
Bolton MBC,Adult Services,AD26331,Clients Aids & Adaptations,01-Sep-22,"2,892.00",Sumed International (UK) Limited
Bolton MBC,Adult Services,AD23112,Residential Provision,05-Sep-22,"2,889.50",The Brandles
Bolton MBC,Adult Services,AD26332,Clients Aids & Adaptations,09-Sep-22,"2,870.00",Doro Care (UK) Limited
Bolton MBC,Adult Services,AD22120,Contracted Services,01-Sep-22,"2,866.50",Orchid Home Care Support
Bolton MBC,Adult Services,AD23112,Residential Provision,05-Sep-22,"2,865.00",Withins Residential Home
Bolton MBC,Adult Services,AD23112,Residential Provision,05-Sep-22,"2,865.00",Wingates Residential Home
Bolton MBC,Adult Services,AD23112,Residential Provision,05-Sep-22,"2,865.00",The Clough Residential Home
Bolton MBC,Adult Services,AD23112,Residential Provision,05-Sep-22,"2,865.00",St Catherines Care Home
Bolton MBC,Adult Services,AD23112,Residential Provision,05-Sep-22,"2,865.00",Southlands Residential Home#Southlands
Bolton MBC,Adult Services,AD23112,Residential Provision,05-Sep-22,"2,865.00",Meadowbank House
Bolton MBC,Adult Services,AD23112,Residential Provision,05-Sep-22,"2,865.00",Grange Lea Residential Care Home Limited
Bolton MBC,Adult Services,AD23112,Residential Provision,05-Sep-22,"2,865.00",Glenbank Care Home Ltd
Bolton MBC,Adult Services,AD23112,Nursing Provision,05-Sep-22,"2,865.00",Carders Court Care Home
Bolton MBC,Adult Services,AD22230,Residential Provision,05-Sep-22,"2,865.00",Beechville Care Home
Bolton MBC,Adult Services,AD26331,Clients Aids & Adaptations,06-Sep-22,"2,859.25",Sumed International (UK) Limited
Bolton MBC,Adult Services,AD23112,Residential Provision,05-Sep-22,"2,814.50",Epworth Grange
Bolton MBC,Adult Services,AD23112,Residential Provision,05-Sep-22,"2,814.50",Carr Bank House
Bolton MBC,Adult Services,AD23112,Residential Provision,05-Sep-22,"2,814.50",Browfield Residential Home
Bolton MBC,Adult Services,AD23144,Contracted Services,09-Sep-22,"2,813.80",Recovery Support Ltd
Bolton MBC,Adult Services,AD23152,Other Clients Services,26-Sep-22,"2,771.88",Greater Manchester Mental Health NHS Foundation Trust
Bolton MBC,Adult Services,AD23112,Residential Provision,05-Sep-22,"2,742.00",Elizabeth House
Bolton MBC,Adult Services,AD26331,Clients Aids & Adaptations,12-Sep-22,"2,689.95",Drive Devilbiss Healthcare Limited
Bolton MBC,Adult Services,AD22220,Contracted Services,28-Sep-22,"2,665.18",Jewel Home Support Ltd
Bolton MBC,Adult Services,AD23144,Contracted Services,05-Sep-22,"2,620.80",Rings Homecare Service Limited
Bolton MBC,Adult Services,AD23144,Contracted Services,06-Sep-22,"2,508.30",Dignity in Life Ltd#DIL Foundation
Bolton MBC,Adult Services,AD23152,Other Clients Services,26-Sep-22,"2,457.73",Greater Manchester Mental Health NHS Foundation Trust
Bolton MBC,Adult Services,AD22120,Contracted Services,05-Sep-22,"2,446.08",Rings Homecare Service Limited
Bolton MBC,Adult Services,AD22120,Contracted Services,01-Sep-22,"2,385.63",SignHealth#The Deaf Health Charity
Bolton MBC,Adult Services,AD23152,Other Clients Services,26-Sep-22,"2,318.67",Greater Manchester Mental Health NHS Foundation Trust
Bolton MBC,Adult Services,AD26332,Clients Aids & Adaptations,09-Sep-22,"2,300.00",Doro Care (UK) Limited
Bolton MBC,Adult Services,AD22120,Contracted Services,06-Sep-22,"2,293.98",Dignity in Life Ltd#DIL Foundation
Bolton MBC,Adult Services,AD22120,Contracted Services,07-Sep-22,"2,222.05",Right Care (NW) Limited
Bolton MBC,Adult Services,AD22120,Contracted Services,06-Sep-22,"2,215.25",Dignity in Life Ltd#DIL Foundation
Bolton MBC,Adult Services,AD22220,Contracted Services,01-Sep-22,"2,176.20",P & R Health Care Solutions
Bolton MBC,Adult Services,AD23152,Other Clients Services,26-Sep-22,"2,154.84",Greater Manchester Mental Health NHS Foundation Trust
Bolton MBC,Adult Services,AD23144,Contracted Services,16-Sep-22,"2,132.52",CRG Homecare Limited
Bolton MBC,Adult Services,AD26331,Clients Aids & Adaptations,01-Sep-22,"2,115.75",Medstrom Limited
Bolton MBC,Adult Services,AD22120,Contracted Services,01-Sep-22,"2,102.32",SignHealth#The Deaf Health Charity
Bolton MBC,Adult Services,AD26331,Clients Aids & Adaptations,01-Sep-22,"2,047.50",Medstrom Limited
Bolton MBC,Adult Services,AD23152,Other Clients Services,26-Sep-22,"2,034.23",Greater Manchester Mental Health NHS Foundation Trust
Bolton MBC,Adult Services,AD22120,Contracted Services,06-Sep-22,"1,989.38",Dignity in Life Ltd#DIL Foundation
Bolton MBC,Adult Services,AD26331,Clients Aids & Adaptations,08-Sep-22,"1,988.00",Etac Limited
Bolton MBC,Adult Services,AD22220,Contracted Services,01-Sep-22,"1,975.00",SEA Recruitment Services Limited
Bolton MBC,Adult Services,AD22220,Contracted Services,07-Sep-22,"1,975.00",SEA Recruitment Services Limited
Bolton MBC,Adult Services,AD23144,Contracted Services,09-Sep-22,"1,955.27",Recovery Support Ltd
Bolton MBC,Adult Services,AD22120,Contracted Services,01-Sep-22,"1,945.30",ICRIT Healthcare#Limited
Bolton MBC,Adult Services,AD23144,Contracted Services,09-Sep-22,"1,870.10",Recovery Support Ltd
Bolton MBC,Adult Services,AD23144,Contracted Services,01-Sep-22,"1,839.32",Yasnad Ltd t/a Bluebird Care Bury
Bolton MBC,Adult Services,AD22220,Contracted Services,01-Sep-22,"1,832.74",ICRIT Healthcare#Limited
Bolton MBC,Adult Services,AD26332,Clients Aids & Adaptations,21-Sep-22,"1,829.60",Easylink UK#Medpage Limited
Bolton MBC,Adult Services,AD26331,Clients Aids & Adaptations,22-Sep-22,"1,782.00",James Leckey Design Limited#Vida Global
Bolton MBC,Adult Services,AD23152,Other Clients Services,26-Sep-22,"1,732.96",Greater Manchester Mental Health NHS Foundation Trust
Bolton MBC,Adult Services,AD26331,Clients Aids & Adaptations,22-Sep-22,"1,731.13",Prism Medical UK
Bolton MBC,Adult Services,AD22120,Contracted Services,01-Sep-22,"1,728.72",Orchid Home Care Support
Bolton MBC,Adult Services,AD26331,Clients Aids & Adaptations,21-Sep-22,"1,722.00",Rehabilitation Manufacturing Svs Ltd
Bolton MBC,Adult Services,AD23144,Contracted Services,09-Sep-22,"1,721.47",Recovery Support Ltd
Bolton MBC,Adult Services,AD23144,Contracted Services,09-Sep-22,"1,693.99",Recovery Support Ltd
Bolton MBC,Adult Services,AD22120,Contracted Services,01-Sep-22,"1,693.44",Orchid Home Care Support
Bolton MBC,Adult Services,AD22220,Contracted Services,08-Sep-22,"1,692.60",Your Care (UK) Limited
Bolton MBC,Adult Services,AD22120,Contracted Services,01-Sep-22,"1,684.62",Orchid Home Care Support
Bolton MBC,Adult Services,AD26601,Other Agency/Contracted Services,09-Sep-22,"1,680.00",Interpreting & Translating Services
Bolton MBC,Adult Services,AD23152,Other Clients Services,26-Sep-22,"1,652.83",Greater Manchester Mental Health NHS Foundation Trust
Bolton MBC,Adult Services,AD24000,Contracted Services,26-Sep-22,"1,650.00",Relphs Funeral Service#Funeralcare
Bolton MBC,Adult Services,AD23144,Contracted Services,01-Sep-22,"1,647.36",Rings Homecare Service Limited
Bolton MBC,Adult Services,AD23144,Contracted Services,01-Sep-22,"1,647.36",Rings Homecare Service Limited
Bolton MBC,Adult Services,AD22120,Contracted Services,01-Sep-22,"1,646.40",Orchid Home Care Support
Bolton MBC,Adult Services,AD26331,Clients Aids & Adaptations,12-Sep-22,"1,609.37",Prism Medical UK
Bolton MBC,Adult Services,AD23152,Other Clients Services,26-Sep-22,"1,604.95",Greater Manchester Mental Health NHS Foundation Trust
Bolton MBC,Adult Services,AD23144,Contracted Services,09-Sep-22,"1,592.47",Recovery Support Ltd
Bolton MBC,Adult Services,AD22220,Contracted Services,01-Sep-22,"1,587.60",Orchid Home Care Support
Bolton MBC,Adult Services,AD22120,Contracted Services,06-Sep-22,"1,581.20",Premier Care Limited
Bolton MBC,Adult Services,AD23144,Contracted Services,09-Sep-22,"1,579.92",Recovery Support Ltd
Bolton MBC,Adult Services,AD22220,Contracted Services,14-Sep-22,"1,575.92",Keymen Associates Ltd#Mayday Homecare
Bolton MBC,Adult Services,AD26331,Clients Aids & Adaptations,16-Sep-22,"1,539.36",Langham
Bolton MBC,Adult Services,AD26331,Clients Aids & Adaptations,01-Sep-22,"1,519.20",Prism Medical UK
Bolton MBC,Adult Services,AD23144,Contracted Services,01-Sep-22,"1,510.96",Rings Homecare Service Limited
Bolton MBC,Adult Services,AD23144,Contracted Services,09-Sep-22,"1,508.58",Recovery Support Ltd
Bolton MBC,Adult Services,AD22120,Contracted Services,01-Sep-22,"1,499.40",Orchid Home Care Support
Bolton MBC,Adult Services,AD23144,Contracted Services,09-Sep-22,"1,481.06",Supported Steps CIC
Bolton MBC,Adult Services,AD26337,Agency Staff - Other,23-Sep-22,"1,479.26",Reed#Reed Specialist Recruitment Limited
Bolton MBC,Adult Services,AD26337,Agency Staff - Other,16-Sep-22,"1,479.26",Reed#Reed Specialist Recruitment Limited
Bolton MBC,Adult Services,AD26337,Agency Staff - Other,02-Sep-22,"1,479.26",Reed#Reed Specialist Recruitment Limited
Bolton MBC,Adult Services,AD23144,Contracted Services,06-Sep-22,"1,477.48",Premier Care Limited
Bolton MBC,Adult Services,AD23144,Contracted Services,07-Sep-22,"1,458.91",RNHS Ltd
Bolton MBC,Adult Services,AD22120,Contracted Services,07-Sep-22,"1,451.47",Right Care (NW) Limited
Bolton MBC,Adult Services,AD23144,Contracted Services,01-Sep-22,"1,450.80",Homecare Team Limited
Bolton MBC,Adult Services,AD22220,Contracted Services,09-Sep-22,"1,438.94",Supported Steps CIC
Bolton MBC,Adult Services,AD41402,Agency Staff - Other,23-Sep-22,"1,415.18",Reed#Reed Specialist Recruitment Limited
Bolton MBC,Adult Services,AD41402,Agency Staff - Other,16-Sep-22,"1,415.18",Reed#Reed Specialist Recruitment Limited
Bolton MBC,Adult Services,AD26331,Clients Aids & Adaptations,23-Sep-22,"1,414.50",SimplyMed Limited
Bolton MBC,Adult Services,AD26330,Agency Staff - Other,23-Sep-22,"1,406.55",Reed#Reed Specialist Recruitment Limited
Bolton MBC,Adult Services,AD41402,Agency Staff - Other,02-Sep-22,"1,396.31",Reed#Reed Specialist Recruitment Limited
Bolton MBC,Adult Services,AD41402,Agency Staff - Other,09-Sep-22,"1,396.31",Reed#Reed Specialist Recruitment Limited
Bolton MBC,Adult Services,AD22220,Contracted Services,09-Sep-22,"1,381.06",Recovery Support Ltd
Bolton MBC,Adult Services,AD22120,Contracted Services,06-Sep-22,"1,361.92",Dignity in Life Ltd#DIL Foundation
Bolton MBC,Adult Services,AD23144,Contracted Services,01-Sep-22,"1,310.40",ICRIT Healthcare#Limited
Bolton MBC,Adult Services,AD22120,Contracted Services,01-Sep-22,"1,310.40",Homecare Team Limited
Bolton MBC,Adult Services,AD41403,Clients - Bus Fares,01-Sep-22,"1,296.00",REDACTED - Personal Data
Bolton MBC,Adult Services,AD23112,Residential Provision,05-Sep-22,"1,288.00",Lever Edge Care Home
Bolton MBC,Adult Services,AD26601,Agency Staff - Other,23-Sep-22,"1,285.01",Reed#Reed Specialist Recruitment Limited
Bolton MBC,Adult Services,AD26601,Agency Staff - Other,16-Sep-22,"1,285.01",Reed#Reed Specialist Recruitment Limited
Bolton MBC,Adult Services,AD26601,Agency Staff - Other,02-Sep-22,"1,285.01",Reed#Reed Specialist Recruitment Limited
Bolton MBC,Adult Services,AD23154,Agency Staff - Other,23-Sep-22,"1,284.64",Reed#Reed Specialist Recruitment Limited
Bolton MBC,Adult Services,AD23144,Contracted Services,06-Sep-22,"1,282.27",Dignity in Life Ltd#DIL Foundation
Bolton MBC,Adult Services,AD22120,Contracted Services,08-Sep-22,"1,241.55",Your Care (UK) Limited
Bolton MBC,Adult Services,AD22120,Contracted Services,07-Sep-22,"1,238.32",RNHS Ltd
Bolton MBC,Adult Services,AD26335,Agency Staff - Other,02-Sep-22,"1,217.67",Reed#Reed Specialist Recruitment Limited
Bolton MBC,Adult Services,AD23151,Agency Staff - Other,23-Sep-22,"1,210.64",Reed#Reed Specialist Recruitment Limited
Bolton MBC,Adult Services,AD26502,Agency Staff - Other,23-Sep-22,"1,210.64",Reed#Reed Specialist Recruitment Limited
Bolton MBC,Adult Services,AD26502,Agency Staff - Other,16-Sep-22,"1,210.64",Reed#Reed Specialist Recruitment Limited
Bolton MBC,Adult Services,AD41403,Clients - Bus Fares,01-Sep-22,"1,200.00",Mehboob Valli Patel#SMA Cars
Bolton MBC,Adult Services,AD26331,Clients Aids & Adaptations,20-Sep-22,"1,200.00",Aidapt Bathrooms Ltd
Bolton MBC,Adult Services,AD26337,Agency Staff - Other,09-Sep-22,"1,199.40",Reed#Reed Specialist Recruitment Limited
Bolton MBC,Adult Services,AD22120,Contracted Services,09-Sep-22,"1,185.20",Recovery Support Ltd
Bolton MBC,Adult Services,AD26332,Clients Aids & Adaptations,07-Sep-22,"1,170.00",Buddi Ltd
Bolton MBC,Adult Services,AD23151,Agency Staff - Other,23-Sep-22,"1,168.31",Reed#Reed Specialist Recruitment Limited
Bolton MBC,Adult Services,AD23152,Other Clients Services,26-Sep-22,"1,161.47",Greater Manchester Mental Health NHS Foundation Trust
Bolton MBC,Adult Services,AD23144,Contracted Services,01-Sep-22,"1,141.92",Rings Homecare Service Limited
Bolton MBC,Adult Services,AD26331,Clients Aids & Adaptations,02-Sep-22,"1,139.00",G & S Smirthwaite Limited#Smirthwaite Ltd
Bolton MBC,Adult Services,AD23111,Contracted Services,18-Sep-22,"1,135.81",Caring Alternatives Limited
Bolton MBC,Adult Services,AD26330,Agency Staff - Other,16-Sep-22,"1,125.24",Reed#Reed Specialist Recruitment Limited
Bolton MBC,Adult Services,AD26330,Agency Staff - Other,09-Sep-22,"1,125.24",Reed#Reed Specialist Recruitment Limited
Bolton MBC,Adult Services,AD26331,Clients Aids & Adaptations,16-Sep-22,"1,121.20",Prism Medical UK
Bolton MBC,Adult Services,AD23151,Agency Staff - Other,16-Sep-22,"1,118.94",Reed#Reed Specialist Recruitment Limited
Bolton MBC,Adult Services,AD22220,Contracted Services,01-Sep-22,"1,114.89",Jewel Home Support Ltd
Bolton MBC,Adult Services,AD22220,Contracted Services,14-Sep-22,"1,094.50",Homecare For You Ltd#BLACKBURN
Bolton MBC,Adult Services,AD23144,Contracted Services,01-Sep-22,"1,090.18",ICRIT Healthcare#Limited
Bolton MBC,Adult Services,AD26332,Clients Aids & Adaptations,23-Sep-22,"1,070.90",Easylink UK#Medpage Limited
Bolton MBC,Adult Services,AD23144,Contracted Services,09-Sep-22,"1,064.42",Recovery Support Ltd
Bolton MBC,Adult Services,AD23151,Agency Staff - Other,09-Sep-22,"1,053.12",Reed#Reed Specialist Recruitment Limited
Bolton MBC,Adult Services,AD22220,Contracted Services,01-Sep-22,"1,048.32",Homecare Team Limited
Bolton MBC,Adult Services,AD26601,Agency Staff - Other,09-Sep-22,"1,041.90",Reed#Reed Specialist Recruitment Limited
Bolton MBC,Adult Services,AD26332,Clients Aids & Adaptations,09-Sep-22,"1,030.00",Doro Care (UK) Limited
Bolton MBC,Adult Services,AD10112,Agency Staff - Other,09-Sep-22,"1,029.90",Reed#Reed Specialist Recruitment Limited
Bolton MBC,Adult Services,AD23144,Contracted Services,01-Sep-22,"1,028.30",ICRIT Healthcare#Limited
Bolton MBC,Adult Services,AD23152,Other Clients Services,26-Sep-22,"1,027.03",Greater Manchester Mental Health NHS Foundation Trust
Bolton MBC,Adult Services,AD22120,Contracted Services,06-Sep-22,"1,021.44",Dignity in Life Ltd#DIL Foundation
Bolton MBC,Adult Services,AD26602,Contracted Services,01-Sep-22,"1,018.00",Dagmar Hartshorn Psychological Services
Bolton MBC,Adult Services,AD23112,Contracted Services,22-Sep-22,"1,017.01",The Withins
Bolton MBC,Adult Services,AD23144,Contracted Services,05-Sep-22,"1,014.74",Yasnad Ltd t/a Bluebird Care Bury
Bolton MBC,Adult Services,AD26331,Clients Aids & Adaptations,01-Sep-22,"1,012.80",Prism Medical UK
Bolton MBC,Adult Services,AD36100,Other Fees,01-Sep-22,"1,009.50",Julie Lomax Photography Limited
Bolton MBC,Adult Services,AD22120,Contracted Services,05-Sep-22,"1,007.76",Eden Care Support Services Ltd
Bolton MBC,Adult Services,AD23144,Contracted Services,09-Sep-22,999.84,Recovery Support Ltd
Bolton MBC,Adult Services,AD26331,Clients Aids & Adaptations,07-Sep-22,996.68,Tom Gallagher Limited
Bolton MBC,Adult Services,AD22120,Contracted Services,06-Sep-22,995.90,Dignity in Life Ltd#DIL Foundation
Bolton MBC,Adult Services,AD22120,Contracted Services,06-Sep-22,991.95,Dignity in Life Ltd#DIL Foundation
Bolton MBC,Adult Services,AD26502,Contracted Services,14-Sep-22,983.08,Click Travel Limited
Bolton MBC,Adult Services,AD23151,Agency Staff - Other,16-Sep-22,981.60,Reed#Reed Specialist Recruitment Limited
Bolton MBC,Adult Services,AD23151,Agency Staff - Other,09-Sep-22,981.60,Reed#Reed Specialist Recruitment Limited
Bolton MBC,Adult Services,AD26335,Agency Staff - Other,16-Sep-22,981.60,Reed#Reed Specialist Recruitment Limited
Bolton MBC,Adult Services,AD26335,Agency Staff - Other,09-Sep-22,981.60,Reed#Reed Specialist Recruitment Limited
Bolton MBC,Adult Services,AD26502,Agency Staff - Other,09-Sep-22,981.60,Reed#Reed Specialist Recruitment Limited
Bolton MBC,Adult Services,AD26331,Clients Aids & Adaptations,08-Sep-22,967.73,Tom Gallagher Limited
Bolton MBC,Adult Services,AD26335,Agency Staff - Other,23-Sep-22,965.24,Reed#Reed Specialist Recruitment Limited
Bolton MBC,Adult Services,AD26335,Agency Staff - Other,16-Sep-22,965.24,Reed#Reed Specialist Recruitment Limited
Bolton MBC,Adult Services,AD22120,Contracted Services,19-Sep-22,948.48,Eden Care Support Services Ltd
Bolton MBC,Adult Services,AD23144,Contracted Services,09-Sep-22,937.64,Guardian Homecare UK Limited
Bolton MBC,Adult Services,AD26331,Clients Aids & Adaptations,01-Sep-22,935.87,Prism Medical UK
Bolton MBC,Adult Services,AD23144,Contracted Services,06-Sep-22,925.38,Dignity in Life Ltd#DIL Foundation
Bolton MBC,Adult Services,AD22120,Contracted Services,13-Sep-22,925.09,Your Care Solutions Limited
Bolton MBC,Adult Services,AD23144,Contracted Services,01-Sep-22,923.86,Dignity in Life Ltd#DIL Foundation
Bolton MBC,Adult Services,AD26331,Clients Aids & Adaptations,07-Sep-22,916.00,James Leckey Design Limited#Vida Global
Bolton MBC,Adult Services,AD22120,Contracted Services,09-Sep-22,904.30,Recovery Support Ltd
Bolton MBC,Adult Services,AD26331,Clients Aids & Adaptations,01-Sep-22,902.70,Prism Medical UK
Bolton MBC,Adult Services,AD26331,Clients Aids & Adaptations,01-Sep-22,898.80,Prism Medical UK
Bolton MBC,Adult Services,AD22120,Contracted Services,05-Sep-22,898.56,Eden Care Support Services Ltd
Bolton MBC,Adult Services,AD22120,Contracted Services,19-Sep-22,898.56,Eden Care Support Services Ltd
Bolton MBC,Adult Services,AD26332,Clients Aids & Adaptations,16-Sep-22,892.40,Easylink UK#Medpage Limited
Bolton MBC,Adult Services,AD26332,Clients Aids & Adaptations,23-Sep-22,892.40,Easylink UK#Medpage Limited
Bolton MBC,Adult Services,AD22120,Contracted Services,01-Sep-22,890.82,Orchid Home Care Support
Bolton MBC,Adult Services,AD26502,Contracted Services,21-Sep-22,890.42,Click Travel Limited
Bolton MBC,Adult Services,AD23144,Contracted Services,09-Sep-22,888.49,Recovery Support Ltd
Bolton MBC,Adult Services,AD22120,Contracted Services,09-Sep-22,888.48,Recovery Support Ltd
Bolton MBC,Adult Services,AD23151,Agency Staff - Other,16-Sep-22,883.71,Reed#Reed Specialist Recruitment Limited
Bolton MBC,Adult Services,AD26502,Clients Temporary Accommodation,28-Sep-22,870.05,Click Travel Limited
Bolton MBC,Adult Services,AD23151,Agency Staff - Other,09-Sep-22,850.98,Reed#Reed Specialist Recruitment Limited
Bolton MBC,Adult Services,AD26331,Clients Aids & Adaptations,16-Sep-22,848.40,Langham
Bolton MBC,Adult Services,AD26330,Agency Staff - Other,02-Sep-22,843.93,Reed#Reed Specialist Recruitment Limited
Bolton MBC,Adult Services,AD22220,Contracted Services,07-Sep-22,843.34,CRG Homecare Limited
Bolton MBC,Adult Services,AD23144,Contracted Services,09-Sep-22,839.12,Recovery Support Ltd
Bolton MBC,Adult Services,AD23151,Agency Staff - Other,23-Sep-22,834.62,Reed#Reed Specialist Recruitment Limited
Bolton MBC,Adult Services,AD23151,Agency Staff - Other,02-Sep-22,834.62,Reed#Reed Specialist Recruitment Limited
Bolton MBC,Adult Services,AD41408,Agency Staff - Other,23-Sep-22,831.33,Reed#Reed Specialist Recruitment Limited
Bolton MBC,Adult Services,AD26331,Clients Aids & Adaptations,16-Sep-22,826.80,Cefndy Healthcare#Cefndy Enterprises
Bolton MBC,Adult Services,AD23144,Contracted Services,09-Sep-22,813.17,Recovery Support Ltd
Bolton MBC,Adult Services,AD26331,Clients Aids & Adaptations,09-Sep-22,806.25,Select Medical Limited
Bolton MBC,Adult Services,AD23152,Other Clients Services,26-Sep-22,799.04,Greater Manchester Mental Health NHS Foundation Trust
Bolton MBC,Adult Services,AD41408,Agency Staff - Other,16-Sep-22,790.82,Reed#Reed Specialist Recruitment Limited
Bolton MBC,Adult Services,AD22120,Contracted Services,05-Sep-22,786.24,Eden Care Support Services Ltd
Bolton MBC,Adult Services,AD22120,Contracted Services,19-Sep-22,786.24,Eden Care Support Services Ltd
Bolton MBC,Adult Services,AD26335,Client Support Costs,01-Sep-22,782.00,Astley Farm
Bolton MBC,Adult Services,AD41408,Agency Staff - Other,02-Sep-22,778.02,Reed#Reed Specialist Recruitment Limited
Bolton MBC,Adult Services,AD22120,Contracted Services,01-Sep-22,776.16,Orchid Home Care Support
Bolton MBC,Adult Services,AD26331,Clients Aids & Adaptations,06-Sep-22,770.00,Drive DeVilbiss Sidhil Limited
Bolton MBC,Adult Services,AD23144,Contracted Services,09-Sep-22,765.09,Recovery Support Ltd
Bolton MBC,Adult Services,AD26331,Clients Aids & Adaptations,20-Sep-22,760.00,Aidapt Bathrooms Ltd
Bolton MBC,Adult Services,AD23144,Contracted Services,01-Sep-22,748.80,Making Space
Bolton MBC,Adult Services,AD23144,Contracted Services,01-Sep-22,748.02,ICRIT Healthcare#Limited
Bolton MBC,Adult Services,AD26331,Clients Aids & Adaptations,01-Sep-22,742.20,Enable Access Limited
Bolton MBC,Adult Services,AD23144,Contracted Services,09-Sep-22,740.68,Recovery Support Ltd
Bolton MBC,Adult Services,AD22120,Contracted Services,09-Sep-22,740.40,Recovery Support Ltd
Bolton MBC,Adult Services,AD26331,Clients Aids & Adaptations,01-Sep-22,740.10,Prism Medical UK
Bolton MBC,Adult Services,AD26335,Agency Staff - Other,09-Sep-22,736.20,Reed#Reed Specialist Recruitment Limited
Bolton MBC,Adult Services,AD23152,Other Clients Services,26-Sep-22,728.06,Greater Manchester Mental Health NHS Foundation Trust
Bolton MBC,Adult Services,AD23144,Contracted Services,01-Sep-22,727.09,ICRIT Healthcare#Limited
Bolton MBC,Adult Services,AD41402,Agency Staff - Other,16-Sep-22,725.71,Reed#Reed Specialist Recruitment Limited
Bolton MBC,Adult Services,AD23112,Contracted Services,01-Sep-22,719.04,Trafalgar Court
Bolton MBC,Adult Services,AD23112,Contracted Services,02-Sep-22,719.04,Trafalgar Court
Bolton MBC,Adult Services,AD23144,Contracted Services,07-Sep-22,715.72,The Local Care Company (Bolton) Limited
Bolton MBC,Adult Services,AD23151,Office Equipment Purchase,23-Sep-22,713.96,Posturite Limited
Bolton MBC,Adult Services,AD26334,Contracted Services,01-Sep-22,708.33,Click Travel Limited
Bolton MBC,Adult Services,AD23144,Contracted Services,09-Sep-22,703.66,Recovery Support Ltd
Bolton MBC,Adult Services,AD23144,Contracted Services,01-Sep-22,691.28,Recovery Support Ltd
Bolton MBC,Adult Services,AD26331,Clients Aids & Adaptations,01-Sep-22,690.00,SimplyMed Limited
Bolton MBC,Adult Services,AD26331,Clients Aids & Adaptations,07-Sep-22,680.00,James Leckey Design Limited#Vida Global
Bolton MBC,Adult Services,AD26332,Clients Aids & Adaptations,21-Sep-22,669.20,Easylink UK#Medpage Limited
Bolton MBC,Adult Services,AD26601,Agency Staff - Other,02-Sep-22,653.83,Reed#Reed Specialist Recruitment Limited
Bolton MBC,Adult Services,AD23144,Contracted Services,21-Sep-22,652.80,Bolton New Care Limited T/A Home Instead Senior Care
Bolton MBC,Adult Services,AD22220,Contracted Services,13-Sep-22,636.48,Community Care Options#3
Bolton MBC,Adult Services,AD26331,Clients Aids & Adaptations,23-Sep-22,636.00,G & S Smirthwaite Limited#Smirthwaite Ltd
Bolton MBC,Adult Services,AD22120,Contracted Services,08-Sep-22,632.00,SEA Recruitment Services Limited
Bolton MBC,Adult Services,AD22120,Contracted Services,06-Sep-22,628.06,Dignity in Life Ltd#DIL Foundation
Bolton MBC,Adult Services,AD23144,Contracted Services,09-Sep-22,626.53,Recovery Support Ltd
Bolton MBC,Adult Services,AD23144,Contracted Services,09-Sep-22,624.71,Recovery Support Ltd
Bolton MBC,Adult Services,AD22120,Contracted Services,01-Sep-22,611.52,Orchid Home Care Support
Bolton MBC,Adult Services,AD23144,Contracted Services,28-Sep-22,605.90,The Local Care Company (Bolton) Limited
Bolton MBC,Adult Services,AD23144,Contracted Services,09-Sep-22,601.90,Recovery Support Ltd
Bolton MBC,Adult Services,AD23144,Contracted Services,01-Sep-22,599.76,Orchid Home Care Support
Bolton MBC,Adult Services,AD22120,Contracted Services,01-Sep-22,596.14,Dignity in Life Ltd#DIL Foundation
Bolton MBC,Adult Services,AD22120,Contracted Services,06-Sep-22,593.71,Dignity in Life Ltd#DIL Foundation
Bolton MBC,Adult Services,AD41408,Agency Staff - Other,09-Sep-22,592.59,Reed#Reed Specialist Recruitment Limited
Bolton MBC,Adult Services,AD23112,Contracted Services,23-Sep-22,590.00,Oswald House
Bolton MBC,Adult Services,AD23144,Contracted Services,09-Sep-22,589.54,Recovery Support Ltd
Bolton MBC,Adult Services,AD23112,Client Support Costs,01-Sep-22,586.00,D C S Cleaning Services
Bolton MBC,Adult Services,AD23144,Contracted Services,01-Sep-22,585.59,Alternative Futures Group
Bolton MBC,Adult Services,AD22120,Contracted Services,09-Sep-22,579.98,Recovery Support Ltd
Bolton MBC,Adult Services,AD26331,Clients Aids & Adaptations,20-Sep-22,578.64,NRS Healthcare#Nottingham Rehab Limited
Bolton MBC,Adult Services,AD23144,Contracted Services,09-Sep-22,578.54,Recovery Support Ltd
Bolton MBC,Adult Services,AD22120,Contracted Services,01-Sep-22,570.36,Orchid Home Care Support
Bolton MBC,Adult Services,AD22120,Contracted Services,06-Sep-22,564.83,Dignity in Life Ltd#DIL Foundation
Bolton MBC,Adult Services,AD22220,Contracted Services,01-Sep-22,564.48,Yasnad Ltd t/a Bluebird Care Bury
Bolton MBC,Adult Services,AD26503,Other Clients Services,01-Sep-22,562.00,Medical Response Services Limited
Bolton MBC,Adult Services,AD23112,Client Support Costs,08-Sep-22,561.60,Homecare Haven Limited
Bolton MBC,Adult Services,AD26601,Agency Staff - Other,23-Sep-22,554.78,Reed#Reed Specialist Recruitment Limited
Bolton MBC,Adult Services,AD26601,Agency Staff - Other,16-Sep-22,554.78,Reed#Reed Specialist Recruitment Limited
Bolton MBC,Adult Services,AD26601,Agency Staff - Other,02-Sep-22,554.78,Reed#Reed Specialist Recruitment Limited
Bolton MBC,Adult Services,AD26601,Agency Staff - Other,09-Sep-22,554.78,Reed#Reed Specialist Recruitment Limited
Bolton MBC,Adult Services,AD22120,Contracted Services,01-Sep-22,548.11,Dignity in Life Ltd#DIL Foundation
Bolton MBC,Adult Services,AD26331,Clients Aids & Adaptations,14-Sep-22,542.24,Harvest Healthcare Limited
Bolton MBC,Adult Services,AD23144,Contracted Services,09-Sep-22,536.79,Recovery Support Ltd
Bolton MBC,Adult Services,AD10112,Agency Staff - Other,16-Sep-22,533.18,Reed#Reed Specialist Recruitment Limited
Bolton MBC,Adult Services,AD22220,Contracted Services,01-Sep-22,524.16,Community Care Options#3
Bolton MBC,Adult Services,AD10112,Agency Staff - Other,23-Sep-22,520.48,Reed#Reed Specialist Recruitment Limited
Bolton MBC,Adult Services,AD23144,Contracted Services,01-Sep-22,520.38,Orchid Home Care Support
Bolton MBC,Adult Services,AD23144,Contracted Services,02-Sep-22,520.20,Bolton New Care Limited T/A Home Instead Senior Care
Bolton MBC,Adult Services,AD26602,Other Agency/Contracted Services,01-Sep-22,520.00,Advocacy Focus
Bolton MBC,Adult Services,AD26601,Agency Staff - Other,23-Sep-22,519.08,Reed#Reed Specialist Recruitment Limited
Bolton MBC,Adult Services,AD23144,Contracted Services,09-Sep-22,517.01,Recovery Support Ltd
Bolton MBC,Adult Services,AD23144,Contracted Services,09-Sep-22,517.01,Recovery Support Ltd
Bolton MBC,Adult Services,AD23144,Contracted Services,09-Sep-22,515.47,Recovery Support Ltd
Bolton MBC,Adult Services,AD26331,Clients Aids & Adaptations,09-Sep-22,515.00,Drive Devilbiss Healthcare Limited
Bolton MBC,Adult Services,AD22120,Contracted Services,05-Sep-22,514.80,Eden Care Support Services Ltd
Bolton MBC,Adult Services,AD22120,Contracted Services,19-Sep-22,514.80,Eden Care Support Services Ltd
Bolton MBC,Adult Services,AD26331,Clients Aids & Adaptations,08-Sep-22,514.74,Tom Gallagher Limited
Bolton MBC,Adult Services,AD41403,Rent of Storage Facilities,01-Sep-22,513.12,Oasis UK#OASIS Group
Bolton MBC,Adult Services,AD22120,Contracted Services,06-Sep-22,509.20,Dignity in Life Ltd#DIL Foundation
Bolton MBC,Adult Services,AD23144,Contracted Services,09-Sep-22,509.15,Recovery Support Ltd
Bolton MBC,Adult Services,AD10112,Operational Equipment Rental,05-Sep-22,508.57,Robertson Facilities Management Limited
Bolton MBC,Adult Services,AD26331,Clients Aids & Adaptations,01-Sep-22,507.48,Prism Medical UK
Bolton MBC,Adult Services,AD23144,Contracted Services,09-Sep-22,506.20,Recovery Support Ltd
Bolton MBC,Adult Services,AD23144,Contracted Services,09-Sep-22,506.00,Recovery Support Ltd
Bolton MBC,Adult Services,AD23144,Contracted Services,06-Sep-22,502.51,Dignity in Life Ltd#DIL Foundation
Bolton MBC,Adult Services,AD10112,Agency Staff - Other,02-Sep-22,500.47,Reed#Reed Specialist Recruitment Limited
Bolton MBC,Chief Executives,CX56108,Private Contracted Services,21-Sep-22,"1,000,000.00",Wonde Limited
Bolton MBC,Chief Executives,CXZ5060,Crompton Place,01-Sep-22,"281,553.52",AMAS Limited
Bolton MBC,Chief Executives,CX58210,Agilisys - Managed Service,02-Sep-22,"265,729.38",Agilisys Limited
Bolton MBC,Chief Executives,CX43010,Management Fee,06-Sep-22,"256,323.70",Robertson Facilities Management Limited
Bolton MBC,Chief Executives,CX43010,Management Fee,27-Sep-22,"256,323.70",Robertson Facilities Management Limited
Bolton MBC,Chief Executives,CX43010,Contracted Services,28-Sep-22,"177,129.61",Robertson Facilities Management Limited
Bolton MBC,Chief Executives,CX42000,Management Fee,01-Sep-22,"174,313.34",CH Bolton Limited
Bolton MBC,Chief Executives,CX43010,Contracted Services,01-Sep-22,"154,638.58",Robertson Facilities Management Limited
Bolton MBC,Chief Executives,CXZ9999,Work in Progress Additions,01-Sep-22,"98,493.08",Robertson Facilities Management Limited
Bolton MBC,Chief Executives,CX43005,Property Surveys,01-Sep-22,"88,737.50",Robertson Facilities Management Limited
Bolton MBC,Chief Executives,CX55300,Property Surveys,01-Sep-22,"88,737.50",Robertson Facilities Management Limited
Bolton MBC,Chief Executives,CX25020,Operational Equipment Purchase,16-Sep-22,"55,666.66",Trac Psychological
Bolton MBC,Chief Executives,CX24060,Marketing,01-Sep-22,"50,000.00",The ExcluSec Group Limited T/As ExcluSec Security
Bolton MBC,Chief Executives,CX43010,Planned Maintenance,01-Sep-22,"49,953.70",Robertson Capital Projects Limited
Bolton MBC,Chief Executives,CX43010,Planned Maintenance,01-Sep-22,"44,045.21",Robertson Capital Projects Limited
Bolton MBC,Chief Executives,CX43010,Management Fee,23-Sep-22,"38,918.64",Robertson Facilities Management Limited
Bolton MBC,Chief Executives,CX43001,Management Fees,01-Sep-22,"38,714.19",Robertson Capital Projects Limited
Bolton MBC,Chief Executives,CX23007,Contracted Services,01-Sep-22,"34,583.25",Citizens Advice Bury & Bolton
Bolton MBC,Chief Executives,CX58900,Computer Consumables,12-Sep-22,"30,254.66",Agilisys Limited
Bolton MBC,Chief Executives,CX58280,Agilisys - Data N/wk Line Rent,01-Sep-22,"28,019.00",Virgin Media Payments Limited#Virgin Media Business
Bolton MBC,Chief Executives,CX24065,Marketing,20-Sep-22,"22,383.75",The ExcluSec Group Limited T/As ExcluSec Security
Bolton MBC,Chief Executives,CX58900,Telephones -Direct Rental,21-Sep-22,"19,538.31",Agilisys Limited
Bolton MBC,Chief Executives,CX14001,Programmed Maint. Work,12-Sep-22,"19,269.37",Robertson Facilities Management Limited
Bolton MBC,Chief Executives,CX41000,Day To Day Maintenance,05-Sep-22,"16,353.35",Robertson Facilities Management Limited
Bolton MBC,Chief Executives,CX24060,Artistes Fees,17-Sep-22,"16,229.00",Dawn N Dusted Promotions/Live Music Consultant
Bolton MBC,Chief Executives,CX57500,Other Fees,01-Sep-22,"15,698.90",Jacobs Certificated Bailiffs#Jacobs
Bolton MBC,Chief Executives,CX21000,Other Recruitment Expenditure,01-Sep-22,"15,180.00",Disclosure and Barring Service
Bolton MBC,Chief Executives,CX24060,Marketing,01-Sep-22,"15,060.00",Wigan Pier Promotions#Limited
Bolton MBC,Chief Executives,CX58805,Inter Agency Fees,20-Sep-22,"14,437.50",KPMG LLP
Bolton MBC,Chief Executives,CX42000,Management Fee,05-Sep-22,"13,070.99",CH Bolton Limited
Bolton MBC,Chief Executives,CX43000,Management Fee,01-Sep-22,"12,576.30",Robertson Capital Projects Limited
Bolton MBC,Chief Executives,CX57500,Other Fees,20-Sep-22,"12,446.69",Jacobs Certificated Bailiffs#Jacobs
Bolton MBC,Chief Executives,CX43000,Management Fee,15-Sep-22,"12,360.00",Robertson Capital Projects Limited
Bolton MBC,Chief Executives,CX11000,Legal Fees,01-Sep-22,"10,114.92",Thomson Reuters (Professional) UK Limited#Practical Law Company Limited
Bolton MBC,Chief Executives,CX24060,Marketing,01-Sep-22,"9,975.00",Aquila Shelters Limited
Bolton MBC,Chief Executives,CX57500,Other Fees,26-Sep-22,"9,183.51",Jacobs Certificated Bailiffs#Jacobs
Bolton MBC,Chief Executives,CX43001,Other Agency/Contracted Services,01-Sep-22,"9,157.50",Robertson Capital Projects Limited
Bolton MBC,Chief Executives,CX21102,Vehicle Purchase,01-Sep-22,"8,894.30",Tusker
Bolton MBC,Chief Executives,CX57500,Other Fees,12-Sep-22,"8,783.83",Jacobs Certificated Bailiffs#Jacobs
Bolton MBC,Chief Executives,CX41000,Property Surveys,01-Sep-22,"8,723.50",Robertson Facilities Management Limited
Bolton MBC,Chief Executives,CX24060,Marketing,07-Sep-22,"8,245.69",C Horrocks & Sons Limited
Bolton MBC,Chief Executives,CX24060,Marketing,13-Sep-22,"7,012.50",Title Productions Limited
Bolton MBC,Chief Executives,CX43001,Other Agency/Contracted Services,15-Sep-22,"6,868.13",Robertson Capital Projects Limited
Bolton MBC,Chief Executives,CX57500,Other Fees,06-Sep-22,"6,732.08",Jacobs Certificated Bailiffs#Jacobs
Bolton MBC,Chief Executives,CX21102,Vehicle Purchase,01-Sep-22,"6,462.93",Tusker
Bolton MBC,Chief Executives,CX55302,Contracted Services,05-Sep-22,"6,435.00",IDOX Software Ltd
Bolton MBC,Chief Executives,CX24066,Promoting Events,14-Sep-22,"6,210.00",Roadvert Ltd
Bolton MBC,Chief Executives,CX21200,Corporate Training,16-Sep-22,"6,125.00",QA Limited
Bolton MBC,Chief Executives,CX21200,Corporate Training,16-Sep-22,"6,125.00",QA Limited
Bolton MBC,Chief Executives,CX24700,Promoting Events,27-Sep-22,"5,896.84",GS Concert Promotions Limited#GS Promotions.Co.Uk
Bolton MBC,Chief Executives,CX56700,Computer Software,01-Sep-22,"5,750.00",Ricoh UK Limited
Bolton MBC,Chief Executives,CX24060,Marketing,09-Sep-22,"5,650.60",Whitehouse Event Crockery#Whitehouse Crockery Hire Limited
Bolton MBC,Chief Executives,CX13101,Survey Fees,01-Sep-22,"5,578.09",Civica Election Services Limited
Bolton MBC,Chief Executives,CX13030,Recruitment Advertising,01-Sep-22,"5,550.00",GatenbySanderson
Bolton MBC,Chief Executives,CX24060,Marketing,06-Sep-22,"5,450.00",Space Stage Ltd
Bolton MBC,Chief Executives,CX24062,Promoting Events,01-Sep-22,"5,420.40",MK Illumination UK Ltd
Bolton MBC,Chief Executives,CX24060,Marketing,01-Sep-22,"5,402.00",Jonny Cocktail Events Limited
Bolton MBC,Chief Executives,CX42000,Operational Equipment Purchase,05-Sep-22,"5,217.07",CH Bolton Limited
Bolton MBC,Chief Executives,CX24060,Advertising General,15-Sep-22,"4,992.00",Transport For Greater Manchester
Bolton MBC,Chief Executives,CX21304,Inter Agency Fees,15-Sep-22,"4,646.33",Essa Academy
Bolton MBC,Chief Executives,CX24060,Marketing,07-Sep-22,"4,536.24",Event Services NW Limited
Bolton MBC,Chief Executives,CX41200,Day To Day Maintenance,05-Sep-22,"4,300.62",Robertson Facilities Management Limited
Bolton MBC,Chief Executives,CX21301,Health and Safety,01-Sep-22,"4,292.00",Working on Wellbeing Ltd T/A Optima Health
Bolton MBC,Chief Executives,CX13033,Legal Fees,01-Sep-22,"4,267.24",Iken Business Ltd
Bolton MBC,Chief Executives,CX13030,Recruitment Advertising,01-Sep-22,"4,095.00",GatenbySanderson
Bolton MBC,Chief Executives,CX57500,Staff Subsistence Expenses,27-Sep-22,"3,916.00",Capita Business Services Limited
Bolton MBC,Chief Executives,CX24060,Marketing,01-Sep-22,"3,888.00",Barringtons Cleaning Limited
Bolton MBC,Chief Executives,CX24065,Advertising General,23-Sep-22,"3,870.48",NLA Media Access Limited
Bolton MBC,Chief Executives,CX24060,Marketing,01-Sep-22,"3,650.00",Songsmith Records Ltd
Bolton MBC,Chief Executives,CX59600,Security Cash Collection,01-Sep-22,"3,556.69",Allpay.net Limited
Bolton MBC,Chief Executives,CX41200,Day To Day Maintenance,12-Sep-22,"3,525.25",Robertson Facilities Management Limited
Bolton MBC,Chief Executives,CX11000,Legal Fees,01-Sep-22,"3,505.48",Oasis UK#OASIS Group
Bolton MBC,Chief Executives,CX55300,External Audit Fees,19-Sep-22,"3,500.00",KPMG LLP
Bolton MBC,Chief Executives,CX42000,Day To Day Maintenance,21-Sep-22,"3,389.92",CH Bolton Limited
Bolton MBC,Chief Executives,CX57500,Staff Subsistence Expenses,27-Sep-22,"3,382.00",Capita Business Services Limited
Bolton MBC,Chief Executives,CX21110,Other Fees,01-Sep-22,"3,250.35",AVC Wise Limited
Bolton MBC,Chief Executives,CX43000,Agency Staff - Full-time,01-Sep-22,"3,175.00",Park Avenue Recruitment Limited
Bolton MBC,Chief Executives,CX43000,Agency Staff - Full-time,06-Sep-22,"3,175.00",Park Avenue Recruitment Limited
Bolton MBC,Chief Executives,CX43000,Agency Staff - Full-time,13-Sep-22,"3,175.00",Park Avenue Recruitment Limited
Bolton MBC,Chief Executives,CX43000,Agency Staff - Full-time,27-Sep-22,"3,175.00",Park Avenue Recruitment Limited
Bolton MBC,Chief Executives,CX24060,Marketing,01-Sep-22,"3,125.00",Lisha Limited
Bolton MBC,Chief Executives,CX41300,Electricity - General,20-Sep-22,"3,051.74",Scottish & Southern Energy plc#SSE
Bolton MBC,Chief Executives,CX24060,Marketing,01-Sep-22,"2,811.00",Impression (Bolton) Limited
Bolton MBC,Chief Executives,CX55316,Oracle Support,16-Sep-22,"2,784.38",Oracle Corporation UK Limited
Bolton MBC,Chief Executives,CX58900,Telephones -Direct Rental,21-Sep-22,"2,625.71",Agilisys Limited
Bolton MBC,Chief Executives,CX56100,Postages Direct Costs,01-Sep-22,"2,566.24",Royal Mail Group Limited
Bolton MBC,Chief Executives,CX43000,Agency Staff - Full-time,06-Sep-22,"2,540.00",Park Avenue Recruitment Limited
Bolton MBC,Chief Executives,CX13030,Recruitment Advertising,16-Sep-22,"2,457.00",GatenbySanderson
Bolton MBC,Chief Executives,CX24060,Marketing,01-Sep-22,"2,336.00",NB Colour Print Limited
Bolton MBC,Chief Executives,CX11000,Legal Fees,01-Sep-22,"2,331.00",Vivid Resourcing
Bolton MBC,Chief Executives,CX11000,Legal Fees,07-Sep-22,"2,331.00",Vivid Resourcing
Bolton MBC,Chief Executives,CX11000,Legal Fees,14-Sep-22,"2,331.00",Vivid Resourcing
Bolton MBC,Chief Executives,CX11000,Legal Fees,01-Sep-22,"2,294.00",Vivid Resourcing
Bolton MBC,Chief Executives,CX24060,Marketing,01-Sep-22,"2,272.50",Celebrate With Lisa Jane
Bolton MBC,Chief Executives,CXZ9999,Work in Progress Additions,01-Sep-22,"2,197.36",Robertson Facilities Management Limited
Bolton MBC,Chief Executives,CX24065,Marketing,20-Sep-22,"2,170.00",Showmed
Bolton MBC,Chief Executives,CX11000,Agency Staff - Other,23-Sep-22,"2,086.71",Reed#Reed Specialist Recruitment Limited
Bolton MBC,Chief Executives,CX57500,Postages Direct Costs,05-Sep-22,"2,086.35",Royal Mail Group Limited
Bolton MBC,Chief Executives,CX59600,Security Cash Collection,01-Sep-22,"2,067.23",Allpay.net Limited
Bolton MBC,Chief Executives,CX11000,Agency Staff - Other,02-Sep-22,"2,038.28",Reed#Reed Specialist Recruitment Limited
Bolton MBC,Chief Executives,CX11000,Agency Staff - Other,16-Sep-22,"2,016.27",Reed#Reed Specialist Recruitment Limited
Bolton MBC,Chief Executives,CX11000,Agency Staff - Other,16-Sep-22,"2,010.42",Reed#Reed Specialist Recruitment Limited
Bolton MBC,Chief Executives,CX26150,Operational Equipment Purchase,01-Sep-22,"2,000.00",Wolfpack Adventures Limited
Bolton MBC,Chief Executives,CX55300,General Subscriptions,15-Sep-22,"2,000.00",Pricewaterhousecoopers
Bolton MBC,Chief Executives,CX55316,Oracle Support,16-Sep-22,"1,995.00",Oracle Corporation UK Limited
Bolton MBC,Chief Executives,CX11000,Agency Staff - Other,02-Sep-22,"1,955.74",Reed#Reed Specialist Recruitment Limited
Bolton MBC,Chief Executives,CX24060,Marketing,09-Sep-22,"1,952.00",Whitehouse Event Crockery#Whitehouse Crockery Hire Limited
Bolton MBC,Chief Executives,CX11000,Legal Fees,01-Sep-22,"1,938.00",James Andrews Recruitment Solutions Limited
Bolton MBC,Chief Executives,CX40000,Other Fees,01-Sep-22,"1,930.50",Michelmores LLP
Bolton MBC,Chief Executives,CX40000,Day To Day Maintenance,05-Sep-22,"1,917.88",Robertson Facilities Management Limited
Bolton MBC,Chief Executives,CX21301,Health and Safety,01-Sep-22,"1,855.00",Working on Wellbeing Ltd T/A Optima Health
Bolton MBC,Chief Executives,CX11000,Agency Staff - Other,16-Sep-22,"1,841.02",Reed#Reed Specialist Recruitment Limited
Bolton MBC,Chief Executives,CX11000,Legal Fees,07-Sep-22,"1,836.00",James Andrews Recruitment Solutions Limited
Bolton MBC,Chief Executives,CX56700,Photocopying Lease/Maintenance,16-Sep-22,"1,799.00",NEC Software Solutions UK Limited
Bolton MBC,Chief Executives,CX11000,Agency Staff - Other,16-Sep-22,"1,782.00",Reed#Reed Specialist Recruitment Limited
Bolton MBC,Chief Executives,CX11000,Agency Staff - Other,09-Sep-22,"1,774.14",Reed#Reed Specialist Recruitment Limited
Bolton MBC,Chief Executives,CX56700,Photocopying Lease/Maintenance,15-Sep-22,"1,763.00",NEC Software Solutions UK Limited
Bolton MBC,Chief Executives,CX42000,Security Systems - Repairs,05-Sep-22,"1,758.54",CH Bolton Limited
Bolton MBC,Chief Executives,CX43000,Agency Staff - Other,02-Sep-22,"1,751.88",Reed#Reed Specialist Recruitment Limited
Bolton MBC,Chief Executives,CX43000,Agency Staff - Other,09-Sep-22,"1,751.88",Reed#Reed Specialist Recruitment Limited
Bolton MBC,Chief Executives,CX43000,Agency Staff - Other,16-Sep-22,"1,748.99",Reed#Reed Specialist Recruitment Limited
Bolton MBC,Chief Executives,CX58900,Telephones -Direct Rental,25-Sep-22,"1,745.63",BT Plc#ONEBILLPLUS
Bolton MBC,Chief Executives,CX11000,Agency Staff - Other,16-Sep-22,"1,744.34",Reed#Reed Specialist Recruitment Limited
Bolton MBC,Chief Executives,CX11000,Agency Staff - Other,23-Sep-22,"1,743.32",Reed#Reed Specialist Recruitment Limited
Bolton MBC,Chief Executives,CX24060,Marketing,01-Sep-22,"1,716.00",Gator Hire UK Limited
Bolton MBC,Chief Executives,CX43005,Legal Fees,01-Sep-22,"1,662.00",Geldards LLP
Bolton MBC,Chief Executives,CX58900,Mobile Telephone Rental,01-Sep-22,"1,639.72",Vodafone Limited
Bolton MBC,Chief Executives,CX13030,Recruitment Advertising,23-Sep-22,"1,638.00",GatenbySanderson
Bolton MBC,Chief Executives,CX11000,Agency Staff - Other,23-Sep-22,"1,635.88",Reed#Reed Specialist Recruitment Limited
Bolton MBC,Chief Executives,CX24060,Marketing,01-Sep-22,"1,625.00",Wigan Pier Promotions#Limited
Bolton MBC,Chief Executives,CX43010,Planned Maintenance,01-Sep-22,"1,606.08",Robertson Facilities Management Limited
Bolton MBC,Chief Executives,CX11000,Agency Staff - Other,16-Sep-22,"1,584.84",Reed#Reed Specialist Recruitment Limited
Bolton MBC,Chief Executives,CX11000,Agency Staff - Other,02-Sep-22,"1,584.84",Reed#Reed Specialist Recruitment Limited
Bolton MBC,Chief Executives,CX57500,Postages Direct Costs,19-Sep-22,"1,578.69",Royal Mail Group Limited
Bolton MBC,Chief Executives,CX11000,Agency Staff - Other,02-Sep-22,"1,577.33",Reed#Reed Specialist Recruitment Limited
Bolton MBC,Chief Executives,CX59600,Telephones -Direct Rental,25-Sep-22,"1,555.79",BT Plc#ONEBILLPLUS
Bolton MBC,Chief Executives,CX13101,Survey Fees,01-Sep-22,"1,541.28",Royal Mail Group Limited
Bolton MBC,Chief Executives,CX55300,Finance Charges,13-Sep-22,"1,520.84",BPP Professional Education Limited
Bolton MBC,Chief Executives,CX56700,Office Stationery,08-Sep-22,"1,512.00",Quadient UK Ltd#Finance
Bolton MBC,Chief Executives,CX40000,Legal Fees,01-Sep-22,"1,509.00",Freeths LLP
Bolton MBC,Chief Executives,CX26010,Contracted Services,01-Sep-22,"1,500.00",Isaac Butterworth (Ironfounders) Limited
Bolton MBC,Chief Executives,CX11000,Agency Staff - Other,09-Sep-22,"1,489.71",Reed#Reed Specialist Recruitment Limited
Bolton MBC,Chief Executives,CX11000,Agency Staff - Other,16-Sep-22,"1,488.61",Reed#Reed Specialist Recruitment Limited
Bolton MBC,Chief Executives,CX11000,Agency Staff - Other,23-Sep-22,"1,482.36",Reed#Reed Specialist Recruitment Limited
Bolton MBC,Chief Executives,CX11000,Agency Staff - Other,16-Sep-22,"1,481.74",Reed#Reed Specialist Recruitment Limited
Bolton MBC,Chief Executives,CX11000,Legal Fees,01-Sep-22,"1,445.18",James Andrews Recruitment Solutions Limited
Bolton MBC,Chief Executives,CX11000,Agency Staff - Other,23-Sep-22,"1,433.94",Reed#Reed Specialist Recruitment Limited
Bolton MBC,Chief Executives,CX11000,Agency Staff - Other,09-Sep-22,"1,426.36",Reed#Reed Specialist Recruitment Limited
Bolton MBC,Chief Executives,CX11000,Agency Staff - Other,16-Sep-22,"1,398.09",Reed#Reed Specialist Recruitment Limited
Bolton MBC,Chief Executives,CX41200,Day To Day Maintenance,05-Sep-22,"1,374.00",Robertson Facilities Management Limited
Bolton MBC,Chief Executives,CX21103,Cycle Purchase,26-Sep-22,"1,332.50",Cyclescheme.co.uk
Bolton MBC,Chief Executives,CX24065,Marketing,01-Sep-22,"1,320.66",Bright Interactive Limited
Bolton MBC,Chief Executives,CXZ9999,Work in Progress Additions,01-Sep-22,"1,308.00",Robertson Facilities Management Limited
Bolton MBC,Chief Executives,CX59500,Information and Communication Technology,01-Sep-22,"1,304.48",Allied Publicity Services (Manchester) Limited t/a APS Group
Bolton MBC,Chief Executives,CX11000,Agency Staff - Other,23-Sep-22,"1,304.42",Reed#Reed Specialist Recruitment Limited
Bolton MBC,Chief Executives,CX11000,Agency Staff - Other,02-Sep-22,"1,304.42",Reed#Reed Specialist Recruitment Limited
Bolton MBC,Chief Executives,CX57500,Postages Direct Costs,12-Sep-22,"1,302.69",Royal Mail Group Limited
Bolton MBC,Chief Executives,CX11000,Agency Staff - Other,16-Sep-22,"1,293.73",Reed#Reed Specialist Recruitment Limited
Bolton MBC,Chief Executives,CX56700,Office Stationery,01-Sep-22,"1,290.00",Quadient UK Ltd#Finance
Bolton MBC,Chief Executives,CX56700,Office Stationery,01-Sep-22,"1,290.00",Quadient UK Ltd#Finance
Bolton MBC,Chief Executives,CX11000,Agency Staff - Other,02-Sep-22,"1,286.60",Reed#Reed Specialist Recruitment Limited
Bolton MBC,Chief Executives,CX42000,Water Charges - Metered,10-Sep-22,"1,270.06",Anglian Water Business (National) Ltd Trading As Wave
Bolton MBC,Chief Executives,CX11000,Legal Fees,01-Sep-22,"1,260.00",Vivid Resourcing
Bolton MBC,Chief Executives,CX57500,Postages Direct Costs,01-Sep-22,"1,225.66",Royal Mail Group Limited
Bolton MBC,Chief Executives,CX24060,Marketing,02-Sep-22,"1,224.00",Photography By Luke
Bolton MBC,Chief Executives,CX11000,Agency Staff - Other,09-Sep-22,"1,207.15",Reed#Reed Specialist Recruitment Limited
Bolton MBC,Chief Executives,CX24060,Marketing,05-Sep-22,"1,200.00",Sushma Snacks
Bolton MBC,Chief Executives,CX40000,Reactive Maintenance,01-Sep-22,"1,200.00",Mantank Environmental Services Limited
Bolton MBC,Chief Executives,CX23004,Inter Agency Fees,27-Sep-22,"1,197.94",Bloom Procurement Services Limited
Bolton MBC,Chief Executives,CX57610,Postages Direct Costs,12-Sep-22,"1,159.99",Royal Mail Group Limited
Bolton MBC,Chief Executives,CX11000,Agency Staff - Other,02-Sep-22,"1,153.99",Reed#Reed Specialist Recruitment Limited
Bolton MBC,Chief Executives,CX11000,Agency Staff - Other,23-Sep-22,"1,150.34",Reed#Reed Specialist Recruitment Limited
Bolton MBC,Chief Executives,CX58977,Office Stationery,05-Sep-22,"1,147.80",Banner Group Limited
Bolton MBC,Chief Executives,CX11000,Agency Staff - Other,09-Sep-22,"1,133.35",Reed#Reed Specialist Recruitment Limited
Bolton MBC,Chief Executives,CX46006,Buildings Service Charge,01-Sep-22,"1,123.38",Colliers International Property Consultants Limited#Colliers International
Bolton MBC,Chief Executives,CX11000,Agency Staff - Other,23-Sep-22,"1,123.26",Reed#Reed Specialist Recruitment Limited
Bolton MBC,Chief Executives,CX40000,Consultancy Fees,05-Sep-22,"1,087.75",Robertson Facilities Management Limited
Bolton MBC,Chief Executives,CX24060,Promoting Events,01-Sep-22,"1,070.00",Road Safety Services Ltd
Bolton MBC,Chief Executives,CX46006,Buildings Service Charge,01-Sep-22,"1,054.50",Colliers International Property Consultants Limited#Colliers International
Bolton MBC,Chief Executives,CX11000,Legal Fees,01-Sep-22,"1,050.00",James Andrews Recruitment Solutions Limited
Bolton MBC,Chief Executives,CX11000,Legal Fees,07-Sep-22,"1,050.00",James Andrews Recruitment Solutions Limited
Bolton MBC,Chief Executives,CX55300,Agency Staff - Full-time,01-Sep-22,"1,048.95",Castlefield Recruitment Limited
Bolton MBC,Chief Executives,CX55300,Other Agency/Contracted Services,01-Sep-22,"1,048.58",Robert Half Limited
Bolton MBC,Chief Executives,CX55300,Other Agency/Contracted Services,15-Sep-22,"1,048.58",Robert Half Limited
Bolton MBC,Chief Executives,CX59600,Telephones -Direct Rental,25-Sep-22,"1,028.19",BT Plc#ONEBILLPLUS
Bolton MBC,Chief Executives,CX11000,Legal Fees,14-Sep-22,"1,020.00",James Andrews Recruitment Solutions Limited
Bolton MBC,Chief Executives,CX21301,Health and Safety,01-Sep-22,"1,015.00",Working on Wellbeing Ltd T/A Optima Health
Bolton MBC,Chief Executives,CX56100,Computer Purchase,01-Sep-22,"1,000.00",IEG4 Ltd
Bolton MBC,Chief Executives,CX11000,Legal Fees,07-Sep-22,993.60,Newsquest Media Group
Bolton MBC,Chief Executives,CX11000,Agency Staff - Other,09-Sep-22,983.85,Reed#Reed Specialist Recruitment Limited
Bolton MBC,Chief Executives,CX21301,Health and Safety,01-Sep-22,980.00,Working on Wellbeing Ltd T/A Optima Health
Bolton MBC,Chief Executives,CX11000,Agency Staff - Other,09-Sep-22,969.41,Reed#Reed Specialist Recruitment Limited
Bolton MBC,Chief Executives,CX24000,Agency Staff - Other,09-Sep-22,959.42,Reed#Reed Specialist Recruitment Limited
Bolton MBC,Chief Executives,CX21102,Vehicle Purchase,01-Sep-22,954.46,Tusker
Bolton MBC,Chief Executives,CX21200,Corporate Training,01-Sep-22,950.00,LPS Law Limited
Bolton MBC,Chief Executives,CX13004,Agency Staff - Full-time,01-Sep-22,943.50,Venn Group Limited
Bolton MBC,Chief Executives,CX24060,Marketing,09-Sep-22,918.85,Whitehouse Event Crockery#Whitehouse Crockery Hire Limited
Bolton MBC,Chief Executives,CX56100,Legal Fees,05-Sep-22,900.00,Health & Community Limited
Bolton MBC,Chief Executives,CX11000,Agency Staff - Other,09-Sep-22,896.21,Reed#Reed Specialist Recruitment Limited
Bolton MBC,Chief Executives,CX56100,Postages Direct Costs,19-Sep-22,896.16,Royal Mail Group Limited
Bolton MBC,Chief Executives,CX21001,Agency Staff - Other,23-Sep-22,895.17,Reed#Reed Specialist Recruitment Limited
Bolton MBC,Chief Executives,CX21301,Health and Safety,01-Sep-22,888.00,Working on Wellbeing Ltd T/A Optima Health
Bolton MBC,Chief Executives,CX56102,Op Equip Furniture Purchase,30-Sep-22,860.19,Bolton Carpet Warehouse
Bolton MBC,Chief Executives,CX55300,Other Agency/Contracted Services,08-Sep-22,850.20,Robert Half Limited
Bolton MBC,Chief Executives,CX55300,Other Agency/Contracted Services,22-Sep-22,843.12,Robert Half Limited
Bolton MBC,Chief Executives,CX21103,Cycle Purchase,01-Sep-22,833.33,Cyclescheme.co.uk
Bolton MBC,Chief Executives,CX11000,Legal Fees,08-Sep-22,822.50,James Andrews Recruitment Solutions Limited
Bolton MBC,Chief Executives,CX21108,Contracted Services,01-Sep-22,818.10,The Midcounties Co-operative
Bolton MBC,Chief Executives,CX21001,Agency Staff - Other,16-Sep-22,807.52,Reed#Reed Specialist Recruitment Limited
Bolton MBC,Chief Executives,CX21108,Contracted Services,26-Sep-22,805.21,The Midcounties Co-operative
Bolton MBC,Chief Executives,CX11000,Legal Fees,21-Sep-22,788.28,James Andrews Recruitment Solutions Limited
Bolton MBC,Chief Executives,CX11000,Legal Fees,01-Sep-22,786.31,Oasis UK#OASIS Group
Bolton MBC,Chief Executives,CX24000,Agency Staff - Other,09-Sep-22,779.53,Reed#Reed Specialist Recruitment Limited
Bolton MBC,Chief Executives,CX24503,Agency Staff - Other,09-Sep-22,765.15,Reed#Reed Specialist Recruitment Limited
Bolton MBC,Chief Executives,CX24065,Marketing,20-Sep-22,760.00,Fenceline Barriers & Trackway Limited
Bolton MBC,Chief Executives,CX24060,Marketing,01-Sep-22,756.50,Bake and Roast Limited
Bolton MBC,Chief Executives,CX56700,Office Stationery,01-Sep-22,756.40,Quadient UK Ltd#Finance
Bolton MBC,Chief Executives,CX13033,Agency Staff - Other,23-Sep-22,733.27,Reed#Reed Specialist Recruitment Limited
Bolton MBC,Chief Executives,CX13033,Agency Staff - Other,16-Sep-22,733.27,Reed#Reed Specialist Recruitment Limited
Bolton MBC,Chief Executives,CX13033,Agency Staff - Other,02-Sep-22,733.27,Reed#Reed Specialist Recruitment Limited
Bolton MBC,Chief Executives,CX43005,Legal Fees,01-Sep-22,721.50,Geldards LLP
Bolton MBC,Chief Executives,CX24000,Agency Staff - Other,23-Sep-22,719.57,Reed#Reed Specialist Recruitment Limited
Bolton MBC,Chief Executives,CX21301,Health and Safety,01-Sep-22,706.56,People Asset Management Ltd
Bolton MBC,Chief Executives,CX21301,Health and Safety,01-Sep-22,700.00,Working on Wellbeing Ltd T/A Optima Health
Bolton MBC,Chief Executives,CX21001,Agency Staff - Other,09-Sep-22,694.75,Reed#Reed Specialist Recruitment Limited
Bolton MBC,Chief Executives,CX24060,Marketing,01-Sep-22,666.50,The ExcluSec Group Limited T/As ExcluSec Security
Bolton MBC,Chief Executives,CX21301,Health and Safety,01-Sep-22,666.00,Working on Wellbeing Ltd T/A Optima Health
Bolton MBC,Chief Executives,CX24060,Marketing,05-Sep-22,660.00,Lisha Limited
Bolton MBC,Chief Executives,CX21000,Other Recruitment Expenditure,01-Sep-22,646.50,Complete Background Screening Limited#CBS
Bolton MBC,Chief Executives,CX11000,Agency Staff - Other,09-Sep-22,645.28,Reed#Reed Specialist Recruitment Limited
Bolton MBC,Chief Executives,CX24100,Operational Equipment Purchase,22-Sep-22,640.00,Bolton Stone Restoration Ltd
Bolton MBC,Chief Executives,CX59500,Information and Communication Technology,26-Sep-22,632.40,Valtech Limited
Bolton MBC,Chief Executives,CX24060,Marketing,01-Sep-22,628.00,Whitehouse Event Crockery#Whitehouse Crockery Hire Limited
Bolton MBC,Chief Executives,CX21200,Corporate Training,15-Sep-22,620.00,TLC Learning Academy#Limited
Bolton MBC,Chief Executives,CX24060,Marketing,01-Sep-22,606.00,Impression (Bolton) Limited
Bolton MBC,Chief Executives,CX11000,Agency Staff - Other,02-Sep-22,599.84,Reed#Reed Specialist Recruitment Limited
Bolton MBC,Chief Executives,CX56100,Postages Direct Costs,12-Sep-22,594.87,Royal Mail Group Limited
Bolton MBC,Chief Executives,CX59600,Security Cash Collection,01-Sep-22,594.56,Allpay.net Limited
Bolton MBC,Chief Executives,CX13033,Agency Staff - Other,09-Sep-22,594.54,Reed#Reed Specialist Recruitment Limited
Bolton MBC,Chief Executives,CX24000,Agency Staff - Other,16-Sep-22,589.65,Reed#Reed Specialist Recruitment Limited
Bolton MBC,Chief Executives,CX24060,Promoting Events,01-Sep-22,589.18,Shorrock Trichem Limited - Washcraft#Powercare
Bolton MBC,Chief Executives,CX24503,Agency Staff - Other,23-Sep-22,586.85,Reed#Reed Specialist Recruitment Limited
Bolton MBC,Chief Executives,CX24503,Agency Staff - Other,16-Sep-22,586.85,Reed#Reed Specialist Recruitment Limited
Bolton MBC,Chief Executives,CX13030,Recruitment Advertising,01-Sep-22,575.00,GatenbySanderson
Bolton MBC,Chief Executives,CX24060,Marketing,07-Sep-22,575.00,Abstract Creative Screenprinting & Embroidery Limited
Bolton MBC,Chief Executives,CX24060,Marketing,08-Sep-22,565.00,Photography by Dominic Holden#Willowrange Limited
Bolton MBC,Chief Executives,CX11000,Agency Staff - Other,23-Sep-22,559.85,Reed#Reed Specialist Recruitment Limited
Bolton MBC,Chief Executives,CX11000,Agency Staff - Other,23-Sep-22,559.85,Reed#Reed Specialist Recruitment Limited
Bolton MBC,Chief Executives,CX11000,Agency Staff - Other,23-Sep-22,559.85,Reed#Reed Specialist Recruitment Limited
Bolton MBC,Chief Executives,CX11000,Agency Staff - Other,16-Sep-22,559.85,Reed#Reed Specialist Recruitment Limited
Bolton MBC,Chief Executives,CX11000,Agency Staff - Other,09-Sep-22,559.85,Reed#Reed Specialist Recruitment Limited
Bolton MBC,Chief Executives,CX56100,Postages Direct Costs,05-Sep-22,525.08,Royal Mail Group Limited
Bolton MBC,Chief Executives,CX21301,Health and Safety,01-Sep-22,525.00,Working on Wellbeing Ltd T/A Optima Health
Bolton MBC,Chief Executives,CX11000,Agency Staff - Other,23-Sep-22,522.60,Reed#Reed Specialist Recruitment Limited
Bolton MBC,Chief Executives,CX11000,Agency Staff - Other,16-Sep-22,522.60,Reed#Reed Specialist Recruitment Limited
Bolton MBC,Chief Executives,CX11000,Agency Staff - Other,02-Sep-22,522.60,Reed#Reed Specialist Recruitment Limited
Bolton MBC,Chief Executives,CX56108,Agency Staff - Other,23-Sep-22,518.65,Reed#Reed Specialist Recruitment Limited
Bolton MBC,Chief Executives,CX24060,Marketing,01-Sep-22,518.61,On-Site Kitchen Rentals Limited
Bolton MBC,Chief Executives,CX21301,Health and Safety,01-Sep-22,516.02,Working on Wellbeing Ltd T/A Optima Health
Bolton MBC,Chief Executives,CX21003,Agency Staff - Other,23-Sep-22,512.86,Reed#Reed Specialist Recruitment Limited
Bolton MBC,Chief Executives,CX21003,Agency Staff - Other,02-Sep-22,512.86,Reed#Reed Specialist Recruitment Limited
Bolton MBC,Chief Executives,CX21003,Agency Staff - Other,09-Sep-22,512.86,Reed#Reed Specialist Recruitment Limited
Bolton MBC,Chief Executives,CX55350,Agency Staff - Other,02-Sep-22,504.42,Reed#Reed Specialist Recruitment Limited
Bolton MBC,Chief Executives,CX55350,Agency Staff - Other,09-Sep-22,504.42,Reed#Reed Specialist Recruitment Limited
Bolton MBC,Chief Executives,CX59500,Information and Communication Technology,01-Sep-22,503.16,D A Languages Limited
Bolton MBC,Chief Executives,CX56102,Op Equip Furniture Purchase,19-Sep-22,502.25,Bolton Carpet Warehouse
Bolton MBC,Childrens Services,CH43689,Contracted Services,15-Sep-22,"70,000.00",Adullam Housing Association Limited#Homes
Bolton MBC,Childrens Services,CH30020,Vol Assoc Grants - General,01-Sep-22,"68,807.94",Protective Care Group
Bolton MBC,Childrens Services,CH43689,Contracted Services,15-Sep-22,"37,386.00",Adullam Housing Association Limited#Homes
Bolton MBC,Childrens Services,CH43689,Contracted Services,15-Sep-22,"29,856.00",Adullam Housing Association Limited#Homes
Bolton MBC,Childrens Services,CH30020,Vol Assoc Grants - General,01-Sep-22,"26,667.75",Bryn Melyn Care Ltd
Bolton MBC,Childrens Services,CH30020,Vol Assoc Grants - General,15-Sep-22,"25,807.50",Bryn Melyn Care Ltd
Bolton MBC,Childrens Services,CH30020,Vol Assoc Grants - General,01-Sep-22,"25,685.71",4 Pure Heart Limited
Bolton MBC,Childrens Services,CH30020,Vol Assoc Grants - General,07-Sep-22,"25,623.57",AMJ Support Services Ltd
Bolton MBC,Childrens Services,CH43130,Computer Leases,20-Sep-22,"25,500.00",Cornerstone Training And Support Limited
Bolton MBC,Childrens Services,CH30020,Vol Assoc Grants - General,27-Sep-22,"24,797.10",AMJ Support Services Ltd
Bolton MBC,Childrens Services,CH31035,Inter Agency Fees,01-Sep-22,"24,556.00",Caritas Care Ltd
Bolton MBC,Childrens Services,CH30020,Vol Assoc Grants - General,01-Sep-22,"23,310.00",Next Stage 4 Life Limited
Bolton MBC,Childrens Services,CH30020,Vol Assoc Grants - General,01-Sep-22,"23,310.00",Next Stage 4 Life Limited
Bolton MBC,Childrens Services,CH30020,Vol Assoc Grants - General,01-Sep-22,"21,567.32",Care 4 Every Child Limited
Bolton MBC,Childrens Services,CH30020,Vol Assoc Grants - General,01-Sep-22,"21,567.01",Care 4 Every Child Limited
Bolton MBC,Childrens Services,CH30020,Vol Assoc Grants - General,01-Sep-22,"21,214.29",New Start Childcare#New Start
Bolton MBC,Childrens Services,CH84900,Other Fees,01-Sep-22,"21,092.00",Alkemygold Limited
Bolton MBC,Childrens Services,CH30020,Vol Assoc Grants - General,01-Sep-22,"21,027.23",Care 4 Every Child Limited
Bolton MBC,Childrens Services,CH30020,Vol Assoc Grants - General,18-Sep-22,"20,125.76",Common Thread Limited
Bolton MBC,Childrens Services,CH30020,Vol Assoc Grants - General,18-Sep-22,"20,125.76",Common Thread Limited
Bolton MBC,Childrens Services,CH30020,Vol Assoc Grants - General,01-Sep-22,"19,928.57",4 Pure Heart Limited
Bolton MBC,Childrens Services,CH30020,Vol Assoc Grants - General,01-Sep-22,"19,285.80",Cambian Childcare Limited
Bolton MBC,Childrens Services,CH30020,Vol Assoc Grants - General,01-Sep-22,"19,200.02",Social Care Services Group
Bolton MBC,Childrens Services,CH30020,Vol Assoc Grants - General,01-Sep-22,"19,130.00",Oakfield Psychological Services Limited
Bolton MBC,Childrens Services,CH30020,Vol Assoc Grants - General,08-Sep-22,"19,130.00",Oakfield Psychological Services Limited
Bolton MBC,Childrens Services,CH30020,Vol Assoc Grants - General,19-Sep-22,"19,130.00",Oakfield Psychological Services Limited
Bolton MBC,Childrens Services,CH30020,Vol Assoc Grants - General,01-Sep-22,"18,799.28",Progressive Care Limited
Bolton MBC,Childrens Services,CH30020,Vol Assoc Grants - General,01-Sep-22,"18,600.00",The Together Trust
Bolton MBC,Childrens Services,CH43167,Specialist Advice,01-Sep-22,"18,500.00",Closer Commissioning Limited
Bolton MBC,Childrens Services,CH30020,Vol Assoc Grants - General,01-Sep-22,"18,464.00",Common Thread Limited
Bolton MBC,Childrens Services,CH30020,Vol Assoc Grants - General,01-Sep-22,"18,464.00",Common Thread Limited
Bolton MBC,Childrens Services,CH30020,Vol Assoc Grants - General,01-Sep-22,"18,134.47",Cambian Childcare Limited
Bolton MBC,Childrens Services,CH30020,Vol Assoc Grants - General,13-Sep-22,"18,000.00",New Start Childcare#New Start
Bolton MBC,Childrens Services,CH30020,Vol Assoc Grants - General,01-Sep-22,"17,714.33",Pure Care Homes Limited
Bolton MBC,Childrens Services,CH30020,Vol Assoc Grants - General,01-Sep-22,"17,549.49",Cambian Childcare Limited
Bolton MBC,Childrens Services,CH30020,Vol Assoc Grants - General,20-Sep-22,"17,142.90",Pure Care Homes Limited
Bolton MBC,Childrens Services,CH30020,Vol Assoc Grants - General,01-Sep-22,"17,128.57",Paramount Childrens Services Limited
Bolton MBC,Childrens Services,CH43691,Contracted Services,08-Sep-22,"17,125.00",VoiceAbility
Bolton MBC,Childrens Services,CH30020,Vol Assoc Grants - General,01-Sep-22,"16,360.00",Keys PCE Limited#Keys Group
Bolton MBC,Childrens Services,CH30020,Vol Assoc Grants - General,26-Sep-22,"16,360.00",Keys PCE Limited#Keys Group
Bolton MBC,Childrens Services,CH30020,Vol Assoc Grants - General,01-Sep-22,"15,085.73",Social Care Services Group
Bolton MBC,Childrens Services,CH30020,Vol Assoc Grants - General,01-Sep-22,"14,100.00",Brookfield House
Bolton MBC,Childrens Services,CH30020,Vol Assoc Grants - General,01-Sep-22,"14,049.82",Safe Haven Accommodation
Bolton MBC,Childrens Services,CH30020,Vol Assoc Grants - General,01-Sep-22,"13,534.01",Care Today Childrens Services
Bolton MBC,Childrens Services,CH30020,Vol Assoc Grants - General,14-Sep-22,"12,750.00",Holistic Approach Limited
Bolton MBC,Childrens Services,CH30020,Vol Assoc Grants - General,14-Sep-22,"12,750.00",Holistic Approach Limited
Bolton MBC,Childrens Services,CH30020,Vol Assoc Grants - General,14-Sep-22,"12,750.00",Holistic Approach Limited
Bolton MBC,Childrens Services,CH30020,Vol Assoc Grants - General,14-Sep-22,"12,750.00",Holistic Approach Limited
Bolton MBC,Childrens Services,CH30020,Vol Assoc Grants - General,14-Sep-22,"12,750.00",Holistic Approach Limited
Bolton MBC,Childrens Services,CH30020,Vol Assoc Grants - General,07-Sep-22,"12,705.35",AMJ Support Services Ltd
Bolton MBC,Childrens Services,CH30020,Operational Equipment Purchase,06-Sep-22,"12,333.00",Great Places Housing Association
Bolton MBC,Childrens Services,CH30020,Vol Assoc Grants - General,14-Sep-22,"12,300.00",Holistic Approach Limited
Bolton MBC,Childrens Services,CH30020,Vol Assoc Grants - General,14-Sep-22,"12,300.00",Holistic Approach Limited
Bolton MBC,Childrens Services,CH30020,Vol Assoc Grants - General,05-Sep-22,"10,474.20",Companion Support Services Limited
Bolton MBC,Childrens Services,CH30020,Vol Assoc Grants - General,01-Sep-22,"9,517.00",National Offender Management Service
Bolton MBC,Childrens Services,CH30020,Vol Assoc Grants - General,01-Sep-22,"9,517.00",National Offender Management Service
Bolton MBC,Childrens Services,CH30020,Vol Assoc Grants - General,05-Sep-22,"9,317.73",Common Thread Limited
Bolton MBC,Childrens Services,CH30020,Vol Assoc Grants - General,05-Sep-22,"9,317.73",Common Thread Limited
Bolton MBC,Childrens Services,CH30020,Vol Assoc Grants - General,01-Sep-22,"9,290.00",Positive Care Solutions Ltd
Bolton MBC,Childrens Services,CH30020,Vol Assoc Grants - General,01-Sep-22,"9,290.00",Positive Care Solutions Ltd
Bolton MBC,Childrens Services,CH30020,Vol Assoc Grants - General,04-Sep-22,"9,290.00",Positive Care Solutions Ltd
Bolton MBC,Childrens Services,CH30020,Vol Assoc Grants - General,11-Sep-22,"9,290.00",Positive Care Solutions Ltd
Bolton MBC,Childrens Services,CH30020,Vol Assoc Grants - General,19-Sep-22,"9,290.00",Positive Care Solutions Ltd
Bolton MBC,Childrens Services,CH30020,Vol Assoc Grants - General,26-Sep-22,"9,290.00",Positive Care Solutions Ltd
Bolton MBC,Childrens Services,CH50000,Other Fees,12-Sep-22,"9,000.00",REDACTED - Personal Data
Bolton MBC,Childrens Services,CH30020,Vol Assoc Grants - General,05-Sep-22,"8,935.50",Companion Support Services Limited
Bolton MBC,Childrens Services,CH84900,Fees/Expenses Schools,12-Sep-22,"8,825.83",Low Wood Bay Resort & Spa#The Low Wood Hotel (1958) Ltd
Bolton MBC,Childrens Services,CH30020,Vol Assoc Grants - General,01-Sep-22,"8,592.50",West Yorkshire Future Support Limited
Bolton MBC,Childrens Services,CH30020,Vol Assoc Grants - General,09-Sep-22,"8,592.50",West Yorkshire Future Support Limited
Bolton MBC,Childrens Services,CH30020,Vol Assoc Grants - General,20-Sep-22,"8,592.50",West Yorkshire Future Support Limited
Bolton MBC,Childrens Services,CH30020,Vol Assoc Grants - General,23-Sep-22,"8,592.50",West Yorkshire Future Support Limited
Bolton MBC,Childrens Services,CH30020,Vol Assoc Grants - General,01-Sep-22,"8,142.50",West Yorkshire Future Support Limited
Bolton MBC,Childrens Services,CH30020,Vol Assoc Grants - General,01-Sep-22,"8,142.50",West Yorkshire Future Support Limited
Bolton MBC,Childrens Services,CH30020,Vol Assoc Grants - General,01-Sep-22,"8,142.50",West Yorkshire Future Support Limited
Bolton MBC,Childrens Services,CH30020,Vol Assoc Grants - General,05-Sep-22,"7,971.43",Companion Support Services Limited
Bolton MBC,Childrens Services,CH30020,Vol Assoc Grants - General,08-Sep-22,"7,840.00",Changes Support Limited
Bolton MBC,Childrens Services,CH43167,Specialist Advice,01-Sep-22,"7,750.00",Closer Commissioning Limited
Bolton MBC,Childrens Services,CH30020,Vol Assoc Grants - General,05-Sep-22,"7,714.16",Companion Support Services Limited
Bolton MBC,Childrens Services,CH43691,Contracted Services,01-Sep-22,"7,201.25",Fortalice Limited
Bolton MBC,Childrens Services,CH84324,Contracted Services,01-Sep-22,"7,200.00",ECM Education Consultants Ltd
Bolton MBC,Childrens Services,CH30020,Vol Assoc Grants - General,01-Sep-22,"7,019.79",Cambian Childcare Limited
Bolton MBC,Childrens Services,CH30020,Vol Assoc Grants - General,01-Sep-22,"6,930.67",Compass Fostering North Limited
Bolton MBC,Childrens Services,CH30020,Vol Assoc Grants - General,01-Sep-22,"6,857.10",Social Care Services Group
Bolton MBC,Childrens Services,CH30020,Vol Assoc Grants - General,05-Sep-22,"6,840.00","Next Stage ""A Way Forward"" Youth Development Limited"
Bolton MBC,Childrens Services,CH30020,Vol Assoc Grants - General,01-Sep-22,"6,750.00",Capstone Foster Care (North) Limited
Bolton MBC,Childrens Services,CH43668,Computer Purchase,20-Sep-22,"6,150.00",Stone Computers Limited
Bolton MBC,Childrens Services,CH30020,Vol Assoc Grants - General,01-Sep-22,"6,066.67",Access to Care Limited
Bolton MBC,Childrens Services,CH30020,Vol Assoc Grants - General,14-Sep-22,"6,001.50",Foster Care Associates Limited
Bolton MBC,Childrens Services,CH30020,Vol Assoc Grants - General,01-Sep-22,"5,735.00",Compass Fostering North Limited
Bolton MBC,Childrens Services,CH30020,Vol Assoc Grants - General,01-Sep-22,"5,686.29",CFS Care Limited
Bolton MBC,Childrens Services,CH30020,Vol Assoc Grants - General,01-Sep-22,"5,686.29",CFS Care Limited
Bolton MBC,Childrens Services,CH30020,Vol Assoc Grants - General,01-Sep-22,"5,600.00",Supreme Child Care Limited
Bolton MBC,Childrens Services,CH30020,Vol Assoc Grants - General,01-Sep-22,"5,600.00",Supreme Child Care Limited
Bolton MBC,Childrens Services,CH30020,Vol Assoc Grants - General,09-Sep-22,"5,600.00",Supreme Child Care Limited
Bolton MBC,Childrens Services,CH30020,Vol Assoc Grants - General,16-Sep-22,"5,600.00",Supreme Child Care Limited
Bolton MBC,Childrens Services,CH30020,Vol Assoc Grants - General,23-Sep-22,"5,600.00",Supreme Child Care Limited
Bolton MBC,Childrens Services,CH30020,Vol Assoc Grants - General,01-Sep-22,"5,600.00",Supreme Child Care Limited
Bolton MBC,Childrens Services,CH30020,Vol Assoc Grants - General,01-Sep-22,"5,600.00",Supreme Child Care Limited
Bolton MBC,Childrens Services,CH30020,Vol Assoc Grants - General,09-Sep-22,"5,600.00",Supreme Child Care Limited
Bolton MBC,Childrens Services,CH30020,Vol Assoc Grants - General,16-Sep-22,"5,600.00",Supreme Child Care Limited
Bolton MBC,Childrens Services,CH30020,Vol Assoc Grants - General,16-Sep-22,"5,600.00",Supreme Child Care Limited
Bolton MBC,Childrens Services,CH30020,Vol Assoc Grants - General,01-Sep-22,"5,561.42",Inicio Group Limited#The Pathway Group Limited
Bolton MBC,Childrens Services,CH30020,Vol Assoc Grants - General,01-Sep-22,"5,495.99",Parallel Parents
Bolton MBC,Childrens Services,CH30020,Vol Assoc Grants - General,01-Sep-22,"5,403.30",Parallel Parents
Bolton MBC,Childrens Services,CH30020,Vol Assoc Grants - General,01-Sep-22,"5,275.27",Inspire Community Services Limited
Bolton MBC,Childrens Services,CH30020,Vol Assoc Grants - General,08-Sep-22,"5,256.00",Prospero Group Limited
Bolton MBC,Childrens Services,CH30020,Vol Assoc Grants - General,01-Sep-22,"5,200.00",Access to Care Limited
Bolton MBC,Childrens Services,CH30020,Vol Assoc Grants - General,06-Sep-22,"5,142.90",Fostering Solutions Ltd#2
Bolton MBC,Childrens Services,CH30020,Vol Assoc Grants - General,14-Sep-22,"4,927.80",People Who Foster Limited
Bolton MBC,Childrens Services,CH30020,Vol Assoc Grants - General,01-Sep-22,"4,912.00",National Offender Management Service
Bolton MBC,Childrens Services,CH30020,Vol Assoc Grants - General,01-Sep-22,"4,832.16",Care Today Childrens Services
Bolton MBC,Childrens Services,CH30020,Vol Assoc Grants - General,05-Sep-22,"4,805.00","Next Stage ""A Way Forward"" Youth Development Limited"
Bolton MBC,Childrens Services,CH43668,Operational Equipment Purchase,26-Sep-22,"4,750.00",Virgin Media Payments Limited#Virgin Media Business
Bolton MBC,Childrens Services,CH30020,Vol Assoc Grants - General,01-Sep-22,"4,645.35",Olive Branch Fostering Limited
Bolton MBC,Childrens Services,CH30020,Vol Assoc Grants - General,01-Sep-22,"4,600.00",Pelican Care Group Limited
Bolton MBC,Childrens Services,CH30020,Vol Assoc Grants - General,01-Sep-22,"4,600.00",Pelican Care Group Limited
Bolton MBC,Childrens Services,CH30020,Vol Assoc Grants - General,01-Sep-22,"4,600.00",Pelican Care Group Limited
Bolton MBC,Childrens Services,CH30020,Vol Assoc Grants - General,08-Sep-22,"4,600.00",Pelican Care Group Limited
Bolton MBC,Childrens Services,CH30020,Vol Assoc Grants - General,15-Sep-22,"4,600.00",Pelican Care Group Limited
Bolton MBC,Childrens Services,CH30020,Vol Assoc Grants - General,22-Sep-22,"4,600.00",Pelican Care Group Limited
Bolton MBC,Childrens Services,CH30020,Vol Assoc Grants - General,14-Sep-22,"4,550.70",Foster Care Associates Limited
Bolton MBC,Childrens Services,CH30020,Vol Assoc Grants - General,01-Sep-22,"4,426.80",Inspire Community Services Limited
Bolton MBC,Childrens Services,CH30020,Vol Assoc Grants - General,01-Sep-22,"4,426.80",Inspire Community Services Limited
Bolton MBC,Childrens Services,CH30020,Vol Assoc Grants - General,01-Sep-22,"4,426.80",Inspire Community Services Limited
Bolton MBC,Childrens Services,CH30020,Vol Assoc Grants - General,01-Sep-22,"4,362.00",Inicio Group Limited#The Pathway Group Limited
Bolton MBC,Childrens Services,CH43110,Legal Fees,12-Sep-22,"4,353.40",Irwin Mitchell LLP
Bolton MBC,Childrens Services,CH30020,Vol Assoc Grants - General,14-Sep-22,"4,269.00",Foster Care Associates Limited
Bolton MBC,Childrens Services,CH30020,Vol Assoc Grants - General,14-Sep-22,"4,269.00",Foster Care Associates Limited
Bolton MBC,Childrens Services,CH43110,Legal Fees,13-Sep-22,"4,200.00",St Johns Buildings
Bolton MBC,Childrens Services,CH43128,Training Exps Tuition Fees,01-Sep-22,"4,200.00",Head Heart Hands In Practice Limited
Bolton MBC,Childrens Services,CH30020,Vol Assoc Grants - General,12-Sep-22,"4,182.00",Prospero Group Limited
Bolton MBC,Childrens Services,CH53000,Contracted Services,01-Sep-22,"4,150.00",Enhance EHC Ltd
Bolton MBC,Childrens Services,CH30020,Vol Assoc Grants - General,01-Sep-22,"4,132.80",Prospero Group Limited
Bolton MBC,Childrens Services,CH30020,Vol Assoc Grants - General,01-Sep-22,"4,128.64",Orange Grove Foster Care Limited
Bolton MBC,Childrens Services,CH30020,Vol Assoc Grants - General,01-Sep-22,"4,094.88",Cambian Childcare Limited
Bolton MBC,Childrens Services,CH43668,Operational Equipment Purchase,08-Sep-22,"4,025.00",Virgin Media Payments Limited#Virgin Media Business
Bolton MBC,Childrens Services,CH37116,Contracted Services,22-Sep-22,"4,000.00",Greater Manchester Mental Health NHS Foundation Trust
Bolton MBC,Childrens Services,CH30020,Vol Assoc Grants - General,01-Sep-22,"3,981.33",Olive Branch Fostering Limited
Bolton MBC,Childrens Services,CH30020,Vol Assoc Grants - General,01-Sep-22,"3,945.68",Olive Branch Fostering Limited
Bolton MBC,Childrens Services,CH30020,Vol Assoc Grants - General,01-Sep-22,"3,945.68",Olive Branch Fostering Limited
Bolton MBC,Childrens Services,CH30020,Vol Assoc Grants - General,01-Sep-22,"3,936.00",Prospero Group Limited
Bolton MBC,Childrens Services,CH30020,Vol Assoc Grants - General,22-Sep-22,"3,936.00",Prospero Group Limited
Bolton MBC,Childrens Services,CH30020,Vol Assoc Grants - General,01-Sep-22,"3,931.42",Parallel Parents
Bolton MBC,Childrens Services,CH30020,Vol Assoc Grants - General,01-Sep-22,"3,930.00",Nexus Fostering#Limited
Bolton MBC,Childrens Services,CH30020,Vol Assoc Grants - General,01-Sep-22,"3,930.00",Nexus Fostering#Limited
Bolton MBC,Childrens Services,CH30020,Vol Assoc Grants - General,01-Sep-22,"3,897.01",Fostering Limited
Bolton MBC,Childrens Services,CH43110,Agency Staff - Full-time,01-Sep-22,"3,875.00",Quickline Recruitment Limited
Bolton MBC,Childrens Services,CH43110,Agency Staff - Full-time,01-Sep-22,"3,875.00",Quickline Recruitment Limited
Bolton MBC,Childrens Services,CH43110,Agency Staff - Full-time,13-Sep-22,"3,875.00",Quickline Recruitment Limited
Bolton MBC,Childrens Services,CH30020,Vol Assoc Grants - General,01-Sep-22,"3,827.88",Parallel Parents
Bolton MBC,Childrens Services,CH30020,Vol Assoc Grants - General,01-Sep-22,"3,819.20",Fostering Limited
Bolton MBC,Childrens Services,CH30020,Vol Assoc Grants - General,01-Sep-22,"3,819.20",Fostering Limited
Bolton MBC,Childrens Services,CH30020,Vol Assoc Grants - General,01-Sep-22,"3,797.10",Orange Grove Foster Care Limited
Bolton MBC,Childrens Services,CH43689,Consultation Costs,28-Sep-22,"3,724.00",REDACTED - Personal Data
Bolton MBC,Childrens Services,CH30020,Vol Assoc Grants - General,06-Sep-22,"3,639.00",Fostering Solutions Ltd#2
Bolton MBC,Childrens Services,CH30020,Vol Assoc Grants - General,01-Sep-22,"3,621.11",Parallel Parents
Bolton MBC,Childrens Services,CH30020,Vol Assoc Grants - General,01-Sep-22,"3,604.33",Therapeutic Fostering Limited
Bolton MBC,Childrens Services,CH30020,Vol Assoc Grants - General,01-Sep-22,"3,594.72",Therapeutic Fostering Limited
Bolton MBC,Childrens Services,CH47000,Other Agency/Contracted Services,01-Sep-22,"3,475.88",NonStop Consulting Limited
Bolton MBC,Childrens Services,CH30020,Vol Assoc Grants - General,14-Sep-22,"3,439.51",Fostering People Limited
Bolton MBC,Childrens Services,CH30020,Vol Assoc Grants - General,01-Sep-22,"3,431.70",Parallel Parents
Bolton MBC,Childrens Services,CH30020,Vol Assoc Grants - General,01-Sep-22,"3,365.67",Compass Fostering North Limited
Bolton MBC,Childrens Services,CH30020,Vol Assoc Grants - General,15-Sep-22,"3,364.28",Indie 16 Limited
Bolton MBC,Childrens Services,CH30020,Vol Assoc Grants - General,01-Sep-22,"3,321.34",Your Chapter Limited
Bolton MBC,Childrens Services,CH30020,Vol Assoc Grants - General,01-Sep-22,"3,308.01",Olive Branch Fostering Limited
Bolton MBC,Childrens Services,CH30020,Vol Assoc Grants - General,01-Sep-22,"3,308.01",Olive Branch Fostering Limited
Bolton MBC,Childrens Services,CH30020,Vol Assoc Grants - General,14-Sep-22,"3,294.54",Foster Care Associates Limited
Bolton MBC,Childrens Services,CH30020,Vol Assoc Grants - General,14-Sep-22,"3,294.54",Foster Care Associates Limited
Bolton MBC,Childrens Services,CH30020,Vol Assoc Grants - General,14-Sep-22,"3,294.54",Foster Care Associates Limited
Bolton MBC,Childrens Services,CH30020,Vol Assoc Grants - General,01-Sep-22,"3,275.06",Lorimer Fostering
Bolton MBC,Childrens Services,CH43110,Agency Staff - Full-time,07-Sep-22,"3,268.05",Quickline Recruitment Limited
Bolton MBC,Childrens Services,CH56000,Transport Hire,16-Sep-22,"3,244.46",Wigan Council
Bolton MBC,Childrens Services,CH18926,Electricity - General,20-Sep-22,"3,204.57",Scottish & Southern Energy plc#SSE
Bolton MBC,Childrens Services,CH30020,Vol Assoc Grants - General,06-Sep-22,"3,201.39",Fostering Solutions Ltd#2
Bolton MBC,Childrens Services,CH30020,Vol Assoc Grants - General,01-Sep-22,"3,196.70",Therapeutic Fostering Limited
Bolton MBC,Childrens Services,CH30020,Vol Assoc Grants - General,01-Sep-22,"3,196.70",Therapeutic Fostering Limited
Bolton MBC,Childrens Services,CH30020,Vol Assoc Grants - General,12-Sep-22,"3,192.43",Barnardo's
Bolton MBC,Childrens Services,CH43110,Legal Fees,01-Sep-22,"3,187.50",St John's Buildings Barristers' Chambers
Bolton MBC,Childrens Services,CH30020,Vol Assoc Grants - General,06-Sep-22,"3,143.61",Fostering Solutions Ltd#2
Bolton MBC,Childrens Services,CH30020,Vol Assoc Grants - General,12-Sep-22,"3,114.73",Barnardo's
Bolton MBC,Childrens Services,CH30020,Vol Assoc Grants - General,06-Sep-22,"3,073.41",Fostering Solutions Ltd#2
Bolton MBC,Childrens Services,CH56000,Transport Hire,16-Sep-22,"3,057.28",Wigan Council
Bolton MBC,Childrens Services,CH30020,Vol Assoc Grants - General,06-Sep-22,"3,017.79",Fostering Solutions Ltd#2
Bolton MBC,Childrens Services,CH30020,Vol Assoc Grants - General,01-Sep-22,"3,000.00",Indie 16 Limited
Bolton MBC,Childrens Services,CH48000,Staff Subsistence Expenses,14-Sep-22,"2,934.60",Click Travel Limited
Bolton MBC,Childrens Services,CH50000,Other Fees,01-Sep-22,"2,829.00",Mark Hancock Limited
Bolton MBC,Childrens Services,CH30020,Vol Assoc Grants - General,01-Sep-22,"2,827.20",Three Circles Fostering Ltd
Bolton MBC,Childrens Services,CH30020,Vol Assoc Grants - General,01-Sep-22,"2,788.56",Social Care Services Group
Bolton MBC,Childrens Services,CH30020,Vol Assoc Grants - General,06-Sep-22,"2,738.61",Fostering Solutions Ltd#2
Bolton MBC,Childrens Services,CH30020,Vol Assoc Grants - General,06-Sep-22,"2,680.83",Fostering Solutions Ltd#2
Bolton MBC,Childrens Services,CH47000,Other Agency/Contracted Services,06-Sep-22,"2,671.32",NonStop Consulting Limited
Bolton MBC,Childrens Services,CH30020,Vol Assoc Grants - General,01-Sep-22,"2,571.44",Social Care Services Group
Bolton MBC,Childrens Services,CH48000,Other Clients Services,12-Sep-22,"2,550.00",Pass The Property Limited
Bolton MBC,Childrens Services,CH43110,Legal Fees,21-Sep-22,"2,510.60",Advanced Child Care Assessments Limited
Bolton MBC,Childrens Services,CH43668,Operational Equipment Maint,09-Sep-22,"2,504.11",Dell Corporation Ltd
Bolton MBC,Childrens Services,CH43692,Agency Staff - Full-time,14-Sep-22,"2,500.00",Vivid Resourcing
Bolton MBC,Childrens Services,CH43110,Legal Fees,20-Sep-22,"2,492.40",GLP Solicitors
Bolton MBC,Childrens Services,CH30020,Vol Assoc Grants - General,07-Sep-22,"2,459.10",AMJ Support Services Ltd
Bolton MBC,Childrens Services,CH43110,Legal Fees,01-Sep-22,"2,350.00",Nine St John Street
Bolton MBC,Childrens Services,CH31035,Inter Agency Fees,05-Sep-22,"2,214.33",Caritas Care Ltd
Bolton MBC,Childrens Services,CH31035,Inter Agency Fees,05-Sep-22,"2,214.33",Caritas Care Ltd
Bolton MBC,Childrens Services,CH30020,Vol Assoc Grants - General,01-Sep-22,"2,201.14",CFS Care Limited
Bolton MBC,Childrens Services,CH81000,Contract Cleaning,09-Sep-22,"2,142.48",Associated Cleaning Contractors#Champion Cleaning Services Ltd
Bolton MBC,Childrens Services,CH56000,Transport Hire,26-Sep-22,"2,079.00",Acorn Care & Education Limited
Bolton MBC,Childrens Services,CH43689,Computer Software Licences,01-Sep-22,"2,025.00",Access UK Limited
Bolton MBC,Childrens Services,CH43689,Agency Staff - Full-time,01-Sep-22,"2,000.00",Vivid Resourcing
Bolton MBC,Childrens Services,CH43689,Agency Staff - Full-time,14-Sep-22,"2,000.00",Vivid Resourcing
Bolton MBC,Childrens Services,CH43130,Other Fees,07-Sep-22,"2,000.00",REDACTED - Personal Data
Bolton MBC,Childrens Services,CH30020,Vol Assoc Grants - General,01-Sep-22,"1,995.00",West Yorkshire Future Support Limited
Bolton MBC,Childrens Services,CH43110,Legal Fees,01-Sep-22,"1,875.00",RTA Associates Limited
Bolton MBC,Childrens Services,CH43110,Legal Fees,22-Sep-22,"1,848.90",Advanced Child Care Assessments Limited
Bolton MBC,Childrens Services,CH43689,Agency Staff - Full-time,07-Sep-22,"1,800.00",Vivid Resourcing
Bolton MBC,Childrens Services,CH31034,Other Fees,01-Sep-22,"1,800.00",Newsquest Media Group
Bolton MBC,Childrens Services,CH84900,Miscellaneous Expenses,01-Sep-22,"1,800.00",JBL Education Limited
Bolton MBC,Childrens Services,CH48000,Agency Staff - Other,21-Sep-22,"1,780.20",Personnel Leasing Limited
Bolton MBC,Childrens Services,CH43685,Room Hire,15-Sep-22,"1,780.00",People's History Museum
Bolton MBC,Childrens Services,CH18937,Electricity - General,20-Sep-22,"1,775.95",Scottish & Southern Energy plc#SSE
Bolton MBC,Childrens Services,CH43692,Agency Staff - Full-time,07-Sep-22,"1,750.00",Vivid Resourcing
Bolton MBC,Childrens Services,CH34088,Electricity - General,20-Sep-22,"1,714.99",Scottish & Southern Energy plc#SSE
Bolton MBC,Childrens Services,CH48000,Agency Staff - Other,01-Sep-22,"1,712.25",Personnel Leasing Limited
Bolton MBC,Childrens Services,CH48000,Agency Staff - Other,01-Sep-22,"1,707.75",Personnel Leasing Limited
Bolton MBC,Childrens Services,CH48000,Agency Staff - Other,21-Sep-22,"1,701.45",Personnel Leasing Limited
Bolton MBC,Childrens Services,CH48000,Agency Staff - Other,20-Sep-22,"1,695.65",Personnel Leasing Limited
Bolton MBC,Childrens Services,CH48000,Agency Staff - Other,01-Sep-22,"1,690.20",Personnel Leasing Limited
Bolton MBC,Childrens Services,CH48000,Agency Staff - Other,01-Sep-22,"1,680.65",Personnel Leasing Limited
Bolton MBC,Childrens Services,CH48000,Agency Staff - Other,01-Sep-22,"1,665.00",Personnel Leasing Limited
Bolton MBC,Childrens Services,CH47000,Other Agency/Contracted Services,13-Sep-22,"1,659.45",NonStop Consulting Limited
Bolton MBC,Childrens Services,CH47000,Other Agency/Contracted Services,20-Sep-22,"1,659.45",NonStop Consulting Limited
Bolton MBC,Childrens Services,CH48000,Agency Staff - Other,01-Sep-22,"1,646.69",Quickline Recruitment Limited
Bolton MBC,Childrens Services,CH48000,Agency Staff - Other,13-Sep-22,"1,632.89",Quickline Recruitment Limited
Bolton MBC,Childrens Services,CH47000,Other Agency/Contracted Services,16-Sep-22,"1,631.58",Paradigm Professional Consultancy Limited#Network Ventures Limited
Bolton MBC,Childrens Services,CH47000,Other Agency/Contracted Services,01-Sep-22,"1,621.14",Paradigm Professional Consultancy Limited#Network Ventures Limited
Bolton MBC,Childrens Services,CH48000,Agency Staff - Other,13-Sep-22,"1,606.69",Quickline Recruitment Limited
Bolton MBC,Childrens Services,CH48000,Agency Staff - Other,01-Sep-22,"1,600.84",Quickline Recruitment Limited
Bolton MBC,Childrens Services,CH48000,Agency Staff - Other,20-Sep-22,"1,599.94",Quickline Recruitment Limited
Bolton MBC,Childrens Services,CH48000,Agency Staff - Other,01-Sep-22,"1,595.44",Quickline Recruitment Limited
Bolton MBC,Childrens Services,CH48000,Agency Staff - Other,01-Sep-22,"1,595.44",Quickline Recruitment Limited
Bolton MBC,Childrens Services,CH48000,Agency Staff - Other,20-Sep-22,"1,595.44",Quickline Recruitment Limited
Bolton MBC,Childrens Services,CH37112,Agency Staff - Other,23-Sep-22,"1,589.89",Reed#Reed Specialist Recruitment Limited
Bolton MBC,Childrens Services,CH37112,Agency Staff - Other,16-Sep-22,"1,589.89",Reed#Reed Specialist Recruitment Limited
Bolton MBC,Childrens Services,CH47000,Other Agency/Contracted Services,09-Sep-22,"1,585.68",Paradigm Professional Consultancy Limited#Network Ventures Limited
Bolton MBC,Childrens Services,CH37118,Agency Staff - Other,02-Sep-22,"1,573.61",Reed#Reed Specialist Recruitment Limited
Bolton MBC,Childrens Services,CH48000,Agency Staff - Other,01-Sep-22,"1,554.00",Eden Brown Synergy#Eden Brown Limited
Bolton MBC,Childrens Services,CH48000,Agency Staff - Other,02-Sep-22,"1,554.00",Eden Brown Synergy#Eden Brown Limited
Bolton MBC,Childrens Services,CH43110,Legal Fees,01-Sep-22,"1,550.00",St Johns Buildings
Bolton MBC,Childrens Services,CH30021,Operational Equipment Purchase,11-Sep-22,"1,525.00",Bolton Alarms#Limited
Bolton MBC,Childrens Services,CH26010,Contracted Services,08-Sep-22,"1,520.00",The Bereavement Cafe CIC
Bolton MBC,Childrens Services,CH37112,Agency Staff - Other,23-Sep-22,"1,508.05",Reed#Reed Specialist Recruitment Limited
Bolton MBC,Childrens Services,CH37112,Agency Staff - Other,16-Sep-22,"1,508.05",Reed#Reed Specialist Recruitment Limited
Bolton MBC,Childrens Services,CH37112,Agency Staff - Other,02-Sep-22,"1,508.05",Reed#Reed Specialist Recruitment Limited
Bolton MBC,Childrens Services,CH48000,Agency Staff - Other,16-Sep-22,"1,507.13",Reed#Reed Specialist Recruitment Limited
Bolton MBC,Childrens Services,CH43110,Legal Fees,20-Sep-22,"1,500.00",Deans Court Chambers
Bolton MBC,Childrens Services,CH48000,Agency Staff - Other,23-Sep-22,"1,497.02",Reed#Reed Specialist Recruitment Limited
Bolton MBC,Childrens Services,CH48000,Agency Staff - Other,23-Sep-22,"1,497.02",Reed#Reed Specialist Recruitment Limited
Bolton MBC,Childrens Services,CH48000,Agency Staff - Other,23-Sep-22,"1,497.02",Reed#Reed Specialist Recruitment Limited
Bolton MBC,Childrens Services,CH48000,Agency Staff - Other,23-Sep-22,"1,497.02",Reed#Reed Specialist Recruitment Limited
Bolton MBC,Childrens Services,CH48000,Agency Staff - Other,23-Sep-22,"1,497.02",Reed#Reed Specialist Recruitment Limited
Bolton MBC,Childrens Services,CH48000,Agency Staff - Other,23-Sep-22,"1,497.02",Reed#Reed Specialist Recruitment Limited
Bolton MBC,Childrens Services,CH48000,Agency Staff - Other,16-Sep-22,"1,497.02",Reed#Reed Specialist Recruitment Limited
Bolton MBC,Childrens Services,CH48000,Agency Staff - Other,16-Sep-22,"1,497.02",Reed#Reed Specialist Recruitment Limited
Bolton MBC,Childrens Services,CH48000,Agency Staff - Other,16-Sep-22,"1,497.02",Reed#Reed Specialist Recruitment Limited
Bolton MBC,Childrens Services,CH48000,Agency Staff - Other,02-Sep-22,"1,497.02",Reed#Reed Specialist Recruitment Limited
Bolton MBC,Childrens Services,CH48000,Agency Staff - Other,02-Sep-22,"1,497.02",Reed#Reed Specialist Recruitment Limited
Bolton MBC,Childrens Services,CH48000,Agency Staff - Other,02-Sep-22,"1,497.02",Reed#Reed Specialist Recruitment Limited
Bolton MBC,Childrens Services,CH48000,Agency Staff - Other,02-Sep-22,"1,497.02",Reed#Reed Specialist Recruitment Limited
Bolton MBC,Childrens Services,CH48000,Agency Staff - Other,02-Sep-22,"1,497.02",Reed#Reed Specialist Recruitment Limited
Bolton MBC,Childrens Services,CH48000,Agency Staff - Other,02-Sep-22,"1,497.02",Reed#Reed Specialist Recruitment Limited
Bolton MBC,Childrens Services,CH48000,Agency Staff - Other,09-Sep-22,"1,497.02",Reed#Reed Specialist Recruitment Limited
Bolton MBC,Childrens Services,CH48000,Agency Staff - Other,09-Sep-22,"1,497.02",Reed#Reed Specialist Recruitment Limited
Bolton MBC,Childrens Services,CH48000,Agency Staff - Other,23-Sep-22,"1,488.51",Reed#Reed Specialist Recruitment Limited
Bolton MBC,Childrens Services,CH48000,Agency Staff - Other,23-Sep-22,"1,488.51",Reed#Reed Specialist Recruitment Limited
Bolton MBC,Childrens Services,CH48000,Agency Staff - Other,23-Sep-22,"1,488.51",Reed#Reed Specialist Recruitment Limited
Bolton MBC,Childrens Services,CH47000,Agency Staff - Other,16-Sep-22,"1,482.00",Reed#Reed Specialist Recruitment Limited
Bolton MBC,Childrens Services,CH47000,Agency Staff - Other,09-Sep-22,"1,482.00",Reed#Reed Specialist Recruitment Limited
Bolton MBC,Childrens Services,CH47000,Agency Staff - Other,09-Sep-22,"1,482.00",Reed#Reed Specialist Recruitment Limited
Bolton MBC,Childrens Services,CH37118,Agency Staff - Other,16-Sep-22,"1,478.15",Reed#Reed Specialist Recruitment Limited
Bolton MBC,Childrens Services,CH80207,Contracted Services,01-Sep-22,"1,470.00",REDACTED - Personal Data
Bolton MBC,Childrens Services,CH47000,Agency Staff - Other,16-Sep-22,"1,462.24",Reed#Reed Specialist Recruitment Limited
Bolton MBC,Childrens Services,CH80203,Contracted Services,28-Sep-22,"1,450.00",Darby Pell Music Tuition
Bolton MBC,Childrens Services,CH37118,Agency Staff - Other,02-Sep-22,"1,438.20",Reed#Reed Specialist Recruitment Limited
Bolton MBC,Childrens Services,CH34086,Agency Staff - Other,23-Sep-22,"1,414.88",Reed#Reed Specialist Recruitment Limited
Bolton MBC,Childrens Services,CH34086,Agency Staff - Other,23-Sep-22,"1,403.78",Reed#Reed Specialist Recruitment Limited
Bolton MBC,Childrens Services,CH34086,Agency Staff - Other,23-Sep-22,"1,403.78",Reed#Reed Specialist Recruitment Limited
Bolton MBC,Childrens Services,CH34086,Agency Staff - Other,16-Sep-22,"1,403.78",Reed#Reed Specialist Recruitment Limited
Bolton MBC,Childrens Services,CH34086,Agency Staff - Other,16-Sep-22,"1,403.78",Reed#Reed Specialist Recruitment Limited
Bolton MBC,Childrens Services,CH34086,Agency Staff - Other,02-Sep-22,"1,403.78",Reed#Reed Specialist Recruitment Limited
Bolton MBC,Childrens Services,CH37118,Agency Staff - Other,23-Sep-22,"1,403.78",Reed#Reed Specialist Recruitment Limited
Bolton MBC,Childrens Services,CH37118,Agency Staff - Other,16-Sep-22,"1,403.78",Reed#Reed Specialist Recruitment Limited
Bolton MBC,Childrens Services,CH37118,Agency Staff - Other,02-Sep-22,"1,403.78",Reed#Reed Specialist Recruitment Limited
Bolton MBC,Childrens Services,CH49000,Agency Staff - Other,23-Sep-22,"1,403.78",Reed#Reed Specialist Recruitment Limited
Bolton MBC,Childrens Services,CH49000,Agency Staff - Other,23-Sep-22,"1,403.78",Reed#Reed Specialist Recruitment Limited
Bolton MBC,Childrens Services,CH49000,Agency Staff - Other,23-Sep-22,"1,403.78",Reed#Reed Specialist Recruitment Limited
Bolton MBC,Childrens Services,CH49000,Agency Staff - Other,16-Sep-22,"1,403.78",Reed#Reed Specialist Recruitment Limited
Bolton MBC,Childrens Services,CH49000,Agency Staff - Other,16-Sep-22,"1,403.78",Reed#Reed Specialist Recruitment Limited
Bolton MBC,Childrens Services,CH49000,Agency Staff - Other,16-Sep-22,"1,403.78",Reed#Reed Specialist Recruitment Limited
Bolton MBC,Childrens Services,CH49000,Agency Staff - Other,02-Sep-22,"1,403.78",Reed#Reed Specialist Recruitment Limited
Bolton MBC,Childrens Services,CH49000,Agency Staff - Other,02-Sep-22,"1,403.78",Reed#Reed Specialist Recruitment Limited
Bolton MBC,Childrens Services,CH49000,Agency Staff - Other,02-Sep-22,"1,403.78",Reed#Reed Specialist Recruitment Limited
Bolton MBC,Childrens Services,CH49000,Agency Staff - Other,09-Sep-22,"1,403.78",Reed#Reed Specialist Recruitment Limited
Bolton MBC,Childrens Services,CH49000,Agency Staff - Other,09-Sep-22,"1,403.78",Reed#Reed Specialist Recruitment Limited
Bolton MBC,Childrens Services,CH43668,Computer Purchase,15-Sep-22,"1,400.00",Stone Computers Limited
Bolton MBC,Childrens Services,CH37112,Agency Staff - Other,23-Sep-22,"1,396.31",Reed#Reed Specialist Recruitment Limited
Bolton MBC,Childrens Services,CH37112,Agency Staff - Other,23-Sep-22,"1,396.31",Reed#Reed Specialist Recruitment Limited
Bolton MBC,Childrens Services,CH37112,Agency Staff - Other,02-Sep-22,"1,396.31",Reed#Reed Specialist Recruitment Limited
Bolton MBC,Childrens Services,CH34086,Agency Staff - Other,02-Sep-22,"1,396.01",Reed#Reed Specialist Recruitment Limited
Bolton MBC,Childrens Services,CH37118,Agency Staff - Other,23-Sep-22,"1,396.01",Reed#Reed Specialist Recruitment Limited
Bolton MBC,Childrens Services,CH37118,Agency Staff - Other,16-Sep-22,"1,396.01",Reed#Reed Specialist Recruitment Limited
Bolton MBC,Childrens Services,CH37118,Agency Staff - Other,02-Sep-22,"1,396.01",Reed#Reed Specialist Recruitment Limited
Bolton MBC,Childrens Services,CH37118,Agency Staff - Other,02-Sep-22,"1,396.01",Reed#Reed Specialist Recruitment Limited
Bolton MBC,Childrens Services,CH37112,Agency Staff - Other,23-Sep-22,"1,388.61",Reed#Reed Specialist Recruitment Limited
Bolton MBC,Childrens Services,CH37112,Agency Staff - Other,23-Sep-22,"1,388.61",Reed#Reed Specialist Recruitment Limited
Bolton MBC,Childrens Services,CH37112,Agency Staff - Other,16-Sep-22,"1,388.61",Reed#Reed Specialist Recruitment Limited
Bolton MBC,Childrens Services,CH37112,Agency Staff - Other,02-Sep-22,"1,388.61",Reed#Reed Specialist Recruitment Limited
Bolton MBC,Childrens Services,CH80204,Clients Exam Fees,16-Sep-22,"1,387.50",Trinity College London
Bolton MBC,Childrens Services,CH30020,Vol Assoc Grants - General,25-Sep-22,"1,370.46",Indie 16 Limited
Bolton MBC,Childrens Services,CH48000,Agency Staff - Other,05-Sep-22,"1,356.80",Personnel Leasing Limited
Bolton MBC,Childrens Services,CH47000,Other Agency/Contracted Services,27-Sep-22,"1,347.81",NonStop Consulting Limited
Bolton MBC,Childrens Services,CH34086,Agency Staff - Other,16-Sep-22,"1,339.42",Reed#Reed Specialist Recruitment Limited
Bolton MBC,Childrens Services,CH48000,Agency Staff - Other,20-Sep-22,"1,332.00",Personnel Leasing Limited
Bolton MBC,Childrens Services,CH43600,Security Cash Collection,01-Sep-22,"1,322.50",Security Plus Limited
Bolton MBC,Childrens Services,CH48000,Agency Staff - Other,07-Sep-22,"1,313.85",Quickline Recruitment Limited
Bolton MBC,Childrens Services,CH47000,Other Agency/Contracted Services,02-Sep-22,"1,302.54",Paradigm Professional Consultancy Limited#Network Ventures Limited
Bolton MBC,Childrens Services,CH48000,Agency Staff - Other,09-Sep-22,"1,294.72",Reed#Reed Specialist Recruitment Limited
Bolton MBC,Childrens Services,CH48000,Agency Staff - Other,01-Sep-22,"1,293.60",Quickline Recruitment Limited
Bolton MBC,Childrens Services,CH48000,Agency Staff - Other,07-Sep-22,"1,293.60",Quickline Recruitment Limited
Bolton MBC,Childrens Services,CH37112,Agency Staff - Other,09-Sep-22,"1,289.10",Reed#Reed Specialist Recruitment Limited
Bolton MBC,Childrens Services,CH43600,Security Cash Collection,01-Sep-22,"1,288.00",Security Plus Limited
Bolton MBC,Childrens Services,CH43600,Security Cash Collection,01-Sep-22,"1,288.00",Security Plus Limited
Bolton MBC,Childrens Services,CH37118,Agency Staff - Other,16-Sep-22,"1,275.90",Reed#Reed Specialist Recruitment Limited
Bolton MBC,Childrens Services,CH37118,Agency Staff - Other,09-Sep-22,"1,275.90",Reed#Reed Specialist Recruitment Limited
Bolton MBC,Childrens Services,CH48000,Agency Staff - Other,01-Sep-22,"1,260.00",Eden Brown Synergy#Eden Brown Limited
Bolton MBC,Childrens Services,CH48000,Agency Staff - Other,07-Sep-22,"1,260.00",Eden Brown Synergy#Eden Brown Limited
Bolton MBC,Childrens Services,CH48000,Agency Staff - Other,09-Sep-22,"1,254.26",Reed#Reed Specialist Recruitment Limited
Bolton MBC,Childrens Services,CH43110,Legal Fees,01-Sep-22,"1,250.00",Spire Barristers
Bolton MBC,Childrens Services,CH53000,Contracted Services,01-Sep-22,"1,250.00",Permanent Futures Limited
Bolton MBC,Childrens Services,CH43110,Legal Fees,07-Sep-22,"1,250.00",Deans Court Chambers
Bolton MBC,Childrens Services,CH37112,Agency Staff - Other,09-Sep-22,"1,222.74",Reed#Reed Specialist Recruitment Limited
Bolton MBC,Childrens Services,CH34086,Agency Staff - Other,02-Sep-22,"1,214.08",Reed#Reed Specialist Recruitment Limited
Bolton MBC,Childrens Services,CH48000,Agency Staff - Other,09-Sep-22,"1,213.80",Reed#Reed Specialist Recruitment Limited
Bolton MBC,Childrens Services,CH48000,Agency Staff - Other,09-Sep-22,"1,213.80",Reed#Reed Specialist Recruitment Limited
Bolton MBC,Childrens Services,CH48000,Agency Staff - Other,09-Sep-22,"1,213.80",Reed#Reed Specialist Recruitment Limited
Bolton MBC,Childrens Services,CH48000,Agency Staff - Other,09-Sep-22,"1,213.80",Reed#Reed Specialist Recruitment Limited
Bolton MBC,Childrens Services,CH26202,Electricity - General,20-Sep-22,"1,212.04",Scottish & Southern Energy plc#SSE
Bolton MBC,Childrens Services,CH37118,Agency Staff - Other,23-Sep-22,"1,207.04",Reed#Reed Specialist Recruitment Limited
Bolton MBC,Childrens Services,CH37118,Agency Staff - Other,16-Sep-22,"1,207.04",Reed#Reed Specialist Recruitment Limited
Bolton MBC,Childrens Services,CH37118,Agency Staff - Other,02-Sep-22,"1,207.04",Reed#Reed Specialist Recruitment Limited
Bolton MBC,Childrens Services,CH48000,Agency Staff - Other,23-Sep-22,"1,206.90",Reed#Reed Specialist Recruitment Limited
Bolton MBC,Childrens Services,CH34087,Admin Officers Gross Pay,14-Sep-22,"1,200.00",REDACTED - Personal Data
Bolton MBC,Childrens Services,CH30020,Vol Assoc Grants - General,08-Sep-22,"1,200.00",Prospero Group Limited
Bolton MBC,Childrens Services,CH30020,Vol Assoc Grants - General,08-Sep-22,"1,200.00",Prospero Group Limited
Bolton MBC,Childrens Services,CH43110,Legal Fees,01-Sep-22,"1,200.00",Exchange Chambers
Bolton MBC,Childrens Services,CH84324,Contracted Services,01-Sep-22,"1,200.00",ECM Education Consultants Ltd
Bolton MBC,Childrens Services,CH37118,Agency Staff - Other,23-Sep-22,"1,198.50",Reed#Reed Specialist Recruitment Limited
Bolton MBC,Childrens Services,CH37118,Agency Staff - Other,09-Sep-22,"1,198.50",Reed#Reed Specialist Recruitment Limited
Bolton MBC,Childrens Services,CH30020,Vol Assoc Grants - General,01-Sep-22,"1,196.58",Backup North West#BYPHS
Bolton MBC,Childrens Services,CH48000,Agency Staff - Other,02-Sep-22,"1,193.58",Reed#Reed Specialist Recruitment Limited
Bolton MBC,Childrens Services,CH48000,Agency Staff - Other,09-Sep-22,"1,193.58",Reed#Reed Specialist Recruitment Limited
Bolton MBC,Childrens Services,CH48000,Agency Staff - Other,09-Sep-22,"1,193.58",Reed#Reed Specialist Recruitment Limited
Bolton MBC,Childrens Services,CH47000,Agency Staff - Other,16-Sep-22,"1,185.60",Reed#Reed Specialist Recruitment Limited
Bolton MBC,Childrens Services,CH47000,Agency Staff - Other,16-Sep-22,"1,185.60",Reed#Reed Specialist Recruitment Limited
Bolton MBC,Childrens Services,CH47000,Agency Staff - Other,09-Sep-22,"1,185.60",Reed#Reed Specialist Recruitment Limited
Bolton MBC,Childrens Services,CH30021,Operational Equipment Purchase,05-Sep-22,"1,185.00",Bolton Alarms#Limited
Bolton MBC,Childrens Services,CH26201,Electricity - General,20-Sep-22,"1,147.98",Scottish & Southern Energy plc#SSE
Bolton MBC,Childrens Services,CH48000,Staff/Officers - Air Fares,14-Sep-22,"1,138.81",Click Travel Limited
Bolton MBC,Childrens Services,CH37118,Agency Staff - Other,09-Sep-22,"1,138.20",Reed#Reed Specialist Recruitment Limited
Bolton MBC,Childrens Services,CH49000,Agency Staff - Other,09-Sep-22,"1,138.20",Reed#Reed Specialist Recruitment Limited
Bolton MBC,Childrens Services,CH37112,Agency Staff - Other,09-Sep-22,"1,132.14",Reed#Reed Specialist Recruitment Limited
Bolton MBC,Childrens Services,CH34086,Agency Staff - Other,09-Sep-22,"1,131.90",Reed#Reed Specialist Recruitment Limited
Bolton MBC,Childrens Services,CH37118,Agency Staff - Other,09-Sep-22,"1,131.90",Reed#Reed Specialist Recruitment Limited
Bolton MBC,Childrens Services,CH43110,Legal Fees,20-Sep-22,"1,125.00",St John's Buildings Barristers' Chambers
Bolton MBC,Childrens Services,CH53000,Contracted Services,13-Sep-22,"1,125.00",Permanent Futures Limited
Bolton MBC,Childrens Services,CH43120,Contracted Services,01-Sep-22,"1,125.00",Monarch Education Limited#Monarch Recruitment Limited#Affinity Workforce Solutions Limited
Bolton MBC,Childrens Services,CH34086,Agency Staff - Other,09-Sep-22,"1,100.26",Reed#Reed Specialist Recruitment Limited
Bolton MBC,Childrens Services,CH48000,Carer Additional Costs,21-Sep-22,"1,070.46",Click Travel Limited
Bolton MBC,Childrens Services,CH30020,Vol Assoc Grants - General,01-Sep-22,"1,026.10",Prospero Group Limited
Bolton MBC,Childrens Services,CH30020,Vol Assoc Grants - General,01-Sep-22,"1,020.80",Backup North West#BYPHS
Bolton MBC,Childrens Services,CH30020,Vol Assoc Grants - General,01-Sep-22,"1,000.00",Prospero Group Limited
Bolton MBC,Childrens Services,CH30020,Vol Assoc Grants - General,01-Sep-22,"1,000.00",Prospero Group Limited
Bolton MBC,Childrens Services,CH30020,Vol Assoc Grants - General,01-Sep-22,"1,000.00",Prospero Group Limited
Bolton MBC,Childrens Services,CH53000,Contracted Services,07-Sep-22,"1,000.00",Permanent Futures Limited
Bolton MBC,Childrens Services,CH43692,Contracted Services,22-Sep-22,"1,000.00",Bolton Carers Support
Bolton MBC,Childrens Services,CH43110,Legal Fees,02-Sep-22,971.69,Pickering Psychology Services Limited
Bolton MBC,Childrens Services,CH43110,Legal Fees,01-Sep-22,947.92,St John's Buildings Barristers' Chambers
Bolton MBC,Childrens Services,CH30021,Operational Equipment Purchase,12-Sep-22,945.00,Bolton Alarms#Limited
Bolton MBC,Childrens Services,CH43110,Legal Fees,01-Sep-22,937.50,St John's Buildings Barristers' Chambers
Bolton MBC,Childrens Services,CH43167,Agency Staff - Other,01-Sep-22,930.00,Propelo Limited
Bolton MBC,Childrens Services,CH43167,Agency Staff - Other,01-Sep-22,930.00,Propelo Limited
Bolton MBC,Childrens Services,CH43110,Legal Fees,20-Sep-22,927.08,St John's Buildings Barristers' Chambers
Bolton MBC,Childrens Services,CH47000,Agency Staff - Other,09-Sep-22,908.96,Reed#Reed Specialist Recruitment Limited
Bolton MBC,Childrens Services,CH43110,Legal Fees,01-Sep-22,908.33,St John's Buildings Barristers' Chambers
Bolton MBC,Childrens Services,CH43689,Consultation Costs,19-Sep-22,903.00,Optimum Social Care Initiatives Limited
Bolton MBC,Childrens Services,CH30020,Vol Assoc Grants - General,01-Sep-22,900.00,West Yorkshire Future Support Limited
Bolton MBC,Childrens Services,CH31034,Panel Attendance Allowance,01-Sep-22,900.00,Chris Dennison Consulting Limited
Bolton MBC,Childrens Services,CH43110,Legal Fees,09-Sep-22,900.00,Central Chambers
Bolton MBC,Childrens Services,CH43110,Legal Fees,21-Sep-22,900.00,Central Chambers
Bolton MBC,Childrens Services,CH48000,Agency Staff - Other,23-Sep-22,890.12,Reed#Reed Specialist Recruitment Limited
Bolton MBC,Childrens Services,CH30020,Vol Assoc Grants - General,01-Sep-22,882.84,Swiis Foster Care Limited
Bolton MBC,Childrens Services,CH30020,Vol Assoc Grants - General,01-Sep-22,882.84,Swiis Foster Care Limited
Bolton MBC,Childrens Services,CH30020,Vol Assoc Grants - General,05-Sep-22,882.84,Swiis Foster Care Limited
Bolton MBC,Childrens Services,CH30020,Vol Assoc Grants - General,12-Sep-22,882.84,Swiis Foster Care Limited
Bolton MBC,Childrens Services,CH30020,Vol Assoc Grants - General,19-Sep-22,882.84,Swiis Foster Care Limited
Bolton MBC,Childrens Services,CH26010,Agency Staff - Other,23-Sep-22,871.28,Reed#Reed Specialist Recruitment Limited
Bolton MBC,Childrens Services,CH26010,Agency Staff - Other,16-Sep-22,871.28,Reed#Reed Specialist Recruitment Limited
Bolton MBC,Childrens Services,CH26010,Agency Staff - Other,02-Sep-22,871.28,Reed#Reed Specialist Recruitment Limited
Bolton MBC,Childrens Services,CH26010,Agency Staff - Other,09-Sep-22,871.28,Reed#Reed Specialist Recruitment Limited
Bolton MBC,Childrens Services,CH48000,Staff/Officers - Air Fares,14-Sep-22,864.74,Click Travel Limited
Bolton MBC,Childrens Services,CH37112,Agency Staff - Other,02-Sep-22,859.40,Reed#Reed Specialist Recruitment Limited
Bolton MBC,Childrens Services,CH43110,Legal Fees,20-Sep-22,854.17,St John's Buildings Barristers' Chambers
Bolton MBC,Childrens Services,CH18922,Electricity - General,20-Sep-22,853.90,Scottish & Southern Energy plc#SSE
Bolton MBC,Childrens Services,CH49000,Agency Staff - Other,23-Sep-22,853.66,Reed#Reed Specialist Recruitment Limited
Bolton MBC,Childrens Services,CH49000,Agency Staff - Other,16-Sep-22,853.66,Reed#Reed Specialist Recruitment Limited
Bolton MBC,Childrens Services,CH49000,Agency Staff - Other,02-Sep-22,853.66,Reed#Reed Specialist Recruitment Limited
Bolton MBC,Childrens Services,CH39005,Marketing,01-Sep-22,850.00,NB Colour Print Limited
Bolton MBC,Childrens Services,CH37112,Agency Staff - Other,09-Sep-22,844.43,Reed#Reed Specialist Recruitment Limited
Bolton MBC,Childrens Services,CH43668,Operational Equipment Purchase,01-Sep-22,837.93,Chess Cybersecurity Limited
Bolton MBC,Childrens Services,CH30020,Vol Assoc Grants - General,01-Sep-22,836.52,Swiis Foster Care Limited
Bolton MBC,Childrens Services,CH30020,Vol Assoc Grants - General,01-Sep-22,836.52,Swiis Foster Care Limited
Bolton MBC,Childrens Services,CH30020,Vol Assoc Grants - General,05-Sep-22,836.52,Swiis Foster Care Limited
Bolton MBC,Childrens Services,CH30020,Vol Assoc Grants - General,12-Sep-22,836.52,Swiis Foster Care Limited
Bolton MBC,Childrens Services,CH30020,Vol Assoc Grants - General,19-Sep-22,836.52,Swiis Foster Care Limited
Bolton MBC,Childrens Services,CH49000,Agency Staff - Other,23-Sep-22,836.05,Reed#Reed Specialist Recruitment Limited
Bolton MBC,Childrens Services,CH41002,Records Storage,01-Sep-22,835.49,Oasis UK#OASIS Group
Bolton MBC,Childrens Services,CH49000,Agency Staff - Other,16-Sep-22,834.56,Reed#Reed Specialist Recruitment Limited
Bolton MBC,Childrens Services,CH49000,Agency Staff - Other,09-Sep-22,831.43,Reed#Reed Specialist Recruitment Limited
Bolton MBC,Childrens Services,CH43110,Legal Fees,01-Sep-22,822.94,D A Languages Limited
Bolton MBC,Childrens Services,CH18957,Electricity - General,20-Sep-22,821.47,Scottish & Southern Energy plc#SSE
Bolton MBC,Childrens Services,CH30020,Vol Assoc Grants - General,01-Sep-22,819.84,Swiis Foster Care Limited
Bolton MBC,Childrens Services,CH30020,Vol Assoc Grants - General,01-Sep-22,819.84,Swiis Foster Care Limited
Bolton MBC,Childrens Services,CH30020,Vol Assoc Grants - General,01-Sep-22,819.84,Swiis Foster Care Limited
Bolton MBC,Childrens Services,CH30020,Vol Assoc Grants - General,01-Sep-22,819.84,Swiis Foster Care Limited
Bolton MBC,Childrens Services,CH30020,Vol Assoc Grants - General,05-Sep-22,819.84,Swiis Foster Care Limited
Bolton MBC,Childrens Services,CH30020,Vol Assoc Grants - General,05-Sep-22,819.84,Swiis Foster Care Limited
Bolton MBC,Childrens Services,CH30020,Vol Assoc Grants - General,12-Sep-22,819.84,Swiis Foster Care Limited
Bolton MBC,Childrens Services,CH30020,Vol Assoc Grants - General,12-Sep-22,819.84,Swiis Foster Care Limited
Bolton MBC,Childrens Services,CH30020,Vol Assoc Grants - General,19-Sep-22,819.84,Swiis Foster Care Limited
Bolton MBC,Childrens Services,CH30020,Vol Assoc Grants - General,19-Sep-22,819.84,Swiis Foster Care Limited
Bolton MBC,Childrens Services,CH30020,Vol Assoc Grants - General,01-Sep-22,800.00,Prospero Group Limited
Bolton MBC,Childrens Services,CH43110,Legal Fees,01-Sep-22,800.00,Nine St John Street
Bolton MBC,Childrens Services,CH80204,Room Hire,01-Sep-22,800.00,Blackburn Cathedral
Bolton MBC,Childrens Services,CH30021,Operational Equipment Purchase,05-Sep-22,780.00,Bolton Alarms#Limited
Bolton MBC,Childrens Services,CH56000,Transport Hire,01-Sep-22,768.90,Cumberland & Westmorland Schools Limited#Witherslack Group Limited
Bolton MBC,Childrens Services,CH34083,Agency Staff - Other,16-Sep-22,767.90,Reed#Reed Specialist Recruitment Limited
Bolton MBC,Childrens Services,CH49000,Agency Staff - Other,16-Sep-22,764.04,Reed#Reed Specialist Recruitment Limited
Bolton MBC,Childrens Services,CH43110,Legal Fees,01-Sep-22,750.00,Nine St John Street
Bolton MBC,Childrens Services,CH43110,Legal Fees,01-Sep-22,750.00,Nine St John Street
Bolton MBC,Childrens Services,CH43110,Legal Fees,01-Sep-22,750.00,Central Chambers
Bolton MBC,Childrens Services,CH43110,Legal Fees,09-Sep-22,750.00,18 St John Street Chambers
Bolton MBC,Childrens Services,CH43692,Agency Staff - Other,23-Sep-22,739.56,Reed#Reed Specialist Recruitment Limited
Bolton MBC,Childrens Services,CH43692,Agency Staff - Other,16-Sep-22,739.56,Reed#Reed Specialist Recruitment Limited
Bolton MBC,Childrens Services,CH43692,Agency Staff - Other,02-Sep-22,739.56,Reed#Reed Specialist Recruitment Limited
Bolton MBC,Childrens Services,CH43692,Agency Staff - Other,23-Sep-22,727.05,Reed#Reed Specialist Recruitment Limited
Bolton MBC,Childrens Services,CH43689,Consultation Costs,09-Sep-22,725.00,REDACTED - Personal Data
Bolton MBC,Childrens Services,CH43124,Staff Hotel Expenses,28-Sep-22,720.00,Click Travel Limited
Bolton MBC,Childrens Services,CH37120,Agency Staff - Other,09-Sep-22,713.80,Connex Education Partnership Limited
Bolton MBC,Childrens Services,CH53000,Agency Staff - Other,23-Sep-22,709.24,Reed#Reed Specialist Recruitment Limited
Bolton MBC,Childrens Services,CH53000,Agency Staff - Other,16-Sep-22,709.24,Reed#Reed Specialist Recruitment Limited
Bolton MBC,Childrens Services,CH30020,Vol Assoc Grants - General,01-Sep-22,706.80,Three Circles Fostering Ltd
Bolton MBC,Childrens Services,CH30020,Vol Assoc Grants - General,01-Sep-22,700.00,Wellbeing Property Solutions Limited
Bolton MBC,Childrens Services,CH30020,Vol Assoc Grants - General,01-Sep-22,700.00,Wellbeing Property Solutions Limited
Bolton MBC,Childrens Services,CH30020,Vol Assoc Grants - General,04-Sep-22,700.00,Wellbeing Property Solutions Limited
Bolton MBC,Childrens Services,CH30020,Vol Assoc Grants - General,11-Sep-22,700.00,Wellbeing Property Solutions Limited
Bolton MBC,Childrens Services,CH30020,Vol Assoc Grants - General,19-Sep-22,700.00,Wellbeing Property Solutions Limited
Bolton MBC,Childrens Services,CH30020,Vol Assoc Grants - General,26-Sep-22,700.00,Wellbeing Property Solutions Limited
Bolton MBC,Childrens Services,CH43110,Legal Fees,01-Sep-22,700.00,St John's Buildings Barristers' Chambers
Bolton MBC,Childrens Services,CH43110,Legal Fees,22-Sep-22,700.00,St John's Buildings Barristers' Chambers
Bolton MBC,Childrens Services,CH43128,Training Exps Tuition Fees,06-Sep-22,700.00,L30 Relational Systems Limited
Bolton MBC,Childrens Services,CH43668,Private Contracted Services,09-Sep-22,700.00,Gateway Outsource Solutions Limited
Bolton MBC,Childrens Services,CH43668,Private Contracted Services,16-Sep-22,700.00,Gateway Outsource Solutions Limited
Bolton MBC,Childrens Services,CH43110,Legal Fees,01-Sep-22,700.00,39 Essex Chambers
Bolton MBC,Childrens Services,CH36109,Carer Additional Costs,21-Sep-22,698.34,Click Travel Limited
Bolton MBC,Childrens Services,CH30020,Vol Assoc Grants - General,01-Sep-22,695.52,Swiis Foster Care Limited
Bolton MBC,Childrens Services,CH30020,Vol Assoc Grants - General,01-Sep-22,695.52,Swiis Foster Care Limited
Bolton MBC,Childrens Services,CH30020,Vol Assoc Grants - General,01-Sep-22,695.52,Swiis Foster Care Limited
Bolton MBC,Childrens Services,CH30020,Vol Assoc Grants - General,01-Sep-22,695.52,Swiis Foster Care Limited
Bolton MBC,Childrens Services,CH30020,Vol Assoc Grants - General,05-Sep-22,695.52,Swiis Foster Care Limited
Bolton MBC,Childrens Services,CH30020,Vol Assoc Grants - General,05-Sep-22,695.52,Swiis Foster Care Limited
Bolton MBC,Childrens Services,CH30020,Vol Assoc Grants - General,12-Sep-22,695.52,Swiis Foster Care Limited
Bolton MBC,Childrens Services,CH30020,Vol Assoc Grants - General,12-Sep-22,695.52,Swiis Foster Care Limited
Bolton MBC,Childrens Services,CH30020,Vol Assoc Grants - General,12-Sep-22,695.52,Swiis Foster Care Limited
Bolton MBC,Childrens Services,CH30020,Vol Assoc Grants - General,19-Sep-22,695.52,Swiis Foster Care Limited
Bolton MBC,Childrens Services,CH43110,Legal Fees,01-Sep-22,670.00,REDACTED - Personal Data
Bolton MBC,Childrens Services,CH18931,Electricity - General,20-Sep-22,668.91,Scottish & Southern Energy plc#SSE
Bolton MBC,Childrens Services,CH34083,Agency Staff - Other,09-Sep-22,668.82,Reed#Reed Specialist Recruitment Limited
Bolton MBC,Childrens Services,CH53000,Agency Staff - Other,02-Sep-22,664.51,Reed#Reed Specialist Recruitment Limited
Bolton MBC,Childrens Services,CH18927,Electricity - General,20-Sep-22,654.71,Scottish & Southern Energy plc#SSE
Bolton MBC,Childrens Services,CH26704,Day To Day Maintenance,06-Sep-22,650.00,Treescapes Gardening Services
Bolton MBC,Childrens Services,CH43110,Legal Fees,01-Sep-22,650.00,18 St John Street Chambers
Bolton MBC,Childrens Services,CH30020,Vol Assoc Grants - General,01-Sep-22,641.84,Great Places Housing Association
Bolton MBC,Childrens Services,CH18948,Agency Staff - Other,16-Sep-22,633.07,Reed#Reed Specialist Recruitment Limited
Bolton MBC,Childrens Services,CH18948,Agency Staff - Other,02-Sep-22,633.07,Reed#Reed Specialist Recruitment Limited
Bolton MBC,Childrens Services,CH87500,Other Fees,01-Sep-22,630.00,REDACTED - Personal Data
Bolton MBC,Childrens Services,CH43110,Legal Fees,01-Sep-22,614.58,St John's Buildings Barristers' Chambers
Bolton MBC,Childrens Services,CH43110,Legal Fees,01-Sep-22,610.00,Kenworthy's Chambers
Bolton MBC,Childrens Services,CH48000,Agency Staff - Other,16-Sep-22,606.90,Reed#Reed Specialist Recruitment Limited
Bolton MBC,Childrens Services,CH18927,Contract Cleaning,01-Sep-22,606.67,Associated Cleaning Contractors#Champion Cleaning Services Ltd
Bolton MBC,Childrens Services,CH18927,Contract Cleaning,01-Sep-22,606.67,Associated Cleaning Contractors#Champion Cleaning Services Ltd
Bolton MBC,Childrens Services,CH43125,Clients Training Courses,23-Sep-22,600.00,Suzi Moore Training
Bolton MBC,Childrens Services,CH43692,Agency Staff - Other,09-Sep-22,599.64,Reed#Reed Specialist Recruitment Limited
Bolton MBC,Childrens Services,CH43120,Contracted Services,01-Sep-22,585.00,Monarch Education Limited#Monarch Recruitment Limited#Affinity Workforce Solutions Limited
Bolton MBC,Childrens Services,CH43110,Legal Fees,15-Sep-22,583.33,St John's Buildings Barristers' Chambers
Bolton MBC,Childrens Services,CH53000,Agency Staff - Other,09-Sep-22,575.06,Reed#Reed Specialist Recruitment Limited
Bolton MBC,Childrens Services,CH37120,Agency Staff - Other,02-Sep-22,571.04,Connex Education Partnership Limited
Bolton MBC,Childrens Services,CH37120,Agency Staff - Other,16-Sep-22,571.04,Connex Education Partnership Limited
Bolton MBC,Childrens Services,CH26003,Day To Day Maintenance,01-Sep-22,570.00,Bandmatic Limited
Bolton MBC,Childrens Services,CH43150,Other Fees,01-Sep-22,568.00,Adoption Matters
Bolton MBC,Childrens Services,CH34087,Electricity - General,20-Sep-22,567.80,Scottish & Southern Energy plc#SSE
Bolton MBC,Childrens Services,CH43130,Staff/Officers - Rail Fares,07-Sep-22,563.70,Click Travel Limited
Bolton MBC,Childrens Services,CH18970,Agency Staff - Other,09-Sep-22,556.92,Reed#Reed Specialist Recruitment Limited
Bolton MBC,Childrens Services,CH43110,Legal Fees,01-Sep-22,550.00,Central Chambers
Bolton MBC,Childrens Services,CH31034,Carer Equipment,21-Sep-22,546.66,EPS Supplies Ltd
Bolton MBC,Childrens Services,CH43110,Legal Fees,09-Sep-22,540.60,Dagmar Hartshorn Psychological Services
Bolton MBC,Childrens Services,CH43692,Agency Staff - Other,23-Sep-22,523.51,Reed#Reed Specialist Recruitment Limited
Bolton MBC,Childrens Services,CH43692,Agency Staff - Other,02-Sep-22,523.51,Reed#Reed Specialist Recruitment Limited
Bolton MBC,Childrens Services,CH80204,Buildings Service Charge,02-Sep-22,522.19,Safestore Ltd
Bolton MBC,Childrens Services,CH80204,Buildings Service Charge,07-Sep-22,522.19,Safestore Ltd
Bolton MBC,Childrens Services,CH18970,Agency Staff - Other,09-Sep-22,519.78,Reed#Reed Specialist Recruitment Limited
Bolton MBC,Childrens Services,CH84900,Other Fees,22-Sep-22,518.00,Mr Barton Maths Limited
Bolton MBC,Childrens Services,CH36109,Staff Hotel Expenses,21-Sep-22,509.67,Click Travel Limited
Bolton MBC,Childrens Services,CH43692,Agency Staff - Other,16-Sep-22,509.54,Reed#Reed Specialist Recruitment Limited
Bolton MBC,Childrens Services,CH26201,Electricity - General,20-Sep-22,507.04,Scottish & Southern Energy plc#SSE
Bolton MBC,Childrens Services,CH80203,Contracted Services,30-Sep-22,503.00,REDACTED - Personal Data
Bolton MBC,Development & Regeneration,DR82000,Contracted Services,01-Sep-22,"164,989.54",Bolton Community Leisure Limited
Bolton MBC,Development & Regeneration,DR82000,Contracted Services,01-Sep-22,"164,989.54",Bolton Community Leisure Limited
Bolton MBC,Development & Regeneration,DR82000,Contracted Services,30-Sep-22,"164,989.54",Bolton Community Leisure Limited
Bolton MBC,Development & Regeneration,DRZ9999,Work in Progress Additions,01-Sep-22,"116,686.45",Robertson Capital Projects Limited
Bolton MBC,Development & Regeneration,DRZ9999,Work in Progress Additions,01-Sep-22,"88,764.00",Robertson Capital Projects Limited
Bolton MBC,Development & Regeneration,DRZ9999,Work in Progress Additions,21-Sep-22,"58,804.53",Aecom Limited
Bolton MBC,Development & Regeneration,DR40130,Consultancy Fees,01-Sep-22,"40,976.19",Clear Sustainable Futures Joint Venture C/o Robertson Capital Projects Limited
Bolton MBC,Development & Regeneration,DR82700,New Construction Conversion & Renovation,05-Sep-22,"37,635.41",Bolton Middlebrook Leisure Trust Limited#Bolton Arena
Bolton MBC,Development & Regeneration,DR01100,Other Fees,26-Sep-22,"33,986.35",Aecom Limited
Bolton MBC,Development & Regeneration,DRZ9999,Work in Progress Additions,30-Sep-22,"33,500.00",Market Pharmacy#Hollowood Chemists Ltd
Bolton MBC,Development & Regeneration,DR04000,Inter Agency Fees,14-Sep-22,"30,018.95",Capita Property & Infrastructure Ltd
Bolton MBC,Development & Regeneration,DR04000,Other Agency/Contracted Services,27-Sep-22,"29,521.06",IDOX Software Ltd
Bolton MBC,Development & Regeneration,DR67410,Computer Maintenance,23-Sep-22,"19,500.00",Civica UK Ltd
Bolton MBC,Development & Regeneration,DRZ9999,Work in Progress Additions,14-Sep-22,"16,687.90",Greater Manchester Combined Authority
Bolton MBC,Development & Regeneration,DR67218,Marketing,22-Sep-22,"15,000.00",Impression (Bolton) Limited
Bolton MBC,Development & Regeneration,DR67201,Operational Equipment Purchase,22-Sep-22,"12,145.00",BCL#John Bradshaw & Son Limited
Bolton MBC,Development & Regeneration,DRZ9999,Work in Progress Additions,12-Sep-22,"10,645.06",Robertson Capital Projects Limited
Bolton MBC,Development & Regeneration,DR82700,New Construction Conversion & Renovation,05-Sep-22,"10,060.00",Bolton Middlebrook Leisure Trust Limited#Bolton Arena
Bolton MBC,Development & Regeneration,DR67206,Buildings Service Charge,01-Sep-22,"8,926.95",Eric Wright FM Ltd
Bolton MBC,Development & Regeneration,DR40130,Other Fees,01-Sep-22,"8,843.00",Robertson Facilities Management Limited
Bolton MBC,Development & Regeneration,DR67420,Book Fund Expenditure,01-Sep-22,"8,566.00",Bridgeall Libraries Limited#collectionHQ
Bolton MBC,Development & Regeneration,DR67323,Operational Equipment Purchase,06-Sep-22,"7,669.47",Octagon Theatre Trust Limited#The Octagon#Octagon Theatre
Bolton MBC,Development & Regeneration,DR67121,Other Fees,01-Sep-22,"7,000.00",M3 Industries Limited
Bolton MBC,Development & Regeneration,DR67210,Electricity - General,20-Sep-22,"5,556.85",Scottish & Southern Energy plc#SSE
Bolton MBC,Development & Regeneration,DRZ9999,Work in Progress Additions,12-Sep-22,"5,087.70",Robertson Facilities Management Limited
Bolton MBC,Development & Regeneration,DRZ9999,Work in Progress Additions,20-Sep-22,"5,000.00",Colliers International Retail UK LLP
Bolton MBC,Development & Regeneration,DR67201,Day To Day Maintenance,01-Sep-22,"4,684.40",Robertson Facilities Management Limited
Bolton MBC,Development & Regeneration,DR40130,Other Fees,01-Sep-22,"4,162.50",Colliers International Retail UK LLP
Bolton MBC,Development & Regeneration,DR67323,Library Books,01-Sep-22,"3,906.53",Peters Limited
Bolton MBC,Development & Regeneration,DRZ9999,Work in Progress Additions,21-Sep-22,"3,715.00",Aecom Limited
Bolton MBC,Development & Regeneration,DR04000,Inter Agency Fees,01-Sep-22,"3,301.75",G2 Recruitment Solutions
Bolton MBC,Development & Regeneration,DRZ9999,Work in Progress Additions,01-Sep-22,"2,856.05",Robertson Facilities Management Limited
Bolton MBC,Development & Regeneration,DRZ9999,Work in Progress Additions,01-Sep-22,"2,856.05",Robertson Capital Projects Limited
Bolton MBC,Development & Regeneration,DR04000,Other Agency/Contracted Services,13-Sep-22,"2,835.63",Hays Specialist Recruitment
Bolton MBC,Development & Regeneration,DRZ9999,Work in Progress Additions,01-Sep-22,"2,750.00",TPM Landscape Limited
Bolton MBC,Development & Regeneration,DR04000,Inter Agency Fees,01-Sep-22,"2,600.00",G2 Recruitment Solutions
Bolton MBC,Development & Regeneration,DR04000,Inter Agency Fees,01-Sep-22,"2,569.80",Vivid Resourcing
Bolton MBC,Development & Regeneration,DR04000,Other Agency/Contracted Services,06-Sep-22,"2,520.00",Hays Specialist Recruitment
Bolton MBC,Development & Regeneration,DRZ9999,Work in Progress Additions,26-Sep-22,"2,496.00",Aecom Limited
Bolton MBC,Development & Regeneration,DR04000,Inter Agency Fees,01-Sep-22,"2,433.75",Vivid Resourcing
Bolton MBC,Development & Regeneration,DR04000,Inter Agency Fees,01-Sep-22,"2,401.85",Vivid Resourcing
Bolton MBC,Development & Regeneration,DR04000,Inter Agency Fees,01-Sep-22,"2,373.80",Vivid Resourcing
Bolton MBC,Development & Regeneration,DR04000,Inter Agency Fees,21-Sep-22,"2,365.20",Vivid Resourcing
Bolton MBC,Development & Regeneration,DR82700,Contracted Services,01-Sep-22,"2,330.25",Robertson Facilities Management Limited
Bolton MBC,Development & Regeneration,DRZ9999,Work in Progress Additions,12-Sep-22,"2,300.37",Robertson Facilities Management Limited
Bolton MBC,Development & Regeneration,DR04000,Inter Agency Fees,01-Sep-22,"2,281.50",Vivid Resourcing
Bolton MBC,Development & Regeneration,DR04000,Inter Agency Fees,14-Sep-22,"2,275.20",Vivid Resourcing
Bolton MBC,Development & Regeneration,DR04000,Inter Agency Fees,01-Sep-22,"2,265.00",Vivid Resourcing
Bolton MBC,Development & Regeneration,DR04000,Inter Agency Fees,01-Sep-22,"2,260.20",Vivid Resourcing
Bolton MBC,Development & Regeneration,DR04000,Inter Agency Fees,01-Sep-22,"2,250.00",Vivid Resourcing
Bolton MBC,Development & Regeneration,DR04000,Inter Agency Fees,01-Sep-22,"2,220.00",Vivid Resourcing
Bolton MBC,Development & Regeneration,DR04000,Other Agency/Contracted Services,20-Sep-22,"2,160.00",Hays Specialist Recruitment
Bolton MBC,Development & Regeneration,DR04000,Other Fees,07-Sep-22,"2,124.00",Dixon Searle Partnership#Limited
Bolton MBC,Development & Regeneration,DR82700,Reactive Maintenance,05-Sep-22,"2,075.89",Robertson Facilities Management Limited
Bolton MBC,Development & Regeneration,DR04000,Inter Agency Fees,01-Sep-22,"2,035.00",Vivid Resourcing
Bolton MBC,Development & Regeneration,DR04000,Inter Agency Fees,01-Sep-22,"2,035.00",Vivid Resourcing
Bolton MBC,Development & Regeneration,DR04000,Inter Agency Fees,07-Sep-22,"2,035.00",Vivid Resourcing
Bolton MBC,Development & Regeneration,DR04000,Inter Agency Fees,14-Sep-22,"2,035.00",Vivid Resourcing
Bolton MBC,Development & Regeneration,DR04000,Inter Agency Fees,21-Sep-22,"2,035.00",Vivid Resourcing
Bolton MBC,Development & Regeneration,DR04000,Inter Agency Fees,07-Sep-22,"1,995.00",Vivid Resourcing
Bolton MBC,Development & Regeneration,DR04000,Inter Agency Fees,07-Sep-22,"1,966.25",Vivid Resourcing
Bolton MBC,Development & Regeneration,DR04000,Inter Agency Fees,01-Sep-22,"1,821.25",G2 Recruitment Solutions
Bolton MBC,Development & Regeneration,DR04000,Inter Agency Fees,14-Sep-22,"1,809.50",G2 Recruitment Solutions
Bolton MBC,Development & Regeneration,DR04000,Agency Staff - Full-time,01-Sep-22,"1,702.00",Carrington West Limited
Bolton MBC,Development & Regeneration,DR04000,Agency Staff - Full-time,01-Sep-22,"1,702.00",Carrington West Limited
Bolton MBC,Development & Regeneration,DR04000,Other Agency/Contracted Services,15-Sep-22,"1,702.00",Carrington West Limited
Bolton MBC,Development & Regeneration,DR04000,Inter Agency Fees,22-Sep-22,"1,702.00",Carrington West Limited
Bolton MBC,Development & Regeneration,DR04000,Inter Agency Fees,14-Sep-22,"1,665.00",Vivid Resourcing
Bolton MBC,Development & Regeneration,DR04000,Inter Agency Fees,21-Sep-22,"1,665.00",Vivid Resourcing
Bolton MBC,Development & Regeneration,DR04000,Inter Agency Fees,28-Sep-22,"1,665.00",Vivid Resourcing
Bolton MBC,Development & Regeneration,DR04000,Inter Agency Fees,21-Sep-22,"1,625.00",G2 Recruitment Solutions
Bolton MBC,Development & Regeneration,DR04000,Agency Staff - Full-time,08-Sep-22,"1,610.00",Carrington West Limited
Bolton MBC,Development & Regeneration,DR04000,Inter Agency Fees,14-Sep-22,"1,559.24",The Oyster Partnership Limited
Bolton MBC,Development & Regeneration,DR67312,Promoting Events,15-Sep-22,"1,400.00",REDACTED - Personal Data
Bolton MBC,Development & Regeneration,DR45003,Clients Training Courses,06-Sep-22,"1,399.00",Darz Driving School
Bolton MBC,Development & Regeneration,DR04000,Inter Agency Fees,07-Sep-22,"1,395.00",Vivid Resourcing
Bolton MBC,Development & Regeneration,DR04000,Legal Fees,13-Sep-22,"1,350.00",Kings Chambers
Bolton MBC,Development & Regeneration,DR04000,Inter Agency Fees,01-Sep-22,"1,316.00",G2 Recruitment Solutions
Bolton MBC,Development & Regeneration,DR04000,Inter Agency Fees,14-Sep-22,"1,300.00",G2 Recruitment Solutions
Bolton MBC,Development & Regeneration,DR45003,Clients Training Courses,06-Sep-22,"1,247.50",Darz Driving School
Bolton MBC,Development & Regeneration,DR67420,Library Books,01-Sep-22,"1,246.89",Peters Limited
Bolton MBC,Development & Regeneration,DR04000,Inter Agency Fees,02-Sep-22,"1,224.60",Carrington West Limited
Bolton MBC,Development & Regeneration,DR67218,Operational Equipment Purchase,22-Sep-22,"1,214.50",BCL#John Bradshaw & Son Limited
Bolton MBC,Development & Regeneration,DR67420,Library Books,01-Sep-22,"1,201.14",Askews & Holts Library Services Ltd
Bolton MBC,Development & Regeneration,DR82700,Consultancy Fees,12-Sep-22,"1,195.00",Robertson Facilities Management Limited
Bolton MBC,Development & Regeneration,DR04000,Agency Staff - Full-time,22-Sep-22,"1,191.00",Capita Property & Infrastructure Ltd
Bolton MBC,Development & Regeneration,DR04000,Agency Staff - Full-time,01-Sep-22,"1,170.00",Carrington West Limited
Bolton MBC,Development & Regeneration,DR04000,Other Agency/Contracted Services,15-Sep-22,"1,170.00",Carrington West Limited
Bolton MBC,Development & Regeneration,DR04000,Advertising General,01-Sep-22,"1,159.20",Newsquest Media Group
Bolton MBC,Development & Regeneration,DR04000,Agency Staff - Full-time,01-Sep-22,"1,154.40",Carrington West Limited
Bolton MBC,Development & Regeneration,DR04000,Agency Staff - Full-time,01-Sep-22,"1,154.40",Carrington West Limited
Bolton MBC,Development & Regeneration,DRZ9999,Work in Progress Additions,07-Sep-22,"1,060.00",Isaac Butterworth (Ironfounders) Limited
Bolton MBC,Development & Regeneration,DR04000,Inter Agency Fees,01-Sep-22,"1,056.25",G2 Recruitment Solutions
Bolton MBC,Development & Regeneration,DR67203,Electricity - General,20-Sep-22,"1,053.21",Scottish & Southern Energy plc#SSE
Bolton MBC,Development & Regeneration,DR04000,Inter Agency Fees,01-Sep-22,"1,050.00",The Oyster Partnership Limited
Bolton MBC,Development & Regeneration,DR04000,Inter Agency Fees,01-Sep-22,"1,050.00",The Oyster Partnership Limited
Bolton MBC,Development & Regeneration,DR04000,Inter Agency Fees,01-Sep-22,"1,050.00",The Oyster Partnership Limited
Bolton MBC,Development & Regeneration,DR04000,Inter Agency Fees,20-Sep-22,"1,042.50",The Oyster Partnership Limited
Bolton MBC,Development & Regeneration,DR04000,Inter Agency Fees,21-Sep-22,"1,037.50",G2 Recruitment Solutions
Bolton MBC,Development & Regeneration,DR04000,Inter Agency Fees,01-Sep-22,"1,031.25",G2 Recruitment Solutions
Bolton MBC,Development & Regeneration,DR04000,Legal Fees,13-Sep-22,"1,000.00",Kings Chambers
Bolton MBC,Development & Regeneration,DR04000,Advertising General,07-Sep-22,993.60,Newsquest Media Group
Bolton MBC,Development & Regeneration,DR04000,Agency Staff - Full-time,08-Sep-22,990.00,Carrington West Limited
Bolton MBC,Development & Regeneration,DR04000,Other Agency/Contracted Services,15-Sep-22,990.00,Carrington West Limited
Bolton MBC,Development & Regeneration,DR04000,Inter Agency Fees,21-Sep-22,987.60,The Oyster Partnership Limited
Bolton MBC,Development & Regeneration,DR82500,Water Charges - Metered,10-Sep-22,976.12,Anglian Water Business (National) Ltd Trading As Wave
Bolton MBC,Development & Regeneration,DR04000,Inter Agency Fees,01-Sep-22,962.50,G2 Recruitment Solutions
Bolton MBC,Development & Regeneration,DR45004,Clients Training Courses,16-Sep-22,945.00,Red Rose Training
Bolton MBC,Development & Regeneration,DR04000,Agency Staff - Full-time,08-Sep-22,943.80,Carrington West Limited
Bolton MBC,Development & Regeneration,DR04000,Inter Agency Fees,01-Sep-22,943.75,G2 Recruitment Solutions
Bolton MBC,Development & Regeneration,DR67420,Library Books,19-Sep-22,935.35,Askews & Holts Library Services Ltd
Bolton MBC,Development & Regeneration,DR04000,Legal Fees,05-Sep-22,900.00,Kings Chambers
Bolton MBC,Development & Regeneration,DR04000,Agency Staff - Full-time,01-Sep-22,855.00,Carrington West Limited
Bolton MBC,Development & Regeneration,DR04000,Inter Agency Fees,01-Sep-22,840.00,The Oyster Partnership Limited
Bolton MBC,Development & Regeneration,DR04000,Inter Agency Fees,22-Sep-22,840.00,Carrington West Limited
Bolton MBC,Development & Regeneration,DR04000,Inter Agency Fees,07-Sep-22,825.00,G2 Recruitment Solutions
Bolton MBC,Development & Regeneration,DR04000,Inter Agency Fees,14-Sep-22,825.00,G2 Recruitment Solutions
Bolton MBC,Development & Regeneration,DR45004,Agency Staff - Other,16-Sep-22,808.33,Reed#Reed Specialist Recruitment Limited
Bolton MBC,Development & Regeneration,DR04000,Agency Staff - Full-time,01-Sep-22,795.00,Carrington West Limited
Bolton MBC,Development & Regeneration,DR04000,Other Agency/Contracted Services,15-Sep-22,792.00,Carrington West Limited
Bolton MBC,Development & Regeneration,DR04000,Inter Agency Fees,22-Sep-22,792.00,Carrington West Limited
Bolton MBC,Development & Regeneration,DR67201,Contracted Services,22-Sep-22,767.52,The Museums Association
Bolton MBC,Development & Regeneration,DR67260,Rent of Storage Facilities,04-Sep-22,766.32,Adams Selfstore
Bolton MBC,Development & Regeneration,DR04000,Advertising General,01-Sep-22,736.00,Newsquest Media Group
Bolton MBC,Development & Regeneration,DR67260,Rent of Storage Facilities,01-Sep-22,720.00,J W Whittle Limited#Store-Away Archive Facilities
Bolton MBC,Development & Regeneration,DR67420,Library Books,01-Sep-22,713.85,Askews & Holts Library Services Ltd
Bolton MBC,Development & Regeneration,DR45004,Agency Staff - Other,02-Sep-22,692.85,Reed#Reed Specialist Recruitment Limited
Bolton MBC,Development & Regeneration,DR67201,Refuse Collection,18-Sep-22,688.47,SUEZ Recycling & Recovery UK Limited
Bolton MBC,Development & Regeneration,DR04000,Inter Agency Fees,05-Sep-22,687.50,Capita Real Estate & Infrastructure Limited
Bolton MBC,Development & Regeneration,DR45004,Agency Staff - Other,02-Sep-22,679.48,Reed#Reed Specialist Recruitment Limited
Bolton MBC,Development & Regeneration,DR67213,Electricity - General,20-Sep-22,678.38,Scottish & Southern Energy plc#SSE
Bolton MBC,Development & Regeneration,DR45004,Agency Staff - Other,23-Sep-22,666.21,Reed#Reed Specialist Recruitment Limited
Bolton MBC,Development & Regeneration,DR45004,Agency Staff - Other,23-Sep-22,666.13,Reed#Reed Specialist Recruitment Limited
Bolton MBC,Development & Regeneration,DR45004,Agency Staff - Other,23-Sep-22,657.32,Reed#Reed Specialist Recruitment Limited
Bolton MBC,Development & Regeneration,DR45004,Agency Staff - Other,16-Sep-22,619.17,Reed#Reed Specialist Recruitment Limited
Bolton MBC,Development & Regeneration,DR67211,Electricity - General,20-Sep-22,615.42,Scottish & Southern Energy plc#SSE
Bolton MBC,Development & Regeneration,DR04000,Agency Staff - Full-time,08-Sep-22,607.20,Carrington West Limited
Bolton MBC,Development & Regeneration,DR67201,Exhibits Purchase,13-Sep-22,602.00,Cornflower Limited
Bolton MBC,Development & Regeneration,DR04000,Advertising General,23-Sep-22,588.80,Newsquest Media Group
Bolton MBC,Development & Regeneration,DR67312,Promoting Events,01-Sep-22,588.00,The ExcluSec Group Limited T/As ExcluSec Security
Bolton MBC,Development & Regeneration,DR67202,Electricity - General,20-Sep-22,587.42,Scottish & Southern Energy plc#SSE
Bolton MBC,Development & Regeneration,DR45004,Default Cloud I-expenses Subjective,13-Sep-22,587.10,Greater Manchester Travelcards Ltd#systemonetravelcards
Bolton MBC,Development & Regeneration,DR45004,Agency Staff - Other,16-Sep-22,581.83,Reed#Reed Specialist Recruitment Limited
Bolton MBC,Development & Regeneration,DR45004,Agency Staff - Other,23-Sep-22,576.18,Reed#Reed Specialist Recruitment Limited
Bolton MBC,Development & Regeneration,DR45004,Agency Staff - Other,09-Sep-22,572.95,Reed#Reed Specialist Recruitment Limited
Bolton MBC,Development & Regeneration,DR04000,Agency Staff - Full-time,08-Sep-22,554.40,Carrington West Limited
Bolton MBC,Development & Regeneration,DR67260,Rent of Storage Facilities,01-Sep-22,552.00,J W Whittle Limited#Store-Away Archive Facilities
Bolton MBC,Development & Regeneration,DR45004,Agency Staff - Other,16-Sep-22,550.68,Reed#Reed Specialist Recruitment Limited
Bolton MBC,Development & Regeneration,DR45004,Agency Staff - Other,09-Sep-22,550.68,Reed#Reed Specialist Recruitment Limited
Bolton MBC,Development & Regeneration,DR45004,Agency Staff - Other,09-Sep-22,546.24,Reed#Reed Specialist Recruitment Limited
Bolton MBC,Development & Regeneration,DR67312,Promoting Events,01-Sep-22,537.60,Profile Security Services Ltd
Bolton MBC,Development & Regeneration,DR45004,Agency Staff - Other,23-Sep-22,532.91,Reed#Reed Specialist Recruitment Limited
Bolton MBC,Development & Regeneration,DR04000,Agency Staff - Other,23-Sep-22,522.85,Reed#Reed Specialist Recruitment Limited
Bolton MBC,Development & Regeneration,DR04000,Agency Staff - Other,16-Sep-22,522.85,Reed#Reed Specialist Recruitment Limited
Bolton MBC,Development & Regeneration,DR04000,Agency Staff - Other,02-Sep-22,522.85,Reed#Reed Specialist Recruitment Limited
Bolton MBC,Development & Regeneration,DR45004,Agency Staff - Other,09-Sep-22,515.20,Reed#Reed Specialist Recruitment Limited
Bolton MBC,Development & Regeneration,DR04000,Advertising General,16-Sep-22,515.20,Newsquest Media Group
Bolton MBC,Development & Regeneration,DR45004,Agency Staff - Other,16-Sep-22,515.14,Reed#Reed Specialist Recruitment Limited
Bolton MBC,Development & Regeneration,DR67201,Operational Equipment Purchase,22-Sep-22,504.00,BCL#John Bradshaw & Son Limited
Bolton MBC,Development & Regeneration,DR67420,Library Books,13-Sep-22,500.16,Askews & Holts Library Services Ltd
Bolton MBC,Environmental Services,EN12070,Electricity - General,05-Sep-22,"198,500.46",Haven Power Limited
Bolton MBC,Environmental Services,EN12070,Electricity - General,05-Sep-22,"159,972.15",Haven Power Limited
Bolton MBC,Environmental Services,EN20002,Car Parking,01-Sep-22,"43,982.89",NSL Limited#NSL Services Group
Bolton MBC,Environmental Services,EN14420,Miscellaneous Expenses,01-Sep-22,"43,143.71",Rosewalks Limited
Bolton MBC,Environmental Services,EN35003,Operational Equipment Purchase,01-Sep-22,"26,775.00",Cromwell Polythene Limited
Bolton MBC,Environmental Services,EN35002,Operational Equipment Purchase,23-Sep-22,"24,507.00",One51 ES Plastics (UK) Limited T/A MGB Plastics
Bolton MBC,Environmental Services,EN38000,Contracted Services,26-Sep-22,"24,250.00",GEM Arboricultural Services
Bolton MBC,Environmental Services,EN38000,Contracted Services,01-Sep-22,"23,860.00",Arbworks
Bolton MBC,Environmental Services,EN14000,Engineering Work,01-Sep-22,"16,182.98",Bethell Construction Ltd
Bolton MBC,Environmental Services,EN43600,Postages Direct Costs,01-Sep-22,"13,587.29",Pitney Bowes Purchase Power T/A Pitney Bowes Limited
Bolton MBC,Environmental Services,EN39000,Operational Equipment Purchase,01-Sep-22,"10,500.00",Balmers GM Limited
Bolton MBC,Environmental Services,EN39000,Operational Equipment Purchase,01-Sep-22,"10,500.00",Balmers GM Limited
Bolton MBC,Environmental Services,EN20002,Traffic Enforcement Centre,13-Sep-22,"10,000.00",The Traffic Enforcement Centre
Bolton MBC,Environmental Services,EN37000,Legal Fees,01-Sep-22,"10,000.00",Deans Court Chambers
Bolton MBC,Environmental Services,ENZ9999,Inv Invoice Price Variance,01-Sep-22,"7,914.85",Ribble Fuel Oils#NWF Fuels Limited
Bolton MBC,Environmental Services,ENZ9999,Inventory AP Accrual,01-Sep-22,"7,914.85",Ribble Fuel Oils#NWF Fuels Limited
Bolton MBC,Environmental Services,EN12009,Engineering Work,28-Sep-22,"6,678.33",Wilde Consultants Limited
Bolton MBC,Environmental Services,ENZ9999,Inventory AP Accrual,27-Sep-22,"6,290.37",Compass Minerals UK Ltd
Bolton MBC,Environmental Services,EN12009,Engineering Work,02-Sep-22,"6,118.48",Wilde Consultants Limited
Bolton MBC,Environmental Services,EN47001,Transport Hire,01-Sep-22,"5,865.00",Riverside Truck Rental Limited
Bolton MBC,Environmental Services,EN47001,Transport Hire,01-Sep-22,"5,750.00",Riverside Truck Rental Limited
Bolton MBC,Environmental Services,EN47001,Transport Hire,01-Sep-22,"5,750.00",Riverside Truck Rental Limited
Bolton MBC,Environmental Services,EN47001,Transport Hire,01-Sep-22,"5,750.00",Riverside Truck Rental Limited
Bolton MBC,Environmental Services,EN47001,Transport Hire,01-Sep-22,"5,750.00",Riverside Truck Rental Limited
Bolton MBC,Environmental Services,EN38000,Operational Equipment Maint,06-Sep-22,"5,520.00",Cold Roll (Rings) Limited
Bolton MBC,Environmental Services,EN47001,Transport Hire,01-Sep-22,"5,355.00",Riverside Truck Rental Limited
Bolton MBC,Environmental Services,EN20002,Car Parking,01-Sep-22,"5,303.67",NSL Limited#NSL Services Group
Bolton MBC,Environmental Services,EN47004,Vehicle Servicing,19-Sep-22,"5,195.21",Faun Zoeller (UK) Limited
Bolton MBC,Environmental Services,EN40100,General Materials,07-Sep-22,"5,000.00",Bolton Stone Restoration Ltd
Bolton MBC,Environmental Services,EN40100,General Materials,01-Sep-22,"4,882.50",J C Davies Plant Hire
Bolton MBC,Environmental Services,ENZ9999,CR Bal Hold A/c Exp,27-Sep-22,"4,800.00",Bell Munro Consulting Limited
Bolton MBC,Environmental Services,EN43300,Caretaking/Cleaning Equipment,14-Sep-22,"4,737.00",Arrow County Supplies Limited
Bolton MBC,Environmental Services,EN47001,Transport Hire,01-Sep-22,"4,577.00",Riverside Truck Rental Limited
Bolton MBC,Environmental Services,ENZ9999,Inv Invoice Price Variance,15-Sep-22,"4,560.42",Certas Energy UK Ltd
Bolton MBC,Environmental Services,ENZ9999,Inventory AP Accrual,15-Sep-22,"4,560.42",Certas Energy UK Ltd
Bolton MBC,Environmental Services,EN12021,Non-Scheduled Work,08-Sep-22,"4,153.64",Transport For Greater Manchester
Bolton MBC,Environmental Services,ENZ9999,Inventory AP Accrual,01-Sep-22,"3,877.40",Marwood Electrical Company Limited
Bolton MBC,Environmental Services,EN42000,Computer Purchase,01-Sep-22,"3,566.14",Automatic Alarms Limited
Bolton MBC,Environmental Services,EN90000,Artistes Fees,01-Sep-22,"3,488.00",Taylors Theatre Academy Limited
Bolton MBC,Environmental Services,EN47001,Transport Hire,01-Sep-22,"3,220.00",Leeds Commercial Limited
Bolton MBC,Environmental Services,EN40100,General Materials,07-Sep-22,"3,101.57",Arco Limited
Bolton MBC,Environmental Services,EN43000,Agency Staff - Full-time,01-Sep-22,"3,098.70",Profile Security Services Ltd
Bolton MBC,Environmental Services,ENZ9999,Inv Invoice Price Variance,21-Sep-22,"3,069.32",Compass Minerals UK Ltd
Bolton MBC,Environmental Services,ENZ9999,Inventory AP Accrual,21-Sep-22,"3,069.32",Compass Minerals UK Ltd
Bolton MBC,Environmental Services,EN49000,Other Security Expenses,01-Sep-22,"3,047.85",S Security Limited
Bolton MBC,Environmental Services,EN47001,Transport Hire,01-Sep-22,"2,985.00",Riverside Truck Rental Limited
Bolton MBC,Environmental Services,EN38000,Day To Day Maintenance,01-Sep-22,"2,948.00",Bolton Stone Restoration Ltd
Bolton MBC,Environmental Services,EN38000,Contracted Services,14-Sep-22,"2,940.00",P J Carney & Co Ltd
Bolton MBC,Environmental Services,ENZ9999,Inv Invoice Price Variance,14-Sep-22,"2,935.00",Traffic Management Products Limited#TMP
Bolton MBC,Environmental Services,ENZ9999,Inventory AP Accrual,14-Sep-22,"2,935.00",Traffic Management Products Limited#TMP
Bolton MBC,Environmental Services,ENZ9999,Inventory AP Accrual,01-Sep-22,"2,915.60",Marwood Electrical Company Limited
Bolton MBC,Environmental Services,ENZ9999,Inventory AP Accrual,22-Sep-22,"2,860.00",Castings Services Limited
Bolton MBC,Environmental Services,EN43000,Agency Staff - Full-time,01-Sep-22,"2,754.40",Profile Security Services Ltd
Bolton MBC,Environmental Services,EN91001,Electricity - General,20-Sep-22,"2,709.66",Scottish & Southern Energy plc#SSE
Bolton MBC,Environmental Services,EN43300,General Materials,14-Sep-22,"2,555.19",Arrow County Supplies Limited
Bolton MBC,Environmental Services,EN39000,Contracted Services,10-Sep-22,"2,550.00",P J Carney & Co Ltd
Bolton MBC,Environmental Services,ENZ9999,Inventory AP Accrual,01-Sep-22,"2,533.50",Marwood Electrical Company Limited
Bolton MBC,Environmental Services,EN38000,Contracted Services,01-Sep-22,"2,500.00",Greenwood Tree Services Limited
Bolton MBC,Environmental Services,EN40200,Operational Equipment Purchase,27-Sep-22,"2,458.95",ECE Consultancy Ltd
Bolton MBC,Environmental Services,EN40200,General Materials,01-Sep-22,"2,410.00",Vivedia Limited
Bolton MBC,Environmental Services,EN38000,Contracted Services,14-Sep-22,"2,400.00",Greenwood Tree Services Limited
Bolton MBC,Environmental Services,EN40200,General Materials,01-Sep-22,"2,270.75",The Columbaria Company
Bolton MBC,Environmental Services,EN12063,Plant Hire,01-Sep-22,"2,183.00",H & C (Plant Hire) Limited
Bolton MBC,Environmental Services,EN14290,Plant Hire,01-Sep-22,"2,183.00",H & C (Plant Hire) Limited
Bolton MBC,Environmental Services,EN38000,Contracted Services,26-Sep-22,"2,100.00",GEM Arboricultural Services
Bolton MBC,Environmental Services,EN43000,Agency Staff - Full-time,01-Sep-22,"2,096.64",Profile Security Services Ltd
Bolton MBC,Environmental Services,EN47004,Vehicle Servicing,08-Sep-22,"2,054.50",Ciceley Truck & Van Centre#Ciceley Commercials Limited
Bolton MBC,Environmental Services,ENZ9999,Inventory AP Accrual,20-Sep-22,"2,032.80",Instarmac Group plc
Bolton MBC,Environmental Services,EN39000,Contracted Services,15-Sep-22,"1,980.00",Origin Amenity Solutions#Limited
Bolton MBC,Environmental Services,EN14290,Plant Hire,01-Sep-22,"1,961.75",H & C (Plant Hire) Limited
Bolton MBC,Environmental Services,EN43600,Franking Machine,02-Sep-22,"1,940.00",Royal Mail Group Limited
Bolton MBC,Environmental Services,EN90000,Office Equipment Purchase,01-Sep-22,"1,908.00",Apex Radio Systems Ltd
Bolton MBC,Environmental Services,EN47004,Vehicle Servicing,22-Sep-22,"1,868.22",Ciceley Truck & Van Centre#Ciceley Commercials Limited
Bolton MBC,Environmental Services,EN47001,Transport Hire,01-Sep-22,"1,840.00",Leeds Commercial Limited
Bolton MBC,Environmental Services,EN47004,Contracted Services,01-Sep-22,"1,819.45",Das-Automotive
Bolton MBC,Environmental Services,EN47004,Vehicle Servicing,01-Sep-22,"1,795.31",Terberg Matec UK
Bolton MBC,Environmental Services,EN42000,Electricity - General,20-Sep-22,"1,788.94",Scottish & Southern Energy plc#SSE
Bolton MBC,Environmental Services,EN37008,Consultancy Fees,01-Sep-22,"1,775.03",The ExcluSec Group Limited T/As ExcluSec Security
Bolton MBC,Environmental Services,EN39000,General Materials,01-Sep-22,"1,765.20",Origin Amenity Solutions#Limited
Bolton MBC,Environmental Services,EN20002,Electricity - General,05-Sep-22,"1,663.22",Haven Power Limited
Bolton MBC,Environmental Services,EN38000,Maint Of Playgrounds,16-Sep-22,"1,660.00",Peak Fabrications (Bolton) Limited
Bolton MBC,Environmental Services,EN38000,Day To Day Maintenance,28-Sep-22,"1,632.00",Bolton Stone Restoration Ltd
Bolton MBC,Environmental Services,ENZ9999,Inventory AP Accrual,01-Sep-22,"1,610.53",Compass Minerals UK Ltd
Bolton MBC,Environmental Services,ENZ9999,Inventory AP Accrual,12-Sep-22,"1,605.11",Compass Minerals UK Ltd
Bolton MBC,Environmental Services,ENZ9999,Inventory AP Accrual,01-Sep-22,"1,602.94",Compass Minerals UK Ltd
Bolton MBC,Environmental Services,ENZ9999,Inventory AP Accrual,12-Sep-22,"1,597.52",Compass Minerals UK Ltd
Bolton MBC,Environmental Services,ENZ9999,Inventory AP Accrual,09-Sep-22,"1,595.35",Compass Minerals UK Ltd
Bolton MBC,Environmental Services,ENZ9999,Inventory AP Accrual,05-Sep-22,"1,592.10",Compass Minerals UK Ltd
Bolton MBC,Environmental Services,ENZ9999,Inventory AP Accrual,01-Sep-22,"1,591.02",Compass Minerals UK Ltd
Bolton MBC,Environmental Services,EN47004,Agency Staff - Other,01-Sep-22,"1,591.00",Proactive Personnel Limited
Bolton MBC,Environmental Services,ENZ9999,Inventory AP Accrual,07-Sep-22,"1,588.85",Compass Minerals UK Ltd
Bolton MBC,Environmental Services,ENZ9999,Inventory AP Accrual,09-Sep-22,"1,586.68",Compass Minerals UK Ltd
Bolton MBC,Environmental Services,EN43000,Agency Staff - Full-time,01-Sep-22,"1,585.92",Profile Security Services Ltd
Bolton MBC,Environmental Services,ENZ9999,Inventory AP Accrual,16-Sep-22,"1,582.35",Compass Minerals UK Ltd
Bolton MBC,Environmental Services,ENZ9999,Inventory AP Accrual,01-Sep-22,"1,581.26",Compass Minerals UK Ltd
Bolton MBC,Environmental Services,ENZ9999,Inventory AP Accrual,02-Sep-22,"1,579.10",Compass Minerals UK Ltd
Bolton MBC,Environmental Services,ENZ9999,Inventory AP Accrual,02-Sep-22,"1,578.01",Compass Minerals UK Ltd
Bolton MBC,Environmental Services,ENZ9999,Inventory AP Accrual,22-Sep-22,"1,578.01",Compass Minerals UK Ltd
Bolton MBC,Environmental Services,ENZ9999,Inventory AP Accrual,12-Sep-22,"1,576.93",Compass Minerals UK Ltd
Bolton MBC,Environmental Services,ENZ9999,Inventory AP Accrual,14-Sep-22,"1,575.85",Compass Minerals UK Ltd
Bolton MBC,Environmental Services,ENZ9999,Inventory AP Accrual,14-Sep-22,"1,575.85",Compass Minerals UK Ltd
Bolton MBC,Environmental Services,ENZ9999,Inventory AP Accrual,01-Sep-22,"1,573.68",Compass Minerals UK Ltd
Bolton MBC,Environmental Services,ENZ9999,Inventory AP Accrual,02-Sep-22,"1,573.68",Compass Minerals UK Ltd
Bolton MBC,Environmental Services,ENZ9999,Inventory AP Accrual,01-Sep-22,"1,572.59",Compass Minerals UK Ltd
Bolton MBC,Environmental Services,ENZ9999,Inventory AP Accrual,01-Sep-22,"1,572.59",Compass Minerals UK Ltd
Bolton MBC,Environmental Services,ENZ9999,Inventory AP Accrual,01-Sep-22,"1,572.59",Compass Minerals UK Ltd
Bolton MBC,Environmental Services,ENZ9999,Inventory AP Accrual,09-Sep-22,"1,571.51",Compass Minerals UK Ltd
Bolton MBC,Environmental Services,ENZ9999,Inventory AP Accrual,20-Sep-22,"1,571.51",Compass Minerals UK Ltd
Bolton MBC,Environmental Services,ENZ9999,Inventory AP Accrual,01-Sep-22,"1,569.34",Compass Minerals UK Ltd
Bolton MBC,Environmental Services,ENZ9999,Inventory AP Accrual,01-Sep-22,"1,569.34",Compass Minerals UK Ltd
Bolton MBC,Environmental Services,ENZ9999,Inventory AP Accrual,14-Sep-22,"1,569.34",Compass Minerals UK Ltd
Bolton MBC,Environmental Services,ENZ9999,Inventory AP Accrual,02-Sep-22,"1,568.26",Compass Minerals UK Ltd
Bolton MBC,Environmental Services,ENZ9999,Inventory AP Accrual,01-Sep-22,"1,567.17",Compass Minerals UK Ltd
Bolton MBC,Environmental Services,ENZ9999,Inventory AP Accrual,20-Sep-22,"1,567.17",Compass Minerals UK Ltd
Bolton MBC,Environmental Services,ENZ9999,Inventory AP Accrual,07-Sep-22,"1,566.09",Compass Minerals UK Ltd
Bolton MBC,Environmental Services,ENZ9999,Inventory AP Accrual,02-Sep-22,"1,565.01",Compass Minerals UK Ltd
Bolton MBC,Environmental Services,EN47001,Uninsured Losses - Vehicles,01-Sep-22,"1,564.59",Riverside Truck Rental Limited
Bolton MBC,Environmental Services,ENZ9999,Inventory AP Accrual,01-Sep-22,"1,563.92",Compass Minerals UK Ltd
Bolton MBC,Environmental Services,ENZ9999,Inventory AP Accrual,07-Sep-22,"1,563.92",Compass Minerals UK Ltd
Bolton MBC,Environmental Services,ENZ9999,Inventory AP Accrual,08-Sep-22,"1,562.84",Compass Minerals UK Ltd
Bolton MBC,Environmental Services,ENZ9999,Inventory AP Accrual,01-Sep-22,"1,561.76",Compass Minerals UK Ltd
Bolton MBC,Environmental Services,ENZ9999,Inventory AP Accrual,07-Sep-22,"1,561.76",Compass Minerals UK Ltd
Bolton MBC,Environmental Services,ENZ9999,Inventory AP Accrual,09-Sep-22,"1,561.76",Compass Minerals UK Ltd
Bolton MBC,Environmental Services,EN38000,Contracted Services,01-Sep-22,"1,560.00",Challenger Site Services LLP
Bolton MBC,Environmental Services,ENZ9999,Inventory AP Accrual,02-Sep-22,"1,559.59",Compass Minerals UK Ltd
Bolton MBC,Environmental Services,ENZ9999,Inventory AP Accrual,08-Sep-22,"1,559.59",Compass Minerals UK Ltd
Bolton MBC,Environmental Services,ENZ9999,Inventory AP Accrual,08-Sep-22,"1,559.59",Compass Minerals UK Ltd
Bolton MBC,Environmental Services,ENZ9999,Inventory AP Accrual,12-Sep-22,"1,558.50",Compass Minerals UK Ltd
Bolton MBC,Environmental Services,ENZ9999,Inventory AP Accrual,23-Sep-22,"1,558.50",Compass Minerals UK Ltd
Bolton MBC,Environmental Services,ENZ9999,Inventory AP Accrual,01-Sep-22,"1,557.42",Compass Minerals UK Ltd
Bolton MBC,Environmental Services,ENZ9999,Inventory AP Accrual,08-Sep-22,"1,557.42",Compass Minerals UK Ltd
Bolton MBC,Environmental Services,ENZ9999,Inventory AP Accrual,20-Sep-22,"1,557.42",Compass Minerals UK Ltd
Bolton MBC,Environmental Services,ENZ9999,Inventory AP Accrual,23-Sep-22,"1,557.42",Compass Minerals UK Ltd
Bolton MBC,Environmental Services,ENZ9999,Inventory AP Accrual,07-Sep-22,"1,556.34",Compass Minerals UK Ltd
Bolton MBC,Environmental Services,ENZ9999,Inventory AP Accrual,12-Sep-22,"1,556.34",Compass Minerals UK Ltd
Bolton MBC,Environmental Services,ENZ9999,Inventory AP Accrual,20-Sep-22,"1,556.34",Compass Minerals UK Ltd
Bolton MBC,Environmental Services,ENZ9999,Inventory AP Accrual,16-Sep-22,"1,554.17",Compass Minerals UK Ltd
Bolton MBC,Environmental Services,ENZ9999,Inventory AP Accrual,05-Sep-22,"1,553.09",Compass Minerals UK Ltd
Bolton MBC,Environmental Services,ENZ9999,Inventory AP Accrual,20-Sep-22,"1,552.00",Compass Minerals UK Ltd
Bolton MBC,Environmental Services,ENZ9999,Inventory AP Accrual,01-Sep-22,"1,550.92",Compass Minerals UK Ltd
Bolton MBC,Environmental Services,ENZ9999,Inventory AP Accrual,01-Sep-22,"1,549.83",Compass Minerals UK Ltd
Bolton MBC,Environmental Services,ENZ9999,Inventory AP Accrual,01-Sep-22,"1,549.83",Compass Minerals UK Ltd
Bolton MBC,Environmental Services,ENZ9999,Inventory AP Accrual,08-Sep-22,"1,549.83",Compass Minerals UK Ltd
Bolton MBC,Environmental Services,ENZ9999,Inventory AP Accrual,16-Sep-22,"1,549.83",Compass Minerals UK Ltd
Bolton MBC,Environmental Services,ENZ9999,Inventory AP Accrual,09-Sep-22,"1,548.75",Compass Minerals UK Ltd
Bolton MBC,Environmental Services,ENZ9999,Inventory AP Accrual,01-Sep-22,"1,547.67",Compass Minerals UK Ltd
Bolton MBC,Environmental Services,ENZ9999,Inventory AP Accrual,01-Sep-22,"1,546.58",Compass Minerals UK Ltd
Bolton MBC,Environmental Services,ENZ9999,Inventory AP Accrual,01-Sep-22,"1,545.50",Compass Minerals UK Ltd
Bolton MBC,Environmental Services,ENZ9999,Inventory AP Accrual,23-Sep-22,"1,545.50",Compass Minerals UK Ltd
Bolton MBC,Environmental Services,ENZ9999,Inventory AP Accrual,20-Sep-22,"1,544.42",Compass Minerals UK Ltd
Bolton MBC,Environmental Services,ENZ9999,Inventory AP Accrual,23-Sep-22,"1,544.42",Compass Minerals UK Ltd
Bolton MBC,Environmental Services,ENZ9999,Inventory AP Accrual,02-Sep-22,"1,542.25",Compass Minerals UK Ltd
Bolton MBC,Environmental Services,EN47004,Contracted Services,01-Sep-22,"1,542.01",Terberg Matec UK
Bolton MBC,Environmental Services,EN43700,Other Security,01-Sep-22,"1,541.80",National Car Parks Ltd#NCP
Bolton MBC,Environmental Services,ENZ9999,Inventory AP Accrual,02-Sep-22,"1,540.08",Compass Minerals UK Ltd
Bolton MBC,Environmental Services,ENZ9999,Inventory AP Accrual,08-Sep-22,"1,539.00",Compass Minerals UK Ltd
Bolton MBC,Environmental Services,EN38000,Day To Day Maintenance,22-Sep-22,"1,539.00",Bolton Stone Restoration Ltd
Bolton MBC,Environmental Services,ENZ9999,Inventory AP Accrual,02-Sep-22,"1,537.91",Compass Minerals UK Ltd
Bolton MBC,Environmental Services,ENZ9999,Inventory AP Accrual,08-Sep-22,"1,537.91",Compass Minerals UK Ltd
Bolton MBC,Environmental Services,ENZ9999,Inventory AP Accrual,09-Sep-22,"1,528.16",Compass Minerals UK Ltd
Bolton MBC,Environmental Services,EN37008,Agency Staff - Full-time,14-Sep-22,"1,525.82",The Oyster Partnership Limited
Bolton MBC,Environmental Services,ENZ9999,Inventory AP Accrual,16-Sep-22,"1,518.40",Compass Minerals UK Ltd
Bolton MBC,Environmental Services,EN90000,Promoting Events,26-Sep-22,"1,514.50",Mr Claus Limited T/A The Christmas Decorators
Bolton MBC,Environmental Services,EN43700,Other Security,23-Sep-22,"1,510.00",Fibrelite (North West) Limited
Bolton MBC,Environmental Services,ENZ9999,Inventory AP Accrual,08-Sep-22,"1,499.98",Compass Minerals UK Ltd
Bolton MBC,Environmental Services,EN40200,Operational Equipment Purchase,01-Sep-22,"1,495.88",ECE Consultancy Ltd
Bolton MBC,Environmental Services,EN12009,General Materials,05-Sep-22,"1,495.00",CIPFA Business Ltd
Bolton MBC,Environmental Services,ENZ9999,Inventory AP Accrual,08-Sep-22,"1,481.55",Compass Minerals UK Ltd
Bolton MBC,Environmental Services,EN37008,Agency Staff - Full-time,01-Sep-22,"1,472.00",The Oyster Partnership Limited
Bolton MBC,Environmental Services,EN37008,Agency Staff - Full-time,21-Sep-22,"1,452.68",The Oyster Partnership Limited
Bolton MBC,Environmental Services,EN43000,Agency Staff - Full-time,01-Sep-22,"1,451.52",Profile Security Services Ltd
Bolton MBC,Environmental Services,EN37008,Agency Staff - Full-time,07-Sep-22,"1,429.68",The Oyster Partnership Limited
Bolton MBC,Environmental Services,EN49000,Other Security Expenses,01-Sep-22,"1,390.00",Access Door Systems Limited
Bolton MBC,Environmental Services,EN47004,Contracted Services,01-Sep-22,"1,378.00",Chassis & Cab Specialists
Bolton MBC,Environmental Services,EN40100,Consultancy Fees,01-Sep-22,"1,374.25",Robertson Facilities Management Limited
Bolton MBC,Environmental Services,EN14000,General Materials,01-Sep-22,"1,350.00",Red Stag Materials Limited
Bolton MBC,Environmental Services,EN14290,Direct Materials,07-Sep-22,"1,344.00",Civils & Lintels#Cooper Clarke#Hendricks Lovell#Buildbase
Bolton MBC,Environmental Services,ENZ9999,Inventory AP Accrual,20-Sep-22,"1,337.28",Instarmac Group plc
Bolton MBC,Environmental Services,EN37008,Agency Staff - Full-time,14-Sep-22,"1,311.75",The Oyster Partnership Limited
Bolton MBC,Environmental Services,EN39000,Contracted Services,09-Sep-22,"1,305.00",Jason Shaw Limited
Bolton MBC,Environmental Services,EN43300,Cleaning Materials,01-Sep-22,"1,300.00",Arrow County Supplies Limited
Bolton MBC,Environmental Services,EN43000,Agency Staff - Full-time,01-Sep-22,"1,290.24",Profile Security Services Ltd
Bolton MBC,Environmental Services,EN37002,Computer Software Licences,15-Sep-22,"1,289.81",Conduent Parking Enforcement Sol Limited#Conduent Public Sector UK Limited
Bolton MBC,Environmental Services,EN47001,Transport Hire,01-Sep-22,"1,288.00",Leeds Commercial Limited
Bolton MBC,Environmental Services,EN40100,General Materials,01-Sep-22,"1,286.00",J C Davies Plant Hire
Bolton MBC,Environmental Services,EN42000,Horticultural Materials,20-Sep-22,"1,281.20",Mercer Agencies Limited
Bolton MBC,Environmental Services,EN47001,Transport Hire,01-Sep-22,"1,265.00",Leeds Commercial Limited
Bolton MBC,Environmental Services,EN47004,Vehicle Servicing,01-Sep-22,"1,260.00",Greenchem Solutions Ltd
Bolton MBC,Environmental Services,EN43700,Electricity - General,05-Sep-22,"1,256.62",Haven Power Limited
Bolton MBC,Environmental Services,EN40200,Operational Equipment Purchase,27-Sep-22,"1,250.50",ECE Consultancy Ltd
Bolton MBC,Environmental Services,EN47001,Vehicles Plant Equip and Machinery,06-Sep-22,"1,249.50",Advanced Communication Projects Limited
Bolton MBC,Environmental Services,EN14600,Plant Hire,01-Sep-22,"1,242.00",H & C (Plant Hire) Limited
Bolton MBC,Environmental Services,EN37008,Agency Staff - Full-time,07-Sep-22,"1,232.25",The Oyster Partnership Limited
Bolton MBC,Environmental Services,EN47004,Vehicle Servicing,01-Sep-22,"1,216.56",Lancashire Daf
Bolton MBC,Environmental Services,EN47004,Contracted Services,01-Sep-22,"1,202.15",Das-Automotive
Bolton MBC,Environmental Services,EN39000,Operational Equipment Maint,07-Sep-22,"1,180.00",Broxap Limited
Bolton MBC,Environmental Services,EN14000,Direct Materials,01-Sep-22,"1,173.00",Aggregate Industries UK Limited
Bolton MBC,Environmental Services,EN14000,Direct Materials,01-Sep-22,"1,173.00",Aggregate Industries UK Limited
Bolton MBC,Environmental Services,EN14000,Direct Materials,01-Sep-22,"1,173.00",Aggregate Industries UK Limited
Bolton MBC,Environmental Services,EN14000,Direct Materials,06-Sep-22,"1,173.00",Aggregate Industries UK Limited
Bolton MBC,Environmental Services,EN42000,Horticultural Materials,01-Sep-22,"1,170.25",Oakley Stone Northern Limited
Bolton MBC,Environmental Services,EN14000,Direct Materials,02-Sep-22,"1,168.31",Aggregate Industries UK Limited
Bolton MBC,Environmental Services,EN35000,Operational Equipment Purchase,01-Sep-22,"1,168.00",UK Container Maintenance Limited
Bolton MBC,Environmental Services,EN39000,Operational Equipment Purchase,20-Sep-22,"1,150.40",Origin Amenity Solutions#Limited
Bolton MBC,Environmental Services,EN14000,Plant Hire,01-Sep-22,"1,150.00",H & C (Plant Hire) Limited
Bolton MBC,Environmental Services,EN37005,Operational Equipment Purchase,01-Sep-22,"1,140.00",Institute of Licensing Ltd
Bolton MBC,Environmental Services,EN39000,Contracted Services,02-Sep-22,"1,100.00",Balmers GM Limited
Bolton MBC,Environmental Services,EN39000,Contracted Services,30-Sep-22,"1,100.00",Balmers GM Limited
Bolton MBC,Environmental Services,EN14000,Plant Hire,01-Sep-22,"1,091.50",H & C (Plant Hire) Limited
Bolton MBC,Environmental Services,EN14290,Plant Hire,01-Sep-22,"1,091.50",H & C (Plant Hire) Limited
Bolton MBC,Environmental Services,EN14290,Plant Hire,01-Sep-22,"1,091.50",H & C (Plant Hire) Limited
Bolton MBC,Environmental Services,EN43000,Agency Staff - Full-time,01-Sep-22,"1,061.76",Profile Security Services Ltd
Bolton MBC,Environmental Services,EN40200,General Materials,01-Sep-22,"1,045.71",Calligraphy UK Ltd
Bolton MBC,Environmental Services,EN43000,Uniforms,05-Sep-22,"1,029.51",Niton Equipment Ltd
Bolton MBC,Environmental Services,EN38000,Operational Equipment Maint,06-Sep-22,"1,025.00",Cold Roll (Rings) Limited
Bolton MBC,Environmental Services,EN35092,Operational Equipment Purchase,01-Sep-22,"1,022.00",UK Container Maintenance Limited
Bolton MBC,Environmental Services,EN90000,Catering Provisions-Food,12-Sep-22,"1,013.60",Wilds#WLG Limited
Bolton MBC,Environmental Services,ENZ9999,Inventory AP Accrual,20-Sep-22,"1,008.00",Evolve Corporate Ltd T/A PK Safety
Bolton MBC,Environmental Services,ENZ9999,Inventory AP Accrual,20-Sep-22,"1,008.00",Evolve Corporate Ltd T/A PK Safety
Bolton MBC,Environmental Services,ENZ9999,Inventory AP Accrual,07-Sep-22,980.00,Region Electrical Supplies Limited
Bolton MBC,Environmental Services,EN47004,Operational Equipment Rental,01-Sep-22,972.11,Safety Kleen UK Limited
Bolton MBC,Environmental Services,EN40200,General Materials,01-Sep-22,970.75,The Columbaria Company
Bolton MBC,Environmental Services,EN43000,Agency Staff - Full-time,01-Sep-22,967.68,Profile Security Services Ltd
Bolton MBC,Environmental Services,EN37600,Livestock,01-Sep-22,960.00,Animal Wardens
Bolton MBC,Environmental Services,EN20002,Other Fees,01-Sep-22,953.83,Park Now Limited
Bolton MBC,Environmental Services,EN47002,Agency Staff - Other,01-Sep-22,925.00,Proactive Personnel Limited
Bolton MBC,Environmental Services,EN47002,Agency Staff - Other,14-Sep-22,925.00,Proactive Personnel Limited
Bolton MBC,Environmental Services,EN47004,Agency Staff - Other,05-Sep-22,925.00,Proactive Personnel Limited
Bolton MBC,Environmental Services,EN47004,Agency Staff - Other,21-Sep-22,925.00,Proactive Personnel Limited
Bolton MBC,Environmental Services,EN14290,General Materials,01-Sep-22,918.00,Isaac Butterworth (Ironfounders) Limited
Bolton MBC,Environmental Services,EN47004,Contracted Services,13-Sep-22,908.44,W & S C Jobson Ltd
Bolton MBC,Environmental Services,EN35005,Agency Staff - Other,02-Sep-22,904.06,Reed#Reed Specialist Recruitment Limited
Bolton MBC,Environmental Services,EN38000,Contracted Services,02-Sep-22,900.00,Greenwood Tree Services Limited
Bolton MBC,Environmental Services,EN37015,Legal Fees,09-Sep-22,900.00,Deans Court Chambers
Bolton MBC,Environmental Services,EN42000,Horticultural Materials,01-Sep-22,896.30,Tillage Nurseries
Bolton MBC,Environmental Services,EN37008,Agency Staff - Full-time,01-Sep-22,891.99,The Oyster Partnership Limited
Bolton MBC,Environmental Services,EN35005,Agency Staff - Other,09-Sep-22,891.26,Reed#Reed Specialist Recruitment Limited
Bolton MBC,Environmental Services,EN47004,Vehicle Servicing,12-Sep-22,881.96,Terberg Matec UK
Bolton MBC,Environmental Services,EN14000,Direct Materials,01-Sep-22,875.06,Aggregate Industries UK Limited
Bolton MBC,Environmental Services,EN47001,Transport Hire,01-Sep-22,871.54,Enterprise Rent A Car UK Limited T/A Enterprise Flex-E-Rent
Bolton MBC,Environmental Services,EN35005,Agency Staff - Other,23-Sep-22,867.96,Reed#Reed Specialist Recruitment Limited
Bolton MBC,Environmental Services,EN40200,General Materials,01-Sep-22,866.75,The Columbaria Company
Bolton MBC,Environmental Services,EN47001,Transport Hire,01-Sep-22,865.18,Enterprise Rent A Car UK Limited T/A Enterprise Flex-E-Rent
Bolton MBC,Environmental Services,EN38000,Maint Of Playgrounds,13-Sep-22,858.00,Elmes Joinery
Bolton MBC,Environmental Services,EN40200,General Materials,01-Sep-22,853.50,The Columbaria Company
Bolton MBC,Environmental Services,EN35005,Agency Staff - Other,09-Sep-22,850.22,Reed#Reed Specialist Recruitment Limited
Bolton MBC,Environmental Services,EN35005,Agency Staff - Other,09-Sep-22,848.15,Reed#Reed Specialist Recruitment Limited
Bolton MBC,Environmental Services,EN14000,Plant Hire,01-Sep-22,840.00,Richard Burton Haulage Limited
Bolton MBC,Environmental Services,EN14000,Plant Hire,01-Sep-22,840.00,Richard Burton Haulage Limited
Bolton MBC,Environmental Services,EN14000,Plant Hire,01-Sep-22,840.00,Richard Burton Haulage Limited
Bolton MBC,Environmental Services,ENZ9999,Inv Invoice Price Variance,01-Sep-22,822.36,Aggregate Industries UK Limited
Bolton MBC,Environmental Services,ENZ9999,Inventory AP Accrual,01-Sep-22,822.36,Aggregate Industries UK Limited
Bolton MBC,Environmental Services,EN35005,Agency Staff - Other,02-Sep-22,819.50,Reed#Reed Specialist Recruitment Limited
Bolton MBC,Environmental Services,EN14600,Plant Hire,01-Sep-22,805.00,H & C (Plant Hire) Limited
Bolton MBC,Environmental Services,EN38000,Contracted Services,15-Sep-22,800.00,Greenwood Tree Services Limited
Bolton MBC,Environmental Services,EN40000,Contracted Services,02-Sep-22,800.00,Balmers GM Limited
Bolton MBC,Environmental Services,EN40000,Contracted Services,30-Sep-22,800.00,Balmers GM Limited
Bolton MBC,Environmental Services,ENZ9999,Inv Invoice Price Variance,13-Sep-22,796.73,Aggregate Industries UK Limited
Bolton MBC,Environmental Services,ENZ9999,Inventory AP Accrual,13-Sep-22,796.73,Aggregate Industries UK Limited
Bolton MBC,Environmental Services,EN35005,Agency Staff - Other,23-Sep-22,785.43,Reed#Reed Specialist Recruitment Limited
Bolton MBC,Environmental Services,ENZ9999,Inv Invoice Price Variance,01-Sep-22,781.42,Aggregate Industries UK Limited
Bolton MBC,Environmental Services,ENZ9999,Inventory AP Accrual,01-Sep-22,781.42,Aggregate Industries UK Limited
Bolton MBC,Environmental Services,EN35006,Refuse Collection,01-Sep-22,780.00,Bolton Community Transport & Furniture Services#bct & fs#BCTFS
Bolton MBC,Environmental Services,EN35006,Refuse Collection,01-Sep-22,780.00,Bolton Community Transport & Furniture Services#bct & fs#BCTFS
Bolton MBC,Environmental Services,EN35005,Agency Staff - Other,09-Sep-22,771.73,Reed#Reed Specialist Recruitment Limited
Bolton MBC,Environmental Services,EN47004,Contracted Services,01-Sep-22,768.63,Das-Automotive
Bolton MBC,Environmental Services,EN35005,Agency Staff - Other,02-Sep-22,768.42,Reed#Reed Specialist Recruitment Limited
Bolton MBC,Environmental Services,EN35005,Agency Staff - Other,09-Sep-22,757.18,Reed#Reed Specialist Recruitment Limited
Bolton MBC,Environmental Services,EN35005,Agency Staff - Other,09-Sep-22,757.18,Reed#Reed Specialist Recruitment Limited
Bolton MBC,Environmental Services,EN35005,Agency Staff - Other,09-Sep-22,757.18,Reed#Reed Specialist Recruitment Limited
Bolton MBC,Environmental Services,EN35005,Agency Staff - Other,09-Sep-22,757.10,Reed#Reed Specialist Recruitment Limited
Bolton MBC,Environmental Services,EN35005,Agency Staff - Other,09-Sep-22,757.10,Reed#Reed Specialist Recruitment Limited
Bolton MBC,Environmental Services,EN35005,Agency Staff - Other,09-Sep-22,757.10,Reed#Reed Specialist Recruitment Limited
Bolton MBC,Environmental Services,EN35005,Agency Staff - Other,09-Sep-22,757.10,Reed#Reed Specialist Recruitment Limited
Bolton MBC,Environmental Services,EN47004,Vehicle Servicing,13-Sep-22,752.00,LPW (Europe) Ltd
Bolton MBC,Environmental Services,EN38000,Contracted Services,05-Sep-22,750.00,Greenwood Tree Services Limited
Bolton MBC,Environmental Services,EN35006,Refuse Collection,01-Sep-22,740.00,Bolton Community Transport & Furniture Services#bct & fs#BCTFS
Bolton MBC,Environmental Services,EN47002,Agency Staff - Other,07-Sep-22,737.50,Proactive Personnel Limited
Bolton MBC,Environmental Services,EN47004,Agency Staff - Other,07-Sep-22,737.50,Proactive Personnel Limited
Bolton MBC,Environmental Services,EN47001,Transport Hire,01-Sep-22,735.22,Enterprise Rent A Car UK Limited T/A Enterprise Flex-E-Rent
Bolton MBC,Environmental Services,EN42000,Horticultural Materials,12-Sep-22,730.86,Tillage Nurseries
Bolton MBC,Environmental Services,ENZ9999,Inv Invoice Price Variance,01-Sep-22,728.96,Aggregate Industries UK Limited
Bolton MBC,Environmental Services,ENZ9999,Inventory AP Accrual,01-Sep-22,728.96,Aggregate Industries UK Limited
Bolton MBC,Environmental Services,EN35005,Agency Staff - Other,02-Sep-22,728.84,Reed#Reed Specialist Recruitment Limited
Bolton MBC,Environmental Services,EN46000,Operational Equipment Purchase,09-Sep-22,725.28,BGL Rieber Limited
Bolton MBC,Environmental Services,EN40200,General Materials,05-Sep-22,722.00,The Columbaria Company
Bolton MBC,Environmental Services,EN35006,Refuse Collection,01-Sep-22,720.00,Bolton Community Transport & Furniture Services#bct & fs#BCTFS
Bolton MBC,Environmental Services,EN35006,Refuse Collection,01-Sep-22,720.00,Bolton Community Transport & Furniture Services#bct & fs#BCTFS
Bolton MBC,Environmental Services,EN35005,Agency Staff - Other,09-Sep-22,714.86,Reed#Reed Specialist Recruitment Limited
Bolton MBC,Environmental Services,EN46000,Kitchen Equipment,07-Sep-22,712.55,WV Howe Limited
Bolton MBC,Environmental Services,EN43000,Cleaning Materials,07-Sep-22,704.88,Arrow County Supplies Limited
Bolton MBC,Environmental Services,EN14000,Direct Materials,01-Sep-22,701.45,Aggregate Industries UK Limited
Bolton MBC,Environmental Services,ENZ9999,CR Bal Hold A/c Exp,01-Sep-22,700.00,Germsfree Limited
Bolton MBC,Environmental Services,ENZ9999,Inv Invoice Price Variance,02-Sep-22,696.06,Aggregate Industries UK Limited
Bolton MBC,Environmental Services,ENZ9999,Inventory AP Accrual,02-Sep-22,696.06,Aggregate Industries UK Limited
Bolton MBC,Environmental Services,ENZ9999,Inv Invoice Price Variance,01-Sep-22,694.04,Aggregate Industries UK Limited
Bolton MBC,Environmental Services,ENZ9999,Inventory AP Accrual,01-Sep-22,694.04,Aggregate Industries UK Limited
Bolton MBC,Environmental Services,EN35005,Agency Staff - Other,16-Sep-22,693.54,Reed#Reed Specialist Recruitment Limited
Bolton MBC,Environmental Services,EN35005,Agency Staff - Other,02-Sep-22,692.61,Reed#Reed Specialist Recruitment Limited
Bolton MBC,Environmental Services,EN37015,Agency Staff - Other,23-Sep-22,690.75,Reed#Reed Specialist Recruitment Limited
Bolton MBC,Environmental Services,ENZ9999,Inv Invoice Price Variance,02-Sep-22,687.16,Aggregate Industries UK Limited
Bolton MBC,Environmental Services,ENZ9999,Inventory AP Accrual,02-Sep-22,687.16,Aggregate Industries UK Limited
Bolton MBC,Environmental Services,EN38000,Maint Of Playgrounds,23-Sep-22,685.00,Wicksteed Leisure Limited
Bolton MBC,Environmental Services,EN35005,Agency Staff - Other,02-Sep-22,681.91,Reed#Reed Specialist Recruitment Limited
Bolton MBC,Environmental Services,EN47004,Vehicle Servicing,07-Sep-22,674.85,Ciceley Truck & Van Centre#Ciceley Commercials Limited
Bolton MBC,Environmental Services,EN47004,Contracted Services,01-Sep-22,673.20,Das-Automotive
Bolton MBC,Environmental Services,ENZ9999,Inv Invoice Price Variance,01-Sep-22,672.48,Aggregate Industries UK Limited
Bolton MBC,Environmental Services,ENZ9999,Inventory AP Accrual,01-Sep-22,672.48,Aggregate Industries UK Limited
Bolton MBC,Environmental Services,EN35005,Agency Staff - Other,02-Sep-22,671.98,Reed#Reed Specialist Recruitment Limited
Bolton MBC,Environmental Services,EN35005,Agency Staff - Other,02-Sep-22,671.98,Reed#Reed Specialist Recruitment Limited
Bolton MBC,Environmental Services,EN42000,Horticultural Materials,01-Sep-22,670.95,Tillage Nurseries
Bolton MBC,Environmental Services,EN47004,Vehicle Servicing,01-Sep-22,670.34,Terberg Matec UK
Bolton MBC,Environmental Services,EN35005,Agency Staff - Other,16-Sep-22,670.29,Reed#Reed Specialist Recruitment Limited
Bolton MBC,Environmental Services,EN47004,Agency Staff - Other,01-Sep-22,666.00,Proactive Personnel Limited
Bolton MBC,Environmental Services,EN47004,Agency Staff - Other,05-Sep-22,666.00,Proactive Personnel Limited
Bolton MBC,Environmental Services,EN47004,Agency Staff - Other,21-Sep-22,666.00,Proactive Personnel Limited
Bolton MBC,Environmental Services,EN39000,Contracted Services,08-Sep-22,665.00,Woods Building Services Limited
Bolton MBC,Environmental Services,EN38000,Contracted Services,16-Sep-22,660.00,Peak Fabrications (Bolton) Limited
Bolton MBC,Environmental Services,EN37003,Contracted Services,01-Sep-22,660.00,LK Consult Limited
Bolton MBC,Environmental Services,EN38000,Day To Day Maintenance,09-Sep-22,658.00,Elmes Joinery
Bolton MBC,Environmental Services,EN38000,Contracted Services,01-Sep-22,650.00,Greenwood Tree Services Limited
Bolton MBC,Environmental Services,EN14290,Plant Hire,01-Sep-22,649.00,H & C (Plant Hire) Limited
Bolton MBC,Environmental Services,EN35005,Agency Staff - Other,23-Sep-22,647.03,Reed#Reed Specialist Recruitment Limited
Bolton MBC,Environmental Services,EN35005,Agency Staff - Other,23-Sep-22,647.03,Reed#Reed Specialist Recruitment Limited
Bolton MBC,Environmental Services,EN35005,Agency Staff - Other,23-Sep-22,647.03,Reed#Reed Specialist Recruitment Limited
Bolton MBC,Environmental Services,EN35005,Agency Staff - Other,23-Sep-22,647.03,Reed#Reed Specialist Recruitment Limited
Bolton MBC,Environmental Services,EN35005,Agency Staff - Other,23-Sep-22,647.03,Reed#Reed Specialist Recruitment Limited
Bolton MBC,Environmental Services,EN35005,Agency Staff - Other,23-Sep-22,647.03,Reed#Reed Specialist Recruitment Limited
Bolton MBC,Environmental Services,EN35005,Agency Staff - Other,16-Sep-22,647.03,Reed#Reed Specialist Recruitment Limited
Bolton MBC,Environmental Services,EN35005,Agency Staff - Other,16-Sep-22,647.03,Reed#Reed Specialist Recruitment Limited
Bolton MBC,Environmental Services,EN35005,Agency Staff - Other,16-Sep-22,647.03,Reed#Reed Specialist Recruitment Limited
Bolton MBC,Environmental Services,EN35005,Agency Staff - Other,02-Sep-22,647.03,Reed#Reed Specialist Recruitment Limited
Bolton MBC,Environmental Services,EN35005,Agency Staff - Other,02-Sep-22,647.03,Reed#Reed Specialist Recruitment Limited
Bolton MBC,Environmental Services,EN35005,Agency Staff - Other,09-Sep-22,647.03,Reed#Reed Specialist Recruitment Limited
Bolton MBC,Environmental Services,EN35005,Agency Staff - Other,09-Sep-22,647.03,Reed#Reed Specialist Recruitment Limited
Bolton MBC,Environmental Services,EN35005,Agency Staff - Other,23-Sep-22,646.95,Reed#Reed Specialist Recruitment Limited
Bolton MBC,Environmental Services,EN35005,Agency Staff - Other,23-Sep-22,646.95,Reed#Reed Specialist Recruitment Limited
Bolton MBC,Environmental Services,EN35005,Agency Staff - Other,23-Sep-22,646.95,Reed#Reed Specialist Recruitment Limited
Bolton MBC,Environmental Services,EN35005,Agency Staff - Other,23-Sep-22,646.95,Reed#Reed Specialist Recruitment Limited
Bolton MBC,Environmental Services,EN35005,Agency Staff - Other,23-Sep-22,646.95,Reed#Reed Specialist Recruitment Limited
Bolton MBC,Environmental Services,EN35005,Agency Staff - Other,16-Sep-22,646.95,Reed#Reed Specialist Recruitment Limited
Bolton MBC,Environmental Services,EN35005,Agency Staff - Other,16-Sep-22,646.95,Reed#Reed Specialist Recruitment Limited
Bolton MBC,Environmental Services,EN35005,Agency Staff - Other,16-Sep-22,646.95,Reed#Reed Specialist Recruitment Limited
Bolton MBC,Environmental Services,EN35005,Agency Staff - Other,02-Sep-22,646.95,Reed#Reed Specialist Recruitment Limited
Bolton MBC,Environmental Services,EN35005,Agency Staff - Other,02-Sep-22,646.95,Reed#Reed Specialist Recruitment Limited
Bolton MBC,Environmental Services,EN35005,Agency Staff - Other,02-Sep-22,646.95,Reed#Reed Specialist Recruitment Limited
Bolton MBC,Environmental Services,EN35005,Agency Staff - Other,02-Sep-22,646.95,Reed#Reed Specialist Recruitment Limited
Bolton MBC,Environmental Services,EN35005,Agency Staff - Other,02-Sep-22,646.95,Reed#Reed Specialist Recruitment Limited
Bolton MBC,Environmental Services,EN35005,Agency Staff - Other,02-Sep-22,646.95,Reed#Reed Specialist Recruitment Limited
Bolton MBC,Environmental Services,EN35005,Agency Staff - Other,09-Sep-22,646.95,Reed#Reed Specialist Recruitment Limited
Bolton MBC,Environmental Services,EN35005,Agency Staff - Other,09-Sep-22,645.06,Reed#Reed Specialist Recruitment Limited
Bolton MBC,Environmental Services,EN14110,Direct Materials,26-Sep-22,640.00,Mallatite Limited
Bolton MBC,Environmental Services,EN47004,Tyres,20-Sep-22,637.00,Lodge Tyre Co Limited
Bolton MBC,Environmental Services,EN35005,Agency Staff - Other,02-Sep-22,634.19,Reed#Reed Specialist Recruitment Limited
Bolton MBC,Environmental Services,EN35005,Agency Staff - Other,09-Sep-22,626.18,Reed#Reed Specialist Recruitment Limited
Bolton MBC,Environmental Services,EN35005,Agency Staff - Other,09-Sep-22,626.12,Reed#Reed Specialist Recruitment Limited
Bolton MBC,Environmental Services,EN47004,Contracted Services,01-Sep-22,622.30,Das-Automotive
Bolton MBC,Environmental Services,EN35005,Agency Staff - Other,23-Sep-22,620.40,Reed#Reed Specialist Recruitment Limited
Bolton MBC,Environmental Services,EN35005,Agency Staff - Other,02-Sep-22,620.40,Reed#Reed Specialist Recruitment Limited
Bolton MBC,Environmental Services,EN35005,Agency Staff - Other,09-Sep-22,617.10,Reed#Reed Specialist Recruitment Limited
Bolton MBC,Environmental Services,EN35005,Agency Staff - Other,09-Sep-22,617.02,Reed#Reed Specialist Recruitment Limited
Bolton MBC,Environmental Services,EN35005,Agency Staff - Other,09-Sep-22,617.02,Reed#Reed Specialist Recruitment Limited
Bolton MBC,Environmental Services,EN35005,Agency Staff - Other,09-Sep-22,617.02,Reed#Reed Specialist Recruitment Limited
Bolton MBC,Environmental Services,EN35005,Agency Staff - Other,09-Sep-22,617.02,Reed#Reed Specialist Recruitment Limited
Bolton MBC,Environmental Services,EN35005,Agency Staff - Other,09-Sep-22,617.02,Reed#Reed Specialist Recruitment Limited
Bolton MBC,Environmental Services,EN35005,Agency Staff - Other,09-Sep-22,617.02,Reed#Reed Specialist Recruitment Limited
Bolton MBC,Environmental Services,EN35005,Agency Staff - Other,09-Sep-22,617.02,Reed#Reed Specialist Recruitment Limited
Bolton MBC,Environmental Services,EN35005,Agency Staff - Other,09-Sep-22,617.02,Reed#Reed Specialist Recruitment Limited
Bolton MBC,Environmental Services,EN35005,Agency Staff - Other,09-Sep-22,617.02,Reed#Reed Specialist Recruitment Limited
Bolton MBC,Environmental Services,EN35005,Agency Staff - Other,09-Sep-22,617.02,Reed#Reed Specialist Recruitment Limited
Bolton MBC,Environmental Services,EN35005,Agency Staff - Other,09-Sep-22,617.02,Reed#Reed Specialist Recruitment Limited
Bolton MBC,Environmental Services,EN35005,Agency Staff - Other,09-Sep-22,617.02,Reed#Reed Specialist Recruitment Limited
Bolton MBC,Environmental Services,EN35005,Agency Staff - Other,09-Sep-22,617.02,Reed#Reed Specialist Recruitment Limited
Bolton MBC,Environmental Services,EN35005,Agency Staff - Other,09-Sep-22,617.02,Reed#Reed Specialist Recruitment Limited
Bolton MBC,Environmental Services,EN46000,Kitchen Equipment,08-Sep-22,616.43,WV Howe Limited
Bolton MBC,Environmental Services,EN14000,Engineering Work,15-Sep-22,612.08,Electricity North West Limited#United Utilities Electricity Services Ltd
Bolton MBC,Environmental Services,ENZ9999,CR Bal Hold A/c Exp,22-Sep-22,610.00,Germsfree Limited
Bolton MBC,Environmental Services,EN49000,Health and Safety,01-Sep-22,609.00,Premier Pest Services
Bolton MBC,Environmental Services,EN35006,Refuse Collection,01-Sep-22,600.00,Bolton Community Transport & Furniture Services#bct & fs#BCTFS
Bolton MBC,Environmental Services,EN47001,Transport Hire,01-Sep-22,599.00,Melling Commercial Ltd T/A Westwood Motor Group
Bolton MBC,Environmental Services,EN47001,Transport Hire,01-Sep-22,599.00,Melling Commercial Ltd T/A Westwood Motor Group
Bolton MBC,Environmental Services,EN47001,Transport Hire,01-Sep-22,599.00,Melling Commercial Ltd T/A Westwood Motor Group
Bolton MBC,Environmental Services,EN47001,Transport Hire,03-Sep-22,599.00,Melling Commercial Ltd T/A Westwood Motor Group
Bolton MBC,Environmental Services,EN43700,Other Security,27-Sep-22,595.00,Fibrelite (North West) Limited
Bolton MBC,Environmental Services,EN43300,General Materials,15-Sep-22,595.00,Arrow County Supplies Limited
Bolton MBC,Environmental Services,EN49000,Health and Safety,03-Sep-22,590.00,Premier Pest Services
Bolton MBC,Environmental Services,EN46000,Kitchen Equipment,08-Sep-22,585.98,WV Howe Limited
Bolton MBC,Environmental Services,EN31000,Livestock,01-Sep-22,584.48,REDACTED - Personal Data
Bolton MBC,Environmental Services,ENZ9999,Inventory AP Accrual,01-Sep-22,583.12,Marwood Electrical Company Limited
Bolton MBC,Environmental Services,EN14190,Direct Materials,26-Sep-22,580.00,Mallatite Limited
Bolton MBC,Environmental Services,EN49000,Other Security Expenses,01-Sep-22,580.00,Access Door Systems Limited
Bolton MBC,Environmental Services,ENZ9999,Inv Invoice Price Variance,01-Sep-22,578.54,Aggregate Industries UK Limited
Bolton MBC,Environmental Services,ENZ9999,Inventory AP Accrual,01-Sep-22,578.54,Aggregate Industries UK Limited
Bolton MBC,Environmental Services,EN37010,Staff Training Courses,01-Sep-22,578.00,Institute of Licensing Ltd
Bolton MBC,Environmental Services,EN43000,Agency Staff - Full-time,01-Sep-22,577.92,Profile Security Services Ltd
Bolton MBC,Environmental Services,EN47004,Contracted Services,22-Sep-22,577.78,Faun Zoeller (UK) Limited
Bolton MBC,Environmental Services,EN47004,General Materials,21-Sep-22,577.50,Tranzparts Group Limited
Bolton MBC,Environmental Services,EN43500,Franking Machine,09-Sep-22,576.77,Nationwide Franking Sense Ltd#1
Bolton MBC,Environmental Services,EN46000,Kitchen Equipment,08-Sep-22,575.78,WV Howe Limited
Bolton MBC,Environmental Services,ENZ9999,Inv Invoice Price Variance,01-Sep-22,570.00,PP O'Connor Recycling Limited
Bolton MBC,Environmental Services,ENZ9999,Inventory AP Accrual,01-Sep-22,570.00,PP O'Connor Recycling Limited
Bolton MBC,Environmental Services,EN35005,Agency Staff - Other,16-Sep-22,568.83,Reed#Reed Specialist Recruitment Limited
Bolton MBC,Environmental Services,EN14000,Plant Hire,01-Sep-22,560.00,Richard Burton Haulage Limited
Bolton MBC,Environmental Services,EN14000,Plant Hire,05-Sep-22,560.00,Richard Burton Haulage Limited
Bolton MBC,Environmental Services,EN14290,Plant Hire,01-Sep-22,560.00,Richard Burton Haulage Limited
Bolton MBC,Environmental Services,EN35005,Agency Staff - Other,02-Sep-22,558.58,Reed#Reed Specialist Recruitment Limited
Bolton MBC,Environmental Services,EN47004,Vehicle Servicing,01-Sep-22,556.96,Fuchs Lubricants (UK) plc
Bolton MBC,Environmental Services,EN35005,Agency Staff - Other,16-Sep-22,555.07,Reed#Reed Specialist Recruitment Limited
Bolton MBC,Environmental Services,ENZ9999,Inventory AP Accrual,22-Sep-22,552.00,Slater Safety Supplies
Bolton MBC,Environmental Services,EN14000,Plant Hire,01-Sep-22,552.00,H & C (Plant Hire) Limited
Bolton MBC,Environmental Services,EN35005,Agency Staff - Other,16-Sep-22,550.25,Reed#Reed Specialist Recruitment Limited
Bolton MBC,Environmental Services,EN39000,Operational Equipment Rental,15-Sep-22,550.00,James O Garnett Limited
Bolton MBC,Environmental Services,ENZ9999,Inv Invoice Price Variance,06-Sep-22,549.83,Aggregate Industries UK Limited
Bolton MBC,Environmental Services,ENZ9999,Inventory AP Accrual,06-Sep-22,549.83,Aggregate Industries UK Limited
Bolton MBC,Environmental Services,EN47001,Transport Hire,01-Sep-22,549.00,Melling Commercial Ltd T/A Westwood Motor Group
Bolton MBC,Environmental Services,EN35005,Agency Staff - Other,02-Sep-22,548.20,Reed#Reed Specialist Recruitment Limited
Bolton MBC,Environmental Services,EN47001,Uninsured Losses - Vehicles,01-Sep-22,546.50,Universal Body Repairs Ltd
Bolton MBC,Environmental Services,EN14000,Plant Hire,01-Sep-22,546.00,Charlton Sweeper Hire Limited
Bolton MBC,Environmental Services,EN47004,Vehicle Servicing,09-Sep-22,544.35,Ciceley Truck & Van Centre#Ciceley Commercials Limited
Bolton MBC,Environmental Services,ENZ9999,Inv Invoice Price Variance,08-Sep-22,535.93,Aggregate Industries UK Limited
Bolton MBC,Environmental Services,ENZ9999,Inventory AP Accrual,08-Sep-22,535.93,Aggregate Industries UK Limited
Bolton MBC,Environmental Services,EN46000,Kitchen Equipment,07-Sep-22,535.25,WV Howe Limited
Bolton MBC,Environmental Services,EN14290,Direct Materials,12-Sep-22,533.29,John Davidson (Pipes) Ltd#1
Bolton MBC,Environmental Services,EN47004,Tyres,01-Sep-22,533.00,Lodge Tyre Co Limited
Bolton MBC,Environmental Services,EN47004,Agency Staff - Other,07-Sep-22,531.00,Proactive Personnel Limited
